Workbook

Sheet Nagłówek
A1: Nagłówek
F2: =IF(NumerWariantuRaportu = 5,teksty!D288 & " ","") & teksty!D295 -> sprawozdanie finansowe
F5: =teksty!D300 -> dla:
B6: =IF(Wprowadzenie!$I$4="",teksty!$D$294,Wprowadzenie!$I$4) -> (nazwę i dane firmy wpiszesz w zakładce 'Wprowadzenie')
F7: =teksty!D302 -> za okres:
F8: =teksty!D305 -> -
D9: =IF(ISNONTEXT(DataOd),"",teksty!$D$303) ->  | G9: =IF(ISNONTEXT(DataDo),"",teksty!$D$304) -> 
E10: =IF(D9 <> "",TODAY(),"") ->  | I10: =IF(G9 <> "",TODAY(),"") -> 
F11: =teksty!D299 -> Data sporządzenia:
E13: =teksty!D298 -> Wszystkie kwoty tego raportu są podane w: | F13: =VLOOKUP(techniczne!G2,BazyKwot,3) -> złotych
E16: =teksty!D297 -> Raport jest wyświetlany w układzie: | F16: =VLOOKUP(techniczne!F2,ListaWariantowRaportow,3) -> dla mikroprzedsiębiorstwa ("Jednostka Mikro")
F17: =teksty!$D$990 -> wg schematu w wersji 1-3 (dla sprawozdań za okres rozpoczynający się od 1 stycznia 2024 lub później)
B27: =teksty!D15 -> Etykiety skoroszytu w:
B33: =teksty!D16 -> Niezgodności w powiązanych kwotach:
B36: =teksty!$D$17 -> Wykrywaj drugi monitor

Sheet Wprowadzenie
A1: Wprowadzenie | L1: 2 | M1: =VLOOKUP(WybranaPozycja,teksty!B105:E110,2) -> JednostkaMala
G2: =teksty!$D$307 -> Wprowadzenie do sprawozdania finansowego
E3: P_1
E4: P_1A | H4: =IF(WybranaPozycja=6,teksty!$D$366,teksty!$D$310) -> Nazwa jednostki
S5: =teksty!$D$281 -> Pola obowiązkowe:
S7: =teksty!$D$282 -> Pola opcjonalne:
A8: =64 -> 64 | G8: =teksty!$D$369 -> Położenie siedziby jednostki dominującej:
A9: =64 -> 64
A10: =2+4+16+32 -> 54 | G10: =teksty!$D$317 -> Dokładny adres siedziby (w Polsce):
A11: 54
A12: 54 | H12: =teksty!$D$318 -> Ulica
A13: 54
A14: 54 | H14: =teksty!$D$319 -> Nr domu | J14: =teksty!$D$320 -> Nr lokalu
A15: 54
H16: =teksty!$D$327 -> Miejscowość
A18: 54 | H18: =teksty!$D$322 -> Poczta | K18: =teksty!$D$321 -> Kod pocztowy | N18: =teksty!$D$325 -> Kod kraju | O18: PL
A19: 54
H20: =teksty!$D$314 -> Gmina
H22: =teksty!$D$313 -> Powiat
H24: =teksty!$D$312 -> Województwo
A25: 54
A26: 54 | E26: P_1B | G26: =teksty!$D$324 -> Adres przedsiębiorcy zagranicznego (opcjonalny):
A27: 54
A28: 54 | H28: =teksty!$D$318 -> Ulica
A29: 54
A30: 54 | H30: =teksty!$D$319 -> Nr domu | J30: =teksty!$D$320 -> Nr lokalu
A31: 54
A32: 54 | H32: =teksty!$D$327 -> Miejscowość | K32: =teksty!$D$321 -> Kod pocztowy | N32: =teksty!$D$325 -> Kod kraju
A33: 54
A34: 64
A35: =64 -> 64 | E35: P_1B | I35: =teksty!$D$368 -> Podstawowy przedmiot działalności jednostki dominującej:
A36: =64 -> 64
A37: =64 -> 64
A38: =64 -> 64
A39: =64 -> 64
A40: =2+16 -> 18 | E40: P_1C | G40: =teksty!$D$331 -> Podstawowy przedmiot działalności:
A41: 18
A42: 18 | H42: =teksty!$D$332 -> kod(y) PKD
A43: 18
A44: 18
A45: 18
A46: 18
A47: 18
A48: 18
G49: =teksty!$D$333 -> Identyfikator podmiotu:
A50: =2+4+16+32 -> 54
D51: 1 | E51: =OFFSET(P_Labels, D51,WybranaPozycja) -> P_1C | H51: =teksty!$D$31 -> numer NIP
H52: =teksty!$D$31 -> numer NIP
D53: 19 | E53: =OFFSET(P_Labels, D53,WybranaPozycja) -> P_1D | H53: =teksty!$D$30 -> numer KRS | J53: =teksty!D991 -> Pole wymagane przez system eKRS
A55: =2+4+16+32 -> 54 | D55: 2 | E55: =OFFSET(P_Labels, D55, WybranaPozycja) -> P_2 | G55: =teksty!$D$335 -> Czas trwania działalności jednostki (jeśli ograniczony):
A56: =2+4+16+32 -> 54 | I56: 2
A57: =2+4+16+32 -> 54 | H57: =teksty!$D$336 -> Od dnia
A58: =2+4+16+32 -> 54
A59: 54 | H59: =teksty!$D$338 -> Do
A60: 54
A61: 54 | I61: 2
A62: 54
A63: 54 | E63: P_3 | G63: =teksty!D341 -> Wskazanie okresu objętego sprawozdaniem finansowym:
A64: =2+4+16+32 -> 54 | I64: 2
A65: =2+4+16+32 -> 54 | I65: =teksty!D342 -> (w pola tej sekcji jest kopiowany okres wpisany w nagłówku sprawozdania)
A66: =2+4+16+32 -> 54
A67: 54 | I67: =teksty!$D$336 -> Od dnia | K67: =teksty!$D$337 -> Do dnia
A68: 54 | I68: =IF(DataOd="","",DataOd) ->  | K68: =IF(DataDo="","",DataDo) -> 
A69: =2+4 -> 6
A70: =2+4 -> 6 | D70: 8 | E70: =OFFSET(P_Labels, D70, WybranaPozycja) -> P_4 | G70: =teksty!$D$363 -> Zastosowane zasad rachunkowości przewidzianych dla mniejszych jednostek:
A71: =2+4 -> 6
A72: 6 | I72: =teksty!D364 -> Wyszczególnienie wybranych uproszczeń:
A73: 6
A74: 6
A75: 6
A76: =2+4+16+32 -> 54
A77: =2+16+64 -> 82 | D77: 5 | E77: =OFFSET(P_Labels, D77, WybranaPozycja) -> 0 | G77: =teksty!$D$340 -> Włączenie danych wewnętrznych jednostek organizacyjnych:
A78: 82 | I78: 2
A79: 82 | I79: =IF(WybranaPozycja=6,teksty!$D$401,teksty!$D$343) -> Wskazanie, że sprawozdanie finansowe zawiera dane łączne, jeżeli w skład jednostki wchodzą wewnętrzne jednostki organizacyjne sporządzające samodzielne sprawozdania finansowe:
A80: 82 | I80: =teksty!$D$344 -> Czy sprawozdanie zawiera także łączne dane samodzielnych jednostek organizacyjnych?
A81: 82 | I81: 2
A82: 82
A83: 82
D84: 6 | E84: =OFFSET(P_Labels, D84, WybranaPozycja) -> P_5 | G84: =teksty!$D$345 -> Założenie kontynuacji działalności jednostki:
E86: =$E$84 & "A" -> P_5A | I86: =IF(WybranaPozycja=6,teksty!D402,teksty!$D$348) -> Czy sprawozdanie finansowe zostało sporządzone przy założeniu kontynuowania działalności gospodarczej przez jednostkę w dającej się przewidzieć przyszłości?
I87: 1
E89: =$E$84 & "B" -> P_5B | I89: =IF(WybranaPozycja=6,teksty!D403,teksty!$D$349) -> Czy brak jest okoliczności wskazujących na zagrożenie kontynuowania przez nią działalności?
I90: 1 | J90: =teksty!D404 -> odpowiedź "Nie" oznacza, że ISTNIEJĄ takie okoliczności
I92: =teksty!$D$993 -> Opis okoliczności zagrażających kontynuacji działalności:
E93: =$E$84 & "C" -> P_5C
I94: 2
A96: =2+4+16+32 -> 54
A97: =2+16 -> 18 | D97: 7 | E97: =OFFSET(P_Labels, D97, WybranaPozycja) -> 0 | G97: =teksty!$D$351 -> Łączenie spółek:
A98: =2+16 -> 18 | I98: =IF(WybranaPozycja=6,teksty!$D$396,teksty!$D$352) -> Czy to sprawozdanie finansowe sporządzono za okres, w ciągu którego nastąpiło połączenie spółek?
A99: 18 | I99: 2
A100: 18 | I100: 2
A101: 18 | I101: =IF(WybranaPozycja=6,teksty!D397,teksty!$D$353) -> Czy sprawozdanie sporządzono po połączeniu spółek?
A102: 18 | E102: =$E$97 & "A" -> 0A
A103: 18
A104: 18 | I104: =teksty!$D$354 -> Zastosowana metoda rozliczenia połączenia (nabycia, łączenia udziałów)
A105: 18 | E105: =$E$97 & "B" -> 0B
A106: =2+16 -> 18
A107: =64 -> 64
A108: =64 -> 64 | D108: 7 | E108: =OFFSET(P_Labels, D108, WybranaPozycja) -> 0 | G108: =teksty!$D$351 -> Łączenie spółek:
A109: =64 -> 64 | C109: break
A110: =64*B110 -> 0 | B110: =IF(I112="",0,1) -> 0 | C110: =ROW(C119) - ROW() +1 -> 10 | D110: 1 | H110: =D110 & ". " & teksty!$D$995 -> 1. Jednostka, w której w ciągu raportowanego okresu nastąpiło połączenie spółek:
A111: =64*B111 -> 0 | B111: =B110 -> 0 | I111: =teksty!$D$372 -> Nazwa (firma) i siedziba jednostki:
A112: 0 | B112: =B111 -> 0
A113: 0 | B113: 0
A114: 0 | B114: =B113 -> 0
A115: 0 | B115: =B114 -> 0 | I115: =teksty!$D$996 -> Czy sprawozadnia finansowe tej jednostki sporządzono po połączeniu spółek?
A116: =64*B116 -> 0 | B116: 0 | I116: 2
A117: 0 | B117: 0 | I117: 0
A118: 0 | B118: 0 | I118: =teksty!$D$354 -> Zastosowana metoda rozliczenia połączenia (nabycia, łączenia udziałów)
A119: 0 | B119: 0 | C119: =C110 -> 10
A120: =64*B120 -> 0 | B120: =IF(I122="",0,1) -> 0 | C120: =ROW(C129) - ROW() +1 -> 10 | D120: =D110+1 -> 2 | H120: =D120 & ". " & teksty!$D$995 -> 2. Jednostka, w której w ciągu raportowanego okresu nastąpiło połączenie spółek:
A121: =64*B121 -> 0 | B121: =B120 -> 0 | I121: =teksty!$D$372 -> Nazwa (firma) i siedziba jednostki:
A122: 0 | B122: =B121 -> 0
A123: 0 | B123: 0
A124: 0 | B124: =B123 -> 0
A125: 0 | B125: =B124 -> 0 | I125: =teksty!$D$996 -> Czy sprawozadnia finansowe tej jednostki sporządzono po połączeniu spółek?
A126: 0 | B126: 0 | I126: 2
A127: 0 | B127: 0 | I127: 0
A128: 0 | B128: 0 | I128: =teksty!$D$354 -> Zastosowana metoda rozliczenia połączenia (nabycia, łączenia udziałów)
A129: =64*B129 -> 0 | B129: =B128 -> 0 | C129: =C120 -> 10
A130: =64*B130 -> 0 | B130: =IF(I132="",0,1) -> 0 | C130: =ROW(C139) - ROW() +1 -> 10 | D130: =D120+1 -> 3 | H130: =D130 & ". " & teksty!$D$995 -> 3. Jednostka, w której w ciągu raportowanego okresu nastąpiło połączenie spółek:
A131: =64*B131 -> 0 | B131: =B130 -> 0 | I131: =teksty!$D$996 -> Czy sprawozadnia finansowe tej jednostki sporządzono po połączeniu spółek?
A132: 0 | B132: =B131 -> 0
A133: 0 | B133: 0
A134: 0 | B134: =B133 -> 0
A135: 0 | B135: =B134 -> 0 | I135: =teksty!$D$353 -> Czy sprawozdanie sporządzono po połączeniu spółek?
A136: 0 | B136: 0 | I136: 2
A137: 0 | B137: 0 | I137: 0
A138: 0 | B138: 0 | I138: =teksty!$D$996 -> Czy sprawozadnia finansowe tej jednostki sporządzono po połączeniu spółek?
A139: 0 | B139: 0 | C139: =C130 -> 10
A140: =64*B140 -> 0 | B140: =IF(I142="",0,1) -> 0 | C140: =ROW(C149) - ROW() +1 -> 10 | D140: =D130+1 -> 4 | H140: =D140 & ". " & teksty!$D$995 -> 4. Jednostka, w której w ciągu raportowanego okresu nastąpiło połączenie spółek:
A141: =64*B141 -> 0 | B141: =B140 -> 0 | I141: =teksty!$D$372 -> Nazwa (firma) i siedziba jednostki:
A142: 0 | B142: =B141 -> 0
A143: 0 | B143: 0
A144: 0 | B144: =B143 -> 0
A145: 0 | B145: =B144 -> 0 | I145: =teksty!$D$996 -> Czy sprawozadnia finansowe tej jednostki sporządzono po połączeniu spółek?
A146: 0 | B146: 0 | I146: 2
A147: 0 | B147: 0 | I147: 0
A148: 0 | B148: 0 | I148: =teksty!$D$354 -> Zastosowana metoda rozliczenia połączenia (nabycia, łączenia udziałów)
A149: 0 | B149: 0 | C149: =C140 -> 10
A150: =64*B150 -> 0 | B150: =IF(I152="",0,1) -> 0 | C150: =ROW(C159) - ROW() +1 -> 10 | D150: =D140+1 -> 5 | H150: =D150 & ". " & teksty!$D$995 -> 5. Jednostka, w której w ciągu raportowanego okresu nastąpiło połączenie spółek:
A151: =64*B151 -> 0 | B151: =B150 -> 0 | I151: =teksty!$D$372 -> Nazwa (firma) i siedziba jednostki:
A152: 0 | B152: =B151 -> 0
A153: 0 | B153: 0
A154: 0 | B154: =B153 -> 0
A155: 0 | B155: =B154 -> 0 | I155: =teksty!$D$353 -> Czy sprawozdanie sporządzono po połączeniu spółek?
A156: 0 | B156: 0 | I156: 2
A157: 0 | B157: 0 | I157: 0
A158: 0 | B158: 0 | I158: =teksty!$D$354 -> Zastosowana metoda rozliczenia połączenia (nabycia, łączenia udziałów)
A159: 0 | B159: 0 | C159: =C150 -> 10
A160: =64 -> 64
A161: =64 -> 64 | B161: 2 | C161: break
A162: =64 -> 64
D163: 9 | E163: =OFFSET(P_Labels, D163, WybranaPozycja) -> P_6 | G163: =teksty!$D$355 -> Zasady (polityka) rachunkowości:
A164: =64 -> 64 | E164: =$E$163 & "A" -> P_6A | I164: =teksty!$D$357 -> Omówienie przyjętych zasad polityki rachunkowości:
A165: =64 -> 64
A166: =64 -> 64
A167: =64 -> 64
A168: =64 -> 64
A169: =64 -> 64 | H169: =teksty!$D$356 -> w tym:
A170: =64 -> 64 | E170: =$E$163 & "B" -> P_6B | I170: =teksty!$D$399 -> zasady grupowania operacji gospodarczych:
A171: =64 -> 64
A172: =64 -> 64
A173: =64 -> 64
A174: =64 -> 64
D175: 10 | E175: =OFFSET(P_Labels, D175,WybranaPozycja) -> P_6A | I175: =teksty!$D$358 -> metody wyceny aktywów i pasywów:
A179: =64 -> 64
A180: =64 -> 64 | E180: =$E$163 & "D" -> P_6D | I180: =teksty!$D$400 -> dokonywania amortyzacji:
A181: =64 -> 64
A182: =64 -> 64
A183: =64 -> 64
D185: 11 | E185: =OFFSET(P_Labels, D185,WybranaPozycja) -> P_6B | I185: =teksty!$D$359 -> ustalenia wyniku finansowego:
D190: 12 | E190: =OFFSET(P_Labels, D190,WybranaPozycja) -> P_6C | I190: =IF(WybranaPozycja=6,teksty!D405,teksty!D360) -> ustalenia sposobu sporządzania sprawozdania finansowego:
D195: 20 | E195: =OFFSET(P_Labels, D195,WybranaPozycja) -> P_6D | I195: =teksty!D992 -> pozostałe:
A199: =64 -> 64
A200: =64 -> 64 | E200: P_12 | I200: =teksty!D406 -> Zmiany zasad rachunkowości wprowadzone w trakcie raportowanego okresu:
A201: =64 -> 64 | I201: =teksty!D407 -> Zmiany dokonane od pierwszego dnia okresu raportu, w szczególności zasad grupowania operacji gospodarczych, metod wyceny aktywów i pasywów, dokonywania odpisów amortyzacyjnych, ustalania wyniku finansowego i sporządzania jednostkowych sprawozdań finansowych oraz skonsolidowanego sprawozdania finansowego wraz z podaniem ich przyczyny
A202: =64 -> 64
A203: =64 -> 64
A204: =64 -> 64
A205: =64 -> 64
A206: =64 -> 64 | E206: P_13 | I206: =teksty!D408 -> Kryteria wyłączeń jednostek podporządkowanych ze sprawozdania skonsolidowanego:
A207: =64 -> 64
A208: =64 -> 64
A209: =64 -> 64
D211: 13 | E211: =OFFSET(P_Labels, D211, WybranaPozycja) -> P_7 | G211: =teksty!$D$411 -> Informacja uszczegóławiająca:
H213: =teksty!$D$412 -> Nazwa pozycji
H215: =teksty!$D$413 -> Opis
H219: =teksty!$D$412 -> Nazwa pozycji
H221: =teksty!$D$413 -> Opis
H225: =teksty!$D$412 -> Nazwa pozycji
H227: =teksty!$D$413 -> Opis
H231: =teksty!$D$412 -> Nazwa pozycji
H233: =teksty!$D$413 -> Opis
I1695: 2
I1712: 2
I1722: 2
I1732: 2
I1742: 2
I1752: 2

Sheet Bilans
A1: Bilans | C1: Poziom | F1: Składniki | J1: (pełen symbol) | K1: (wyświetlana etykieta) | R1: 3 | S1: =VLOOKUP(WybranaPozycja,teksty!B114:F119,2) -> JednostkaMikro
M2: =teksty!$D$416 -> Bilans
J3: Aktywa | N3: =Wprowadzenie!$I$4 & " " & IF(NumerWariantuRaportu = 5, teksty!$D$289, "") ->  | X3: =teksty!D283 & VLOOKUP(NumerBazyRaportu,BazyKwot,3) -> wszystkie kwoty w złotych
A5: =(2+16) -> 18 | J5: JednostkaInna | N5: =teksty!$D$420 -> Aktywa | U5: =IF(DataDo = "","",teksty!$D$417) ->  | V5: =IF(DataDo = "",teksty!$D$954,DataDo) -> Okres bieżący | W5: =IF(DataOd = "",teksty!$D$955,DataOd-1) -> Okres poprzedni | X5: =teksty!$D$292 -> Przekszt. dane porów. za poprzedni okres | AA5: =IF(OR(_xlfn.ISFORMULA($V$7),_xlfn.ISFORMULA($W$7)),teksty!$D$951,"") -> W niektórych polach tego zestawienia napotkasz pomocnicze formuły. Jeżeli to potrzebne, możesz je zmienić, lub wpisać w te pola odpowiednie kwoty.
A6: 18 | C6: =COUNTA(D6:H6) -> 1 | D6: A | J6: =$J$3&":"&$D6 -> Aktywa:A | K6: =D6 -> A | N6: =K6 -> A | O6: =teksty!$D$421 -> Aktywa trwałe | V6: =V7+V12+V21+V25+V46 -> 0 | W6: =W7+W12+W21+W25+W46 -> 0
A7: 18 | C7: =COUNTA(D7:H7) -> 2 | D7: =D6 -> A | E7: I | J7: =$J$3&":"&$D7&"."&E7 -> Aktywa:A.I | K7: =E7 -> I | N7: =K7 -> I | O7: =teksty!$D$422 -> Wartości niematerialne i prawne | V7: =V8+V9+V10+V11 -> 0 | W7: =W8+W9+W10+W11 -> 0
A8: 18 | C8: 3 | D8: A | E8: =E7 -> I | F8: 1 | J8: =$J$3&":"&$D8&"."&E8&"."&F8 -> Aktywa:A.I.1 | K8: =F8 -> 1 | N8: =K8 -> 1 | O8: =teksty!$D$423 -> Koszty zakończonych prac rozwojowych
A9: 18 | C9: 3 | D9: A | E9: =E8 -> I | F9: 2 | J9: =$J$3&":"&$D9&"."&E9&"."&F9 -> Aktywa:A.I.2 | K9: =F9 -> 2 | N9: =K9 -> 2 | O9: =teksty!$D$424 -> Wartość firmy
A10: 18 | C10: 3 | D10: A | E10: =E9 -> I | F10: 3 | J10: =$J$3&":"&$D10&"."&E10&"."&F10 -> Aktywa:A.I.3 | K10: 3 | N10: 3 | O10: =teksty!$D$425 -> Inne wartości niematerialne i prawne
A11: 18 | C11: 3 | D11: A | E11: =E10 -> I | F11: 4 | J11: =$J$3&":"&$D11&"."&E11&"."&F11 -> Aktywa:A.I.4 | K11: 4 | N11: =K11 -> 4 | O11: =teksty!$D$426 -> Zaliczki na wartości niematerialne i prawne
A12: 18 | C12: 2 | D12: A | E12: II | J12: =$J$3&":"&$D12&"."&E12 -> Aktywa:A.II | K12: =E12 -> II | N12: II | O12: =teksty!$D$427 -> Rzeczowe aktywa trwałe | V12: =V13+V19+V20 -> 0 | W12: =W13+W19+W20 -> 0
A13: 18 | C13: 3 | D13: A | E13: =E12 -> II | F13: 1 | J13: =$J$3&":"&$D13&"."&E13&"."&F13 -> Aktywa:A.II.1 | K13: =F13 -> 1 | N13: 1 | O13: =teksty!$D$428 -> Środki trwałe | V13: =V14+V15+V16+V17+V18 -> 0 | W13: =W14+W15+W16+W17+W18 -> 0
A14: 18 | C14: 4 | D14: A | E14: =E13 -> II | F14: =F13 -> 1 | G14: a | J14: =$J$3&":"&$D14&"."&E14&"."&F14&"."&G14 -> Aktywa:A.II.1.a | K14: =G14 &")" -> a) | N14: a) | O14: =teksty!$D$429 -> grunty (w tym prawo użytkowania wieczystego gruntu)
A15: 18 | C15: 4 | D15: A | E15: =E14 -> II | F15: =F14 -> 1 | G15: b | J15: =$J$3&":"&$D15&"."&E15&"."&F15&"."&G15 -> Aktywa:A.II.1.b | K15: =G15 &")" -> b) | N15: =K15 -> b) | O15: =teksty!$D$430 -> budynki, lokale, prawa do lokali i obiekty inżynierii lądowej i wodnej
A16: 18 | C16: 4 | D16: =D15 -> A | E16: =E15 -> II | F16: =F15 -> 1 | G16: c | J16: =$J$3&":"&$D16&"."&E16&"."&F16&"."&G16 -> Aktywa:A.II.1.c | K16: =G16 &")" -> c) | N16: =K16 -> c) | O16: =teksty!$D$431 -> urządzenia techniczne i maszyny
A17: 18 | C17: 4 | D17: A | E17: II | F17: 1 | G17: d | J17: =$J$3&":"&$D17&"."&E17&"."&F17&"."&G17 -> Aktywa:A.II.1.d | K17: d) | N17: d) | O17: =teksty!$D$432 -> środki transportu
A18: 18 | C18: =COUNTA(D18:H18) -> 4 | D18: A | E18: II | F18: 1 | G18: e | J18: =$J$3&":"&$D18&"."&E18&"."&F18&"."&G18 -> Aktywa:A.II.1.e | K18: e) | N18: e) | O18: =teksty!$D$433 -> inne środki trwałe
A19: 18 | C19: 3 | D19: =D18 -> A | E19: =E18 -> II | F19: 2 | J19: =$J$3&":"&$D19&"."&E19&"."&F19 -> Aktywa:A.II.2 | K19: =F19 -> 2 | N19: 2 | O19: =teksty!$D$434 -> Środki trwałe w budowie
A20: 18 | C20: 3 | D20: =D19 -> A | E20: =E19 -> II | F20: 3 | J20: =$J$3&":"&$D20&"."&E20&"."&F20 -> Aktywa:A.II.3 | K20: =F20 -> 3 | N20: =K20 -> 3 | O20: =teksty!$D$435 -> Zaliczki na środki trwałe w budowie
A21: 18 | C21: 2 | D21: =D20 -> A | E21: III | J21: =$J$3&":"&$D21&"."&E21 -> Aktywa:A.III | K21: =E21 -> III | N21: III | O21: =teksty!$D$436 -> Należności długoterminowe | V21: =V22+V23+V24 -> 0 | W21: =W22+W23+W24 -> 0
A22: 18 | C22: 3 | D22: A | E22: =E21 -> III | F22: 1 | J22: =$J$3&":"&$D22&"."&E22&"."&F22 -> Aktywa:A.III.1 | K22: =F22 -> 1 | N22: 1 | O22: =teksty!$D$437 -> Od jednostek powiązanych
A23: 18 | C23: =COUNTA(D23:H23) -> 3 | D23: A | E23: =E22 -> III | F23: 2 | J23: =$J$3&":"&$D23&"."&E23&"."&F23 -> Aktywa:A.III.2 | K23: =F23 -> 2 | N23: =K23 -> 2 | O23: =teksty!$D$438 -> Od pozostałych jednostek, w których jednostka posiada zaangażowanie w kapitale
A24: 18 | C24: 3 | D24: A | E24: =E23 -> III | F24: 3 | J24: =$J$3&":"&$D24&"."&E24&"."&F24 -> Aktywa:A.III.3 | K24: =F24 -> 3 | N24: =K24 -> 3 | O24: =teksty!$D$439 -> Od pozostałych jednostek
A25: 18 | C25: 2 | D25: A | E25: IV | J25: =$J$3&":"&$D25&"."&E25 -> Aktywa:A.IV | K25: =E25 -> IV | N25: IV | O25: =teksty!$D$440 -> Inwestycje długoterminowe | V25: =V26+V27+V28+V45 -> 0 | W25: =W26+W27+W28+W45 -> 0
A26: 18 | C26: 3 | D26: A | E26: =E25 -> IV | F26: 1 | J26: =$J$3&":"&$D26&"."&E26&"."&F26 -> Aktywa:A.IV.1 | K26: =F26 -> 1 | N26: 1 | O26: =teksty!$D$441 -> Nieruchomości
A27: 18 | C27: 3 | D27: A | E27: IV | F27: 2 | J27: =$J$3&":"&$D27&"."&E27&"."&F27 -> Aktywa:A.IV.2 | K27: =F27 -> 2 | N27: =K27 -> 2 | O27: =teksty!$D$442 -> Wartości niematerialne i prawne
A28: 18 | C28: 3 | D28: A | E28: IV | F28: 3 | J28: =$J$3&":"&$D28&"."&E28&"."&F28 -> Aktywa:A.IV.3 | K28: =F28 -> 3 | N28: =K28 -> 3 | O28: =teksty!$D$443 -> Długoterminowe aktywa finansowe | V28: =V29+V35+V40 -> 0 | W28: =W29+W35+W40 -> 0
A29: 18 | C29: 4 | D29: A | E29: IV | F29: =F28 -> 3 | G29: a | J29: =$J$3&":"&$D29&"."&E29&"."&F29&"."&G29 -> Aktywa:A.IV.3.a | K29: =G29 &")" -> a) | N29: a) | O29: =teksty!$D$444 -> w jednostkach powiązanych | V29: =V30+V31+V32+V33 -> 0 | W29: =W30+W31+W32+W33 -> 0
A30: 18 | C30: 5 | D30: A | E30: IV | F30: =F29 -> 3 | G30: =G29 -> a | H30: 1 | J30: =$J$3&":"&$D30&"."&E30&"."&F30&"."&G30&"."&H30 -> Aktywa:A.IV.3.a.1 | K30: =H30 & ") " -> 1) | O30: =K30&teksty!$D445 -> 1) udziały lub akcje
A31: 18 | C31: 5 | D31: A | E31: IV | F31: =F30 -> 3 | G31: =G30 -> a | H31: 2 | J31: =$J$3&":"&$D31&"."&E31&"."&F31&"."&G31&"."&H31 -> Aktywa:A.IV.3.a.2 | K31: =H31 & ") " -> 2) | O31: =K31&teksty!$D446 -> 2) inne papiery wartościowe
A32: 18 | C32: 5 | D32: =D31 -> A | E32: =E31 -> IV | F32: =F31 -> 3 | G32: =G31 -> a | H32: 3 | J32: =$J$3&":"&$D32&"."&E32&"."&F32&"."&G32&"."&H32 -> Aktywa:A.IV.3.a.3 | K32: 3) | O32: =K32&teksty!$D447 -> 3) udzielone pożyczki
A33: 18 | C33: 5 | D33: A | E33: IV | F33: 3 | G33: a | H33: 4 | I33: =$N$5 & teksty!$D$284 & 1 -> Aktywa, koniec strony 1 | J33: =$J$3&":"&$D33&"."&E33&"."&F33&"."&G33&"."&H33 -> Aktywa:A.IV.3.a.4 | K33: 4) | O33: =K33&teksty!$D448 -> 4) inne długoterminowe aktywa finansowe
A34: 18 | B34: P | C34: 3 | D34: =D33 -> A | E34: =E33 -> IV | F34: =F33 -> 3 | N34: =teksty!D449 & O28 &teksty!$D$418 -> Aktywa (c.d. "Długoterminowe aktywa finansowe") | U34: =$U$5 ->  | V34: =$V$5 -> Okres bieżący | W34: =$W$5 -> Okres poprzedni | X34: =teksty!$D$292 -> Przekszt. dane porów. za poprzedni okres
A35: 18 | C35: =COUNTA(D35:H35) -> 4 | D35: =D34 -> A | E35: IV | F35: 3 | G35: b | J35: =$J$3&":"&$D35&"."&E35&"."&F35&"."&G35 -> Aktywa:A.IV.3.b | K35: =G35 &")" -> b) | N35: =K35 -> b) | O35: =teksty!$D$450 -> w pozostałych jednostkach, w których jednostka posiada zaangażowanie w kapitale | V35: =V36+V37+V38+V39 -> 0 | W35: =W36+W37+W38+W39 -> 0 | Z35: =teksty!$D$285 -> ukryty wiersz powyżej zawiera nagłówek dla kolejnej strony
A36: 18 | C36: =COUNTA(D36:H36) -> 5 | D36: A | E36: IV | F36: 3 | G36: =G35 -> b | H36: 1 | J36: =$J$3&":"&$D36&"."&E36&"."&F36&"."&G36&"."&H36 -> Aktywa:A.IV.3.b.1 | K36: =H36 & ") " -> 1) | O36: =K36&teksty!$D451 -> 1) udziały lub akcje
A37: 18 | C37: 5 | D37: A | E37: IV | F37: 3 | G37: =G36 -> b | H37: 2 | J37: =$J$3&":"&$D37&"."&E37&"."&F37&"."&G37&"."&H37 -> Aktywa:A.IV.3.b.2 | K37: =H37 & ") " -> 2) | O37: =K37&teksty!$D452 -> 2) inne papiery wartościowe
A38: 18 | C38: 5 | D38: =D37 -> A | E38: =E37 -> IV | F38: =F37 -> 3 | G38: =G37 -> b | H38: 3 | J38: =$J$3&":"&$D38&"."&E38&"."&F38&"."&G38&"."&H38 -> Aktywa:A.IV.3.b.3 | K38: =H38 & ") " -> 3) | O38: =K38&teksty!$D453 -> 3) udzielone pożyczki
A39: 18 | C39: 5 | D39: A | E39: IV | F39: 3 | G39: b | H39: 4 | J39: =$J$3&":"&$D39&"."&E39&"."&F39&"."&G39&"."&H39 -> Aktywa:A.IV.3.b.4 | K39: 4) | O39: =K39&teksty!$D454 -> 4) inne długoterminowe aktywa finansowe
A40: 18 | C40: 4 | D40: =D39 -> A | E40: IV | F40: 3 | G40: c | J40: =$J$3&":"&$D40&"."&E40&"."&F40&"."&G40 -> Aktywa:A.IV.3.c | K40: =G40 &")" -> c) | N40: =K40 -> c) | O40: =teksty!$D$455 -> w pozostałych jednostkach | V40: =V41+V42+V43+V44 -> 0 | W40: =W41+W42+W43+W44 -> 0
A41: 18 | C41: 5 | D41: A | E41: IV | F41: 3 | G41: =G40 -> c | H41: 1 | J41: =$J$3&":"&$D41&"."&E41&"."&F41&"."&G41&"."&H41 -> Aktywa:A.IV.3.c.1 | K41: =H41 & ") " -> 1) | O41: =K41&teksty!$D456 -> 1) udziały lub akcje
A42: 18 | C42: 5 | D42: A | E42: IV | F42: 3 | G42: =G41 -> c | H42: 2 | J42: =$J$3&":"&$D42&"."&E42&"."&F42&"."&G42&"."&H42 -> Aktywa:A.IV.3.c.2 | K42: =H42 & ") " -> 2) | O42: =K42&teksty!$D457 -> 2) inne papiery wartościowe
A43: 18 | C43: 5 | D43: =D42 -> A | E43: =E42 -> IV | F43: =F42 -> 3 | G43: =G42 -> c | H43: 3 | J43: =$J$3&":"&$D43&"."&E43&"."&F43&"."&G43&"."&H43 -> Aktywa:A.IV.3.c.3 | K43: =H43 & ") " -> 3) | O43: =K43&teksty!$D458 -> 3) udzielone pożyczki
A44: 18 | C44: 5 | D44: A | E44: IV | F44: 3 | G44: c | H44: 4 | J44: =$J$3&":"&$D44&"."&E44&"."&F44&"."&G44&"."&H44 -> Aktywa:A.IV.3.c.4 | K44: 4) | O44: =K44&teksty!$D459 -> 4) inne długoterminowe aktywa finansowe
A45: 18 | C45: 3 | D45: =D44 -> A | E45: =E44 -> IV | F45: 4 | J45: =$J$3&":"&$D45&"."&E45&"."&F45 -> Aktywa:A.IV.4 | K45: =F45 -> 4 | N45: =K45 -> 4 | O45: =teksty!D460 -> Inne inwestycje długoterminowe
A46: 18 | C46: 2 | D46: =D45 -> A | E46: V | J46: =$J$3&":"&$D46&"."&E46 -> Aktywa:A.V | K46: =E46 -> V | N46: V | O46: =teksty!$D$461 -> Długoterminowe rozliczenia międzyokresowe | V46: =V47+V48 -> 0 | W46: =W47+W48 -> 0
A47: 18 | C47: 3 | D47: =D46 -> A | E47: =E46 -> V | F47: 1 | J47: =$J$3&":"&$D47&"."&E47&"."&F47 -> Aktywa:A.V.1 | K47: =F47 -> 1 | N47: =K47 -> 1 | O47: =teksty!$D$462 -> Aktywa z tytułu odroczonego podatku dochodowego
A48: 18 | C48: 3 | D48: =D47 -> A | E48: =E47 -> V | F48: 2 | J48: =$J$3&":"&$D48&"."&E48&"."&F48 -> Aktywa:A.V.2 | K48: =F48 -> 2 | N48: =K48 -> 2 | O48: =teksty!$D$463 -> Inne rozliczenia międzyokresowe
A49: 18 | C49: 1 | D49: B | J49: =$J$3&":"&$D49 -> Aktywa:B | K49: =D49 -> B | N49: B | O49: =teksty!$D$464 -> Aktywa obrotowe | V49: =V50+V57+V76+V93 -> 0 | W49: =W50+W57+W76+W93 -> 0
A50: 18 | C50: 2 | D50: =D49 -> B | E50: I | J50: =$J$3&":"&$D50&"."&E50 -> Aktywa:B.I | K50: =E50 -> I | N50: I | O50: =teksty!$D$465 -> Zapasy | V50: =V51+V52+V54+V55+V56 -> 0 | W50: =W51+W52+W54+W55+W56 -> 0
A51: 18 | C51: 3 | D51: B | E51: =E50 -> I | F51: 1 | J51: =$J$3&":"&$D51&"."&E51&"."&F51 -> Aktywa:B.I.1 | K51: =F51 -> 1 | N51: 1 | O51: =teksty!$D$466 -> Materiały
A52: 18 | C52: 3 | D52: B | E52: =E51 -> I | F52: 2 | J52: =$J$3&":"&$D52&"."&E52&"."&F52 -> Aktywa:B.I.2 | K52: =F52 -> 2 | N52: =K52 -> 2 | O52: =teksty!$D$467 -> Półprodukty i produkty w toku
A53: 18 | C53: =COUNTA(D53:H53) -> 4 | D53: B | E53: =E52 -> I | F53: =F52 -> 2 | G53: j | J53: =$J$3&":"&$D53&"."&E53&"."&F53&"."&G53&"."&H53 -> Aktywa:B.I.2.j. | O53: =teksty!$D$468 -> w tym: obiekty w zabudowie
A54: 18 | C54: 3 | D54: =D52 -> B | E54: =E52 -> I | F54: 3 | J54: =$J$3&":"&$D54&"."&E54&"."&F54 -> Aktywa:B.I.3 | K54: =F54 -> 3 | N54: 3 | O54: =teksty!$D$469 -> Produkty gotowe
A55: 18 | C55: 3 | D55: B | E55: =E54 -> I | F55: 4 | J55: =$J$3&":"&$D55&"."&E55&"."&F55 -> Aktywa:B.I.4 | K55: =F55 -> 4 | N55: =K55 -> 4 | O55: =teksty!$D$470 -> Towary
A56: 18 | C56: 3 | D56: B | E56: =E55 -> I | F56: 5 | J56: =$J$3&":"&$D56&"."&E56&"."&F56 -> Aktywa:B.I.5 | K56: =F56 -> 5 | N56: =K56 -> 5 | O56: =teksty!$D$471 -> Zaliczki na dostawy i usługi
A57: 18 | C57: 2 | D57: B | E57: II | J57: =$J$3&":"&$D57&"."&E57 -> Aktywa:B.II | K57: =E57 -> II | N57: II | O57: =teksty!$D$472 -> Należności krótkoterminowe | V57: =V58+V64+V69 -> 0 | W57: =W58+W64+W69 -> 0
A58: 18 | C58: 3 | D58: B | E58: =E57 -> II | F58: 1 | J58: =$J$3&":"&$D58&"."&E58&"."&F58 -> Aktywa:B.II.1 | K58: =F58 -> 1 | N58: 1 | O58: =teksty!$D$473 -> Należności od jednostek powiązanych | V58: =V59+V62 -> 0 | W58: =W59+W62 -> 0
A59: 18 | C59: 4 | D59: B | E59: =E58 -> II | F59: =F58 -> 1 | G59: a | J59: =$J$3&":"&$D59&"."&E59&"."&F59&"."&G59 -> Aktywa:B.II.1.a | K59: =G59 &")" -> a) | N59: a) | O59: =teksty!$D$474 -> z tytułu dostaw i usług, o okresie spłaty: | V59: =V60+V61 -> 0 | W59: =W60+W61 -> 0
A60: 18 | C60: 5 | D60: B | E60: =E59 -> II | F60: =F59 -> 1 | G60: =G59 -> a | H60: 1 | J60: =$J$3&":"&$D60&"."&E60&"."&F60&"."&G60&"."&H60 -> Aktywa:B.II.1.a.1 | K60: =H60 & ") " -> 1) | O60: =$K$60&teksty!$D$475 -> 1) do 12 miesięcy
A61: 18 | C61: 5 | D61: B | E61: =E60 -> II | F61: =F60 -> 1 | G61: =G60 -> a | H61: 2 | J61: =$J$3&":"&$D61&"."&E61&"."&F61&"."&G61&"."&H61 -> Aktywa:B.II.1.a.2 | K61: =H61 & ") " -> 2) | O61: =$K$61&teksty!$D$476 -> 2) powyżej 12 miesięcy
A62: 18 | C62: 4 | D62: B | E62: =E61 -> II | F62: =F61 -> 1 | G62: b | I62: =$N$5 & teksty!$D$284 & 2 -> Aktywa, koniec strony 2 | J62: =$J$3&":"&$D62&"."&E62&"."&F62&"."&G62 -> Aktywa:B.II.1.b | K62: =G62 &")" -> b) | N62: =K62 -> b) | O62: =teksty!$D$477 -> inne
A63: 18 | B63: P | C63: 3 | D63: =D62 -> B | E63: =E62 -> II | F63: =F62 -> 1 | N63: =teksty!D478 & O57 &teksty!$D$418 -> Aktywa (c.d. "Należności krótkoterminowe") | U63: =$U$5 ->  | V63: =$V$5 -> Okres bieżący | W63: =$W$5 -> Okres poprzedni | X63: =teksty!$D$292 -> Przekszt. dane porów. za poprzedni okres
A64: 18 | C64: 3 | D64: =D62 -> B | E64: =E62 -> II | F64: 2 | J64: =$J$3&":"&$D64&"."&E64&"."&F64 -> Aktywa:B.II.2 | K64: =F64 -> 2 | N64: 2 | O64: =teksty!$D$479 -> Należności od pozostałych jednostek, w których jednostka posiada zaangażowanie w kapitale | V64: =V65+V68 -> 0 | W64: =W65+W68 -> 0 | Z64: =teksty!$D$285 -> ukryty wiersz powyżej zawiera nagłówek dla kolejnej strony
A65: 18 | C65: 4 | D65: =D64 -> B | E65: II | F65: 2 | G65: a | J65: =$J$3&":"&$D65&"."&E65&"."&F65&"."&G65 -> Aktywa:B.II.2.a | K65: =G65 &")" -> a) | N65: a) | O65: =teksty!$D$480 -> z tytułu dostaw i usług, o okresie spłaty: | V65: =V66+V67 -> 0 | W65: =W66+W67 -> 0
A66: 18 | C66: 5 | D66: B | E66: II | F66: 2 | G66: =G65 -> a | H66: 1 | J66: =$J$3&":"&$D66&"."&E66&"."&F66&"."&G66&"."&H66 -> Aktywa:B.II.2.a.1 | K66: =H66 & ") " -> 1) | O66: =$K$66&teksty!$D$481 -> 1) do 12 miesięcy
A67: 18 | C67: 5 | D67: B | E67: II | F67: 2 | G67: =G66 -> a | H67: 2 | J67: =$J$3&":"&$D67&"."&E67&"."&F67&"."&G67&"."&H67 -> Aktywa:B.II.2.a.2 | K67: =H67 & ") " -> 2) | O67: =$K$67&teksty!$D$482 -> 2) powyżej 12 miesięcy
A68: 18 | C68: 4 | D68: B | E68: II | F68: 2 | G68: b | J68: =$J$3&":"&$D68&"."&E68&"."&F68&"."&G68 -> Aktywa:B.II.2.b | K68: =G68 &")" -> b) | N68: =K68 -> b) | O68: =teksty!$D$483 -> inne
A69: 18 | C69: 3 | D69: =D68 -> B | E69: II | F69: 3 | J69: =$J$3&":"&$D69&"."&E69&"."&F69 -> Aktywa:B.II.3 | K69: =F69 -> 3 | N69: 3 | O69: =teksty!$D$484 -> Należności od pozostałych jednostek | V69: =V70+V73+V74+V75 -> 0 | W69: =W70+W73+W74+W75 -> 0
A70: =(2+16) -> 18 | C70: 4 | D70: B | E70: II | F70: =F69 -> 3 | G70: a | J70: =$J$3&":"&$D70&"."&E70&"."&F70&"."&G70 -> Aktywa:B.II.3.a | K70: =G70 &")" -> a) | N70: a) | O70: =teksty!$D$485 -> z tytułu dostaw i usług, o okresie spłaty: | V70: =V71+V72 -> 0 | W70: =W71+W72 -> 0
A71: 18 | C71: 5 | D71: B | E71: II | F71: 3 | G71: =G70 -> a | H71: 1 | J71: =$J$3&":"&$D71&"."&E71&"."&F71&"."&G71&"."&H71 -> Aktywa:B.II.3.a.1 | K71: =H71 & ") " -> 1) | O71: =$K$71&teksty!$D$486 -> 1) do 12 miesięcy
A72: 18 | C72: 5 | D72: B | E72: II | F72: 3 | G72: =G71 -> a | H72: 2 | J72: =$J$3&":"&$D72&"."&E72&"."&F72&"."&G72&"."&H72 -> Aktywa:B.II.3.a.2 | K72: =H72 & ") " -> 2) | O72: =$K$72&teksty!$D$487 -> 2) powyżej 12 miesięcy
A73: 18 | C73: 4 | D73: B | E73: II | F73: 3 | G73: b | J73: =$J$3&":"&$D73&"."&E73&"."&F73&"."&G73 -> Aktywa:B.II.3.b | K73: =G73 &")" -> b) | N73: =K73 -> b) | O73: =teksty!$D$488 -> z tytułu podatków, dotacji, ceł, ubezpieczeń społecznych i zdrowotnych oraz innych tytułów publicznoprawnych
A74: 18 | C74: 4 | D74: B | E74: II | F74: 3 | G74: c | J74: =$J$3&":"&$D74&"."&E74&"."&F74&"."&G74 -> Aktywa:B.II.3.c | K74: =G74 &")" -> c) | N74: =K74 -> c) | O74: =teksty!$D$489 -> inne
A75: 18 | C75: 4 | D75: B | E75: II | F75: 3 | G75: d | J75: =$J$3&":"&$D75&"."&E75&"."&F75&"."&G75 -> Aktywa:B.II.3.d | K75: =G75 &")" -> d) | N75: =K75 -> d) | O75: =teksty!$D$490 -> dochodzone na drodze sądowej
A76: 18 | C76: 2 | D76: =D75 -> B | E76: III | J76: =$J$3&":"&$D76&"."&E76 -> Aktywa:B.III | K76: =E76 -> III | N76: III | O76: =teksty!$D$491 -> Inwestycje krótkoterminowe | V76: =V77+V92 -> 0 | W76: =W77+W92 -> 0
A77: 18 | C77: 3 | D77: B | E77: =E76 -> III | F77: 1 | J77: =$J$3&":"&$D77&"."&E77&"."&F77 -> Aktywa:B.III.1 | K77: =F77 -> 1 | N77: 1 | O77: =teksty!$D$492 -> Krótkoterminowe aktywa finansowe | V77: =V78+V83+V88 -> 0 | W77: =W78+W83+W88 -> 0
A78: 18 | C78: 4 | D78: B | E78: III | F78: =F77 -> 1 | G78: a | J78: =$J$3&":"&$D78&"."&E78&"."&F78&"."&G78 -> Aktywa:B.III.1.a | K78: =G78 &")" -> a) | N78: a) | O78: =teksty!$D$493 -> w jednostkach powiązanych | V78: =V79+V80+V81+V82 -> 0 | W78: =W79+W80+W81+W82 -> 0
A79: 18 | C79: 5 | D79: B | E79: III | F79: 1 | G79: =G78 -> a | H79: 1 | J79: =$J$3&":"&$D79&"."&E79&"."&F79&"."&G79&"."&H79 -> Aktywa:B.III.1.a.1 | K79: =H79 & ") " -> 1) | O79: =K79&teksty!$D494 -> 1) udziały lub akcje
A80: 18 | C80: 5 | D80: B | E80: III | F80: 1 | G80: =G79 -> a | H80: 2 | J80: =$J$3&":"&$D80&"."&E80&"."&F80&"."&G80&"."&H80 -> Aktywa:B.III.1.a.2 | K80: =H80 & ") " -> 2) | O80: =K80&teksty!$D495 -> 2) inne papiery wartościowe
A81: 18 | C81: 5 | D81: B | E81: III | F81: 1 | G81: =G80 -> a | H81: 3 | J81: =$J$3&":"&$D81&"."&E81&"."&F81&"."&G81&"."&H81 -> Aktywa:B.III.1.a.3 | K81: =H81 & ") " -> 3) | O81: =K81&teksty!$D496 -> 3) udzielone pożyczki
A82: 18 | C82: 5 | D82: B | E82: III | F82: 1 | G82: =G81 -> a | H82: 4 | J82: =$J$3&":"&$D82&"."&E82&"."&F82&"."&G82&"."&H82 -> Aktywa:B.III.1.a.4 | K82: =H82 & ") " -> 4) | O82: =K82&teksty!$D497 -> 4) inne krótkoterminowe aktywa finansowe
A83: 18 | C83: 4 | D83: B | E83: III | F83: 1 | G83: b | J83: =$J$3&":"&$D83&"."&E83&"."&F83&"."&G83 -> Aktywa:B.III.1.b | K83: =G83 &")" -> b) | N83: =K83 -> b) | O83: =teksty!$D$498 -> w pozostałych jednostkach | V83: =V84+V85+V86+V87 -> 0 | W83: =W84+W85+W86+W87 -> 0
A84: 18 | C84: 5 | D84: B | E84: III | F84: 1 | G84: =G83 -> b | H84: 1 | J84: =$J$3&":"&$D84&"."&E84&"."&F84&"."&G84&"."&H84 -> Aktywa:B.III.1.b.1 | K84: =H84 & ") " -> 1) | O84: =K84&teksty!$D499 -> 1) udziały lub akcje
A85: 18 | C85: 5 | D85: =D84 -> B | E85: =E84 -> III | F85: =F84 -> 1 | G85: =G84 -> b | H85: 2 | J85: =$J$3&":"&$D85&"."&E85&"."&F85&"."&G85&"."&H85 -> Aktywa:B.III.1.b.2 | K85: =H85 & ") " -> 2) | O85: =K85&teksty!$D500 -> 2) inne papiery wartościowe
A86: 18 | C86: 5 | D86: B | E86: III | F86: 1 | G86: b | H86: 3 | J86: =$J$3&":"&$D86&"."&E86&"."&F86&"."&G86&"."&H86 -> Aktywa:B.III.1.b.3 | K86: 3) | O86: =K86&teksty!$D501 -> 3) udzielone pożyczki
A87: 18 | C87: 5 | D87: B | E87: III | F87: 1 | G87: b | H87: 4 | J87: =$J$3&":"&$D87&"."&E87&"."&F87&"."&G87&"."&H87 -> Aktywa:B.III.1.b.4 | K87: 4) | O87: =K87&teksty!$D502 -> 4) inne krótkoterminowe aktywa finansowe
A88: 18 | C88: 4 | D88: =D87 -> B | E88: III | F88: 1 | G88: c | J88: =$J$3&":"&$D88&"."&E88&"."&F88&"."&G88 -> Aktywa:B.III.1.c | K88: =G88 &")" -> c) | N88: =K88 -> c) | O88: =teksty!$D$503 -> środki pieniężne i inne aktywa pieniężne | V88: =V89+V90+V91 -> 0 | W88: =W89+W90+W91 -> 0
A89: 18 | C89: 5 | D89: B | E89: III | F89: 1 | G89: =G88 -> c | H89: 1 | J89: =$J$3&":"&$D89&"."&E89&"."&F89&"."&G89&"."&H89 -> Aktywa:B.III.1.c.1 | K89: =H89 & ") " -> 1) | O89: =K89&teksty!$D504 -> 1) środki pieniężne w kasie i na rachunkach
A90: 18 | C90: 5 | D90: =D89 -> B | E90: =E89 -> III | F90: =F89 -> 1 | G90: =G89 -> c | H90: 2 | J90: =$J$3&":"&$D90&"."&E90&"."&F90&"."&G90&"."&H90 -> Aktywa:B.III.1.c.2 | K90: =H90 & ") " -> 2) | O90: =K90&teksty!$D505 -> 2) inne środki pieniężne
A91: 18 | C91: 5 | D91: B | E91: III | F91: 1 | G91: c | H91: 3 | J91: =$J$3&":"&$D91&"."&E91&"."&F91&"."&G91&"."&H91 -> Aktywa:B.III.1.c.3 | K91: 3) | O91: =K91&teksty!$D506 -> 3) inne aktywa pieniężne
A92: 18 | C92: 3 | D92: =D91 -> B | E92: =E91 -> III | F92: 2 | J92: =$J$3&":"&$D92&"."&E92&"."&F92 -> Aktywa:B.III.2 | K92: =F92 -> 2 | N92: =K92 -> 2 | O92: =teksty!$D$507 -> Inne inwestycje krótkoterminowe
A93: 18 | C93: 2 | D93: =D92 -> B | E93: IV | J93: =$J$3&":"&$D93&"."&E93 -> Aktywa:B.IV | K93: =E93 -> IV | N93: IV | O93: =teksty!$D$508 -> Krótkoterminowe rozliczenia międzyokresowe
A94: 18 | C94: 3 | D94: =D93 -> B | E94: =E93 -> IV | F94: j | J94: =$J$3&":"&$D94&"."&E94&"."&F94 -> Aktywa:B.IV.j | O94: =teksty!$D$509 -> w tym: aktywa z tytułu niezakończonych umów budowlanych
A95: 18 | C95: 1 | D95: C | J95: =$J$3&":"&$D95 -> Aktywa:C | K95: =D95 -> C | N95: C | O95: =teksty!$D$510 -> Należne wpłaty na kapitał (fundusz) podstawowy
A96: 18 | C96: 1 | D96: D | J96: =$J$3&":"&$D96 -> Aktywa:D | K96: =D96 -> D | N96: =K96 -> D | O96: =teksty!$D$511 -> Udziały (akcje) własne
A97: 18 | C97: 0 | O97: =teksty!$D$512 -> Aktywa razem (suma pozycji A, B, C i D) | V97: =V96+V95+V49+V6 -> 0 | W97: =W96+W95+W49+W6 -> 0 | Z97: =IF(WrfKwot,IF(AND(AF97=0,AG97=0,AH97=0),"=","!"),"") ->  | AA97: =teksty!$D$514 & ":" -> Pasywa: | AB97: =V172 -> 0 | AC97: =W172 -> 0 | AD97: =X172 -> 0 | AF97: =ROUND(V97-AB97,2) -> 0 | AG97: =ROUND(W97-AC97,2) -> 0 | AH97: =ROUND(X97-AD97,2) -> 0
A98: 18 | C98: 0
A99: 18 | C99: 0
A100: 18 | B100: P | C100: 0
A101: 18 | C101: 0 | J101: Pasywa | N101: =teksty!$D$514 -> Pasywa | U101: =$U$5 ->  | V101: =$V$5 -> Okres bieżący | W101: =$W$5 -> Okres poprzedni | X101: =teksty!$D$292 -> Przekszt. dane porów. za poprzedni okres | AB101: `
A102: 18 | C102: =COUNTA(D102:H102) -> 1 | D102: A | J102: =$J$101&":"&$D102 -> Pasywa:A | K102: =D102 -> A | N102: =K102 -> A | O102: =teksty!$D$515 -> Kapitał (fundusz) własny | V102: =V103+V104+V108+V110+V115+V120+V121 -> 0 | W102: =W103+W104+W108+W110+W115+W120+W121 -> 0
A103: 18 | C103: 2 | D103: =D102 -> A | E103: I | J103: =$J$101&":"&$D103&"."&E103 -> Pasywa:A.I | K103: =E103 -> I | N103: I | O103: =teksty!$D$516 -> Kapitał (fundusz) podstawowy
A104: 18 | C104: 2 | D104: A | E104: II | J104: =$J$101&":"&$D104&"."&E104 -> Pasywa:A.II | K104: =E104 -> II | N104: =K104 -> II | O104: =teksty!$D$517 -> Kapitał (fundusz) zapasowy, w tym:
A105: 18 | C105: 4 | D105: A | E105: =E104 -> II | F105: 1 | G105: X | J105: =$J$101&":"&$D105&"."&E105&"."&F105 -> Pasywa:A.II.1 | K105: =F105 -> 1 | O105: =" – " & teksty!$D$518 -> – nadwyżka wartości sprzedaży (wartości emisyjnej) nad wartością nominalną udziałów (akcji)
A106: 18 | C106: =COUNTA(D106:H106) -> 4 | D106: A | E106: =E105 -> II | F106: 2 | G106: X | J106: =$J$101&":"&$D106&"."&E106&"."&F106 -> Pasywa:A.II.2 | K106: =F106 -> 2 | O106: =" – " & teksty!$D$519 -> – kwota zysku wypracowanego w latach przed opodatkowaniem ryczałtem
A107: 18 | C107: =COUNTA(D107:H107) -> 4 | D107: A | E107: =E106 -> II | F107: 3 | G107: X | J107: =$J$101&":"&$D107&"."&E107&"."&F107 -> Pasywa:A.II.3 | K107: =F107 -> 3 | O107: =IF($O$106 = " – " & teksty!$D$519," – " & teksty!$D$1002,"") -> – kwota zysku wypracowanego w latach opodatkowania ryczałtem
A108: 18 | C108: 2 | D108: =D105 -> A | E108: III | J108: =$J$101&":"&$D108&"."&E108 -> Pasywa:A.III | K108: =E108 -> III | N108: =K108 -> III | O108: =teksty!$D$520 -> Kapitał (fundusz) z aktualizacji wyceny, w tym:
A109: 18 | C109: 4 | D109: A | E109: =E108 -> III | F109: 1 | G109: X | J109: =$J$101&":"&$D109&"."&E109&"."&F109 -> Pasywa:A.III.1 | K109: =F109 -> 1 | O109: =" – " & teksty!$D$521 -> – z tytułu aktualizacji wartości godziwej
A110: 18 | C110: 2 | D110: A | E110: IV | J110: =$J$101&":"&$D110&"."&E110 -> Pasywa:A.IV | K110: =E110 -> IV | N110: =K110 -> IV | O110: =teksty!$D$522 -> Pozostałe kapitały (fundusze) rezerwowe, w tym:
A111: 18 | C111: 4 | D111: A | E111: =E110 -> IV | F111: 1 | G111: X | J111: =$J$101&":"&$D111&"."&E111&"."&F111 -> Pasywa:A.IV.1 | K111: =F111 -> 1 | O111: =" – " & teksty!$D$523 -> – tworzone zgodnie z umową (statutem) spółki
A112: 18 | C112: 4 | D112: A | E112: =E111 -> IV | F112: 2 | G112: X | J112: =$J$101&":"&$D112&"."&E112&"."&F112 -> Pasywa:A.IV.2 | K112: =F112 -> 2 | O112: =" – " & teksty!$D$524 -> – na udziały (akcje) własne
A113: 18 | C113: 4 | D113: A | E113: =E112 -> IV | F113: 3 | G113: X | J113: =$J$101&":"&$D113&"."&E113&"."&F113 -> Pasywa:A.IV.3 | K113: =F113 -> 3 | O113: =" – " & teksty!$D$525 -> – kwota zysku wypracowanego w latach przed opodatkowaniem ryczałtem
A114: 18 | C114: =COUNTA(D114:H114) -> 4 | D114: A | E114: =E113 -> IV | F114: 4 | G114: X | J114: =$J$101&":"&$D114&"."&E114&"."&F114 -> Pasywa:A.IV.4 | K114: =F114 -> 4 | O114: =IF($O$113 = " – " & teksty!$D$525," – " & teksty!$D$1003,"") -> – kwota zysku wypracowanego w latach opodatkowania ryczałtem
A115: 18 | C115: 2 | D115: =D112 -> A | E115: V | J115: =$J$101&":"&$D115&"."&E115 -> Pasywa:A.V | K115: =E115 -> V | N115: =K115 -> V | O115: =teksty!$D$526 -> Zysk (strata) z lat ubiegłych, w tym:
A116: 18 | C116: =COUNTA(D116:H116) -> 4 | D116: A | E116: =E115 -> V | F116: 1 | G116: X | J116: =$J$101&":"&$D116&"."&E116&"."&F116 -> Pasywa:A.V.1 | K116: =F116 -> 1 | O116: =" – " & teksty!$D$527 -> – kwota niepodzielonych zysków w latach przed opodatkowaniem ryczałtem
A117: 18 | C117: 4 | D117: A | E117: =E116 -> V | F117: 2 | G117: X | J117: =$J$101&":"&$D117&"."&E117&"."&F117 -> Pasywa:A.V.2 | K117: =F117 -> 2 | O117: =IF($O$116 = " – " & teksty!$D$527," – " & teksty!$D$528,"") -> – kwota niepokrytych strat poniesionych w latach przed opodatkowaniem ryczałtem
A118: 18 | C118: =COUNTA(D118:H118) -> 4 | D118: A | E118: =E117 -> V | F118: 3 | G118: X | J118: =$J$101&":"&$D118&"."&E118&"."&F118 -> Pasywa:A.V.3 | K118: =F118 -> 3 | O118: =IF($O$116 = " – " & teksty!$D$527," – " & teksty!$D$1004,"") -> – kwota niepodzielonych zysków z lat opodatkowania ryczałtem
A119: 18 | C119: 4 | D119: A | E119: =E118 -> V | F119: 4 | G119: X | J119: =$J$101&":"&$D119&"."&E119&"."&F119 -> Pasywa:A.V.4 | K119: =F119 -> 4 | O119: =IF($O$116 = " – " & teksty!$D$527," – " & teksty!$D$1005,"") -> – kwota niepokrytych strat poniesionych w latach opodatkowania ryczałtem
A120: 18 | C120: 2 | D120: =D115 -> A | E120: VI | J120: =$J$101&":"&$D120&"."&E120 -> Pasywa:A.VI | K120: =E120 -> VI | N120: =K120 -> VI | O120: =teksty!$D$529 -> Zysk (strata) netto
A121: 18 | C121: 2 | D121: A | E121: VII | J121: =$J$101&":"&$D121&"."&E121 -> Pasywa:A.VII | K121: =E121 -> VII | N121: =K121 -> VII | O121: =teksty!$D$530 -> Odpisy z zysku netto w ciągu roku obrotowego (wielkość ujemna)
A122: 18 | C122: 1 | D122: B | J122: =$J$101&":"&$D122 -> Pasywa:B | K122: =D122 -> B | N122: B | O122: =teksty!$D$531 -> Zobowiązania i rezerwy na zobowiązania | V122: =V123+V132+V141+V166 -> 0 | W122: =W123+W132+W141+W166 -> 0
A123: 18 | C123: 2 | D123: =D122 -> B | E123: I | J123: =$J$101&":"&$D123&"."&E123 -> Pasywa:B.I | K123: =E123 -> I | N123: I | O123: =teksty!$D$532 -> Rezerwy na zobowiązania | V123: =V124+V125+V128 -> 0 | W123: =W124+W125+W128 -> 0
A124: 18 | C124: 3 | D124: B | E124: =E123 -> I | F124: 1 | J124: =$J$101&":"&$D124&"."&E124&"."&F124 -> Pasywa:B.I.1 | K124: =F124 -> 1 | N124: =K124 -> 1 | O124: =teksty!$D$533 -> Rezerwa z tytułu odroczonego podatku dochodowego
A125: 18 | C125: 3 | D125: B | E125: I | F125: 2 | J125: =$J$101&":"&$D125&"."&E125&"."&F125 -> Pasywa:B.I.2 | K125: 2 | N125: =K125 -> 2 | O125: =teksty!$D$534 -> Rezerwa na świadczenia emerytalne i podobne | V125: =V126+V127 -> 0 | W125: =W126+W127 -> 0
A126: 18 | C126: 4 | D126: B | E126: I | F126: =F125 -> 2 | G126: 1 | J126: =$J$101&":"&$D126&"."&E126&"."&F126&"."&G126 -> Pasywa:B.I.2.1 | K126: 2 | O126: =" – " & teksty!$D$535 -> – długoterminowa
A127: 18 | C127: 4 | D127: B | E127: I | F127: =F126 -> 2 | G127: 2 | J127: =$J$101&":"&$D127&"."&E127&"."&F127&"."&G127 -> Pasywa:B.I.2.2 | K127: 2 | O127: =" – " & teksty!$D$536 -> – krótkoterminowa
A128: 18 | C128: 3 | D128: B | E128: I | F128: 3 | J128: =$J$101&":"&$D128&"."&E128&"."&F128 -> Pasywa:B.I.3 | K128: 3 | N128: =K128 -> 3 | O128: =teksty!$D$537 -> Pozostałe rezerwy | V128: =V129+V130 -> 0 | W128: =W129+W130 -> 0
A129: 18 | C129: 4 | D129: B | E129: I | F129: =F128 -> 3 | G129: 1 | J129: =$J$101&":"&$D129&"."&E129&"."&F129&"."&G129 -> Pasywa:B.I.3.1 | K129: 3 | O129: =" – " & teksty!$D$538 -> – długoterminowe
A130: 18 | C130: 4 | D130: B | E130: I | F130: =F129 -> 3 | G130: 2 | I130: =$N$101 & teksty!$D$284 & 1 -> Pasywa, koniec strony 1 | J130: =$J$101&":"&$D130&"."&E130&"."&F130&"."&G130 -> Pasywa:B.I.3.2 | K130: 3 | O130: =" – " & teksty!$D$539 -> – krótkoterminowe
A131: 18 | B131: P | C131: =COUNTA(D131:H131) -> 3 | D131: B | E131: I | F131: 3 | N131: =teksty!D549 & O122 &teksty!$D$418 -> Pasywa (c.d. "Zobowiązania i rezerwy na zobowiązania") | U131: =$U$5 ->  | V131: =$V$5 -> Okres bieżący | W131: =$W$5 -> Okres poprzedni | X131: =teksty!$D$292 -> Przekszt. dane porów. za poprzedni okres
A132: 18 | C132: 2 | D132: B | E132: II | J132: =$J$101&":"&$D132&"."&E132 -> Pasywa:B.II | K132: =E132 -> II | N132: =K132 -> II | O132: =teksty!$D$540 -> Zobowiązania długoterminowe | V132: =V133+V134+V135 -> 0 | W132: =W133+W134+W135 -> 0 | Z132: =teksty!$D$285 -> ukryty wiersz powyżej zawiera nagłówek dla kolejnej strony
A133: 18 | C133: 3 | D133: B | E133: =E132 -> II | F133: 1 | J133: =$J$101&":"&$D133&"."&E133&"."&F133 -> Pasywa:B.II.1 | K133: =F133 -> 1 | N133: =K133 -> 1 | O133: =teksty!$D$541 -> Wobec jednostek powiązanych
A134: 18 | C134: 3 | D134: =D133 -> B | E134: =E133 -> II | F134: 2 | J134: =$J$101&":"&$D134&"."&E134&"."&F134 -> Pasywa:B.II.2 | K134: =F134 -> 2 | N134: =K134 -> 2 | O134: =teksty!$D$542 -> Wobec pozostałych jednostek, w których jednostka posiada zaangażowanie w kapitale
A135: 18 | C135: 3 | D135: B | E135: II | F135: 3 | J135: =$J$101&":"&$D135&"."&E135&"."&F135 -> Pasywa:B.II.3 | K135: 3 | N135: 3 | O135: =teksty!$D$543 -> Wobec pozostałych jednostek | V135: =V136+V137+V138+V139+V140 -> 0 | W135: =W136+W137+W138+W139+W140 -> 0
A136: 18 | C136: 4 | D136: =D135 -> B | E136: II | F136: 3 | G136: a | J136: =$J$101&":"&$D136&"."&E136&"."&F136&"."&G136 -> Pasywa:B.II.3.a | K136: =G136 &")" -> a) | N136: a) | O136: =teksty!$D$544 -> kredyty i pożyczki
A137: 18 | C137: 4 | D137: B | E137: II | F137: 3 | G137: b | J137: =$J$101&":"&$D137&"."&E137&"."&F137&"."&G137 -> Pasywa:B.II.3.b | K137: =G137 &")" -> b) | N137: =K137 -> b) | O137: =teksty!$D$545 -> z tytułu emisji dłużnych papierów wartościowych
A138: 18 | C138: 4 | D138: B | E138: II | F138: 3 | G138: c | J138: =$J$101&":"&$D138&"."&E138&"."&F138&"."&G138 -> Pasywa:B.II.3.c | K138: =G138 &")" -> c) | N138: =K138 -> c) | O138: =teksty!$D$546 -> inne zobowiązania finansowe
A139: 18 | C139: 4 | D139: =D138 -> B | E139: =E138 -> II | F139: =F138 -> 3 | G139: d | J139: =$J$101&":"&$D139&"."&E139&"."&F139&"."&G139 -> Pasywa:B.II.3.d | K139: =G139 &")" -> d) | N139: =K139 -> d) | O139: =teksty!$D$547 -> zobowiązania wekslowe
A140: 18 | C140: 4 | D140: B | E140: II | F140: 3 | G140: e | J140: =$J$101&":"&$D140&"."&E140&"."&F140&"."&G140 -> Pasywa:B.II.3.e | K140: e) | N140: e) | O140: =teksty!$D$548 -> inne
A141: 18 | C141: 2 | D141: B | E141: III | J141: =$J$101&":"&$D141&"."&E141 -> Pasywa:B.III | K141: =E141 -> III | N141: =K141 -> III | O141: =teksty!$D$550 -> Zobowiązania krótkoterminowe | V141: =V142+V147+V152+V164 -> 0 | W141: =W142+W147+W152+W164 -> 0
A142: 18 | C142: 3 | D142: =D141 -> B | E142: =E141 -> III | F142: 1 | J142: =$J$101&":"&$D142&"."&E142&"."&F142 -> Pasywa:B.III.1 | K142: =F142 -> 1 | N142: 1 | O142: =teksty!$D$551 -> Zobowiązania wobec jednostek powiązanych | V142: =V143+V146 -> 0 | W142: =W143+W146 -> 0
A143: =(2+16) -> 18 | C143: 4 | D143: =D142 -> B | E143: III | F143: 1 | G143: a | J143: =$J$101&":"&$D143&"."&E143&"."&F143&"."&G143 -> Pasywa:B.III.1.a | K143: =G143 &")" -> a) | N143: a) | O143: =teksty!$D$552 -> z tytułu dostaw i usług, o okresie wymagalności: | V143: =V144+V145 -> 0 | W143: =W144+W145 -> 0
A144: 18 | C144: 5 | D144: B | E144: III | F144: 1 | G144: =G143 -> a | H144: 1 | J144: =$J$101&":"&$D144&"."&E144&"."&F144&"."&G144&"."&H144 -> Pasywa:B.III.1.a.1 | K144: =H144 & ") " -> 1) | O144: =$K$144&teksty!$D$553 -> 1) do 12 miesięcy
A145: 18 | C145: 5 | D145: B | E145: III | F145: 1 | G145: =G144 -> a | H145: 2 | J145: =$J$101&":"&$D145&"."&E145&"."&F145&"."&G145&"."&H145 -> Pasywa:B.III.1.a.2 | K145: =H145 & ") " -> 2) | O145: =$K$145&teksty!$D$554 -> 2) powyżej 12 miesięcy
A146: 18 | C146: 4 | D146: B | E146: III | F146: 1 | G146: b | J146: =$J$101&":"&$D146&"."&E146&"."&F146&"."&G146 -> Pasywa:B.III.1.b | K146: =G146 &")" -> b) | N146: =K146 -> b) | O146: =teksty!$D$555 -> inne
A147: 18 | C147: 3 | D147: =D146 -> B | E147: =E146 -> III | F147: 2 | J147: =$J$101&":"&$D147&"."&E147&"."&F147 -> Pasywa:B.III.2 | K147: =F147 -> 2 | N147: 2 | O147: =teksty!$D$556 -> Zobowiązania wobec pozostałych jednostek, w których jednostka posiada zaangażowanie w kapitale | V147: =V148+V151 -> 0 | W147: =W148+W151 -> 0
A148: 18 | C148: 4 | D148: =D147 -> B | E148: III | F148: 2 | G148: a | J148: =$J$101&":"&$D148&"."&E148&"."&F148&"."&G148 -> Pasywa:B.III.2.a | K148: =G148 &")" -> a) | N148: a) | O148: =teksty!$D$557 -> z tytułu dostaw i usług, o okresie wymagalności: | V148: =V149+V150 -> 0 | W148: =W149+W150 -> 0
A149: 18 | C149: 5 | D149: B | E149: III | F149: 2 | G149: =G148 -> a | H149: 1 | J149: =$J$101&":"&$D149&"."&E149&"."&F149&"."&G149&"."&H149 -> Pasywa:B.III.2.a.1 | K149: =H149 & ") " -> 1) | O149: =$K$149&teksty!$D$558 -> 1) do 12 miesięcy
A150: 18 | C150: 5 | D150: B | E150: III | F150: 2 | G150: =G149 -> a | H150: 2 | J150: =$J$101&":"&$D150&"."&E150&"."&F150&"."&G150&"."&H150 -> Pasywa:B.III.2.a.2 | K150: =H150 & ") " -> 2) | O150: =$K$150&teksty!$D$559 -> 2) powyżej 12 miesięcy
A151: 18 | C151: 4 | D151: B | E151: III | F151: 2 | G151: b | J151: =$J$101&":"&$D151&"."&E151&"."&F151&"."&G151 -> Pasywa:B.III.2.b | K151: =G151 &")" -> b) | N151: =K151 -> b) | O151: =teksty!$D$560 -> inne
A152: 18 | C152: 3 | D152: =D151 -> B | E152: =E151 -> III | F152: 3 | J152: =$J$101&":"&$D152&"."&E152&"."&F152 -> Pasywa:B.III.3 | K152: =F152 -> 3 | N152: 3 | O152: =teksty!$D$561 -> Zobowiązania wobec pozostałych jednostek | V152: =V153+V154+V155+V156+V159+V160+V161+V162+V163 -> 0 | W152: =W153+W154+W155+W156+W159+W160+W161+W162+W163 -> 0
A153: 18 | C153: 4 | D153: =D152 -> B | E153: III | F153: 3 | G153: a | J153: =$J$101&":"&$D153&"."&E153&"."&F153&"."&G153 -> Pasywa:B.III.3.a | K153: =G153 &")" -> a) | N153: =K153 -> a) | O153: =teksty!$D$562 -> kredyty i pożyczki
A154: 18 | C154: 4 | D154: B | E154: III | F154: 3 | G154: b | J154: =$J$101&":"&$D154&"."&E154&"."&F154&"."&G154 -> Pasywa:B.III.3.b | K154: =G154 &")" -> b) | N154: =K154 -> b) | O154: =teksty!$D$563 -> z tytułu emisji dłużnych papierów wartościowych
A155: 18 | C155: 4 | D155: B | E155: III | F155: 3 | G155: c | J155: =$J$101&":"&$D155&"."&E155&"."&F155&"."&G155 -> Pasywa:B.III.3.c | K155: =G155 &")" -> c) | N155: =K155 -> c) | O155: =teksty!$D$564 -> inne zobowiązania finansowe
A156: 18 | C156: 4 | D156: B | E156: III | F156: 3 | G156: d | J156: =$J$101&":"&$D156&"."&E156&"."&F156&"."&G156 -> Pasywa:B.III.3.d | K156: =G156 &")" -> d) | N156: =K156 -> d) | O156: =teksty!$D$565 -> z tytułu dostaw i usług, o okresie wymagalności: | V156: =V157+V158 -> 0 | W156: =W157+W158 -> 0
A157: 18 | C157: 5 | D157: B | E157: III | F157: 3 | G157: =G156 -> d | H157: 1 | J157: =$J$101&":"&$D157&"."&E157&"."&F157&"."&G157&"."&H157 -> Pasywa:B.III.3.d.1 | K157: =H157 & ") " -> 1) | O157: =$K$157&teksty!$D$566 -> 1) do 12 miesięcy
A158: 18 | C158: 5 | D158: B | E158: III | F158: 3 | G158: =G157 -> d | H158: 2 | J158: =$J$101&":"&$D158&"."&E158&"."&F158&"."&G158&"."&H158 -> Pasywa:B.III.3.d.2 | K158: =H158 & ") " -> 2) | O158: =$K$158&teksty!$D$567 -> 2) powyżej 12 miesięcy
A159: 18 | C159: 4 | D159: B | E159: III | F159: 3 | G159: e | J159: =$J$101&":"&$D159&"."&E159&"."&F159&"."&G159 -> Pasywa:B.III.3.e | K159: =G159 &")" -> e) | N159: =K159 -> e) | O159: =teksty!$D$568 -> zaliczki otrzymane na dostawy i usługi
A160: 18 | C160: 4 | D160: B | E160: III | F160: 3 | G160: f | J160: =$J$101&":"&$D160&"."&E160&"."&F160&"."&G160 -> Pasywa:B.III.3.f | K160: =G160 &")" -> f) | N160: =K160 -> f) | O160: =teksty!$D$569 -> zobowiązania wekslowe
A161: 18 | C161: 4 | D161: =D160 -> B | E161: =E160 -> III | F161: =F160 -> 3 | G161: g | J161: =$J$101&":"&$D161&"."&E161&"."&F161&"."&G161 -> Pasywa:B.III.3.g | K161: =G161 &")" -> g) | N161: =K161 -> g) | O161: =teksty!$D$570 -> z tytułu podatków, ceł, ubezpieczeń społecznych i zdrowotnych oraz innych tytułów publicznoprawnych
A162: 18 | C162: 4 | D162: B | E162: III | F162: 3 | G162: h | J162: =$J$101&":"&$D162&"."&E162&"."&F162&"."&G162 -> Pasywa:B.III.3.h | K162: h) | N162: h) | O162: =teksty!$D$571 -> z tytułu wynagrodzeń
A163: 18 | C163: 4 | D163: =D162 -> B | E163: =E162 -> III | F163: =F162 -> 3 | G163: i | J163: =$J$101&":"&$D163&"."&E163&"."&F163&"."&G163 -> Pasywa:B.III.3.i | K163: =G163 &")" -> i) | N163: =K163 -> i) | O163: =teksty!$D$572 -> inne
A164: 18 | C164: 3 | D164: B | E164: III | F164: 4 | I164: =$N$101 & teksty!$D$284 & 2 -> Pasywa, koniec strony 2 | J164: =$J$101&":"&$D164&"."&E164&"."&F164 -> Pasywa:B.III.4 | K164: =F164 -> 4 | N164: 4 | O164: =teksty!$D$573 -> Fundusze specjalne
A165: 18 | B165: P | C165: =COUNTA(D165:H165) -> 3 | D165: B | E165: III | F165: 4 | J165: =$J$101&":"&$D165&"."&E165&"."&F165 -> Pasywa:B.III.4 | K165: 4 | N165: =teksty!D549 & O122 &teksty!$D$418 -> Pasywa (c.d. "Zobowiązania i rezerwy na zobowiązania") | U165: =$U$5 ->  | V165: =$V$5 -> Okres bieżący | W165: =$W$5 -> Okres poprzedni | X165: =teksty!$D$292 -> Przekszt. dane porów. za poprzedni okres
A166: 18 | C166: 2 | D166: =D164 -> B | E166: IV | J166: =$J$101&":"&$D166&"."&E166 -> Pasywa:B.IV | K166: =E166 -> IV | N166: IV | O166: =teksty!$D$574 -> Rozliczenia międzyokresowe | V166: =V167+V168 -> 0 | W166: =W167+W168 -> 0 | Z166: =teksty!$D$285 -> ukryty wiersz powyżej zawiera nagłówek dla kolejnej strony
A167: 18 | C167: 3 | D167: =D166 -> B | E167: =E166 -> IV | F167: 1 | J167: =$J$101&":"&$D167&"."&E167&"."&F167 -> Pasywa:B.IV.1 | K167: =F167 -> 1 | N167: =K167 -> 1 | O167: =teksty!$D$575 -> Ujemna wartość firmy
A168: 18 | C168: 3 | D168: =D167 -> B | E168: =E167 -> IV | F168: 2 | J168: =$J$101&":"&$D168&"."&E168&"."&F168 -> Pasywa:B.IV.2 | K168: =F168 -> 2 | N168: =K168 -> 2 | O168: =teksty!$D$576 -> Inne rozliczenia międzyokresowe | V168: =V169+V170+V171 -> 0 | W168: =W169+W170+W171 -> 0
A169: 18 | C169: 4 | D169: =D168 -> B | E169: IV | F169: 2 | G169: 1 | J169: =$J$101&":"&$D169&"."&E169&"."&F169&"."&G169 -> Pasywa:B.IV.2.1 | K169: =F169 -> 2 | O169: =" – " & teksty!$D$577 -> – długoterminowe
A170: 18 | C170: 4 | D170: B | E170: IV | F170: 2 | G170: 2 | J170: =$J$101&":"&$D170&"."&E170&"."&F170&"."&G170 -> Pasywa:B.IV.2.2 | K170: =F170 -> 2 | O170: =" – " & teksty!$D$578 -> – krótkoterminowe
A171: 18 | C171: 4 | D171: B | E171: IV | F171: 2 | G171: 3 | J171: =$J$101&":"&$D171&"."&E171&"."&F171&"."&G171 -> Pasywa:B.IV.2.3 | K171: =F171 -> 2 | O171: =" – " & teksty!$D$579 -> – rozliczenia międzyokresowe umów budowlanych
A172: 18 | C172: 0 | O172: =teksty!$D$580 -> Pasywa razem (suma pozycji A i B) | V172: =V122+V102 -> 0 | W172: =W122+W102 -> 0 | Z172: =IF(WrfKwot,IF(AND(AF172=0,AG172=0,AH172=0),"=","!"),"") ->  | AA172: =teksty!$D$420 & ":" -> Aktywa: | AB172: =V97 -> 0 | AC172: =W97 -> 0 | AD172: =X97 -> 0 | AF172: =ROUND(V172-AB172,2) -> 0 | AG172: =ROUND(W172-AC172,2) -> 0 | AH172: =ROUND(X172-AD172,2) -> 0
A173: 18 | C173: 0
A174: 18 | C174: 0
A175: =4 -> 4 | C175: 0 | J175: JednostkaMala | N175: =teksty!$D$420 -> Aktywa | U175: =$U$5 ->  | V175: =$V$5 -> Okres bieżący | W175: =$W$5 -> Okres poprzedni | X175: =teksty!$D$292 -> Przekszt. dane porów. za poprzedni okres
A176: =4 -> 4 | C176: =COUNTA(D176:H176) -> 1 | D176: A | J176: =$J$3&":"&$D176 -> Aktywa:A | K176: =D176 -> A | N176: =K176 -> A | O176: =teksty!$D$421 -> Aktywa trwałe | V176: =V177+V178+V181+V182+V185 -> 0 | W176: =W177+W178+W181+W182+W185 -> 0
A177: =4 -> 4 | C177: =COUNTA(D177:H177) -> 2 | D177: =D176 -> A | E177: I | J177: =$J$3&":"&$D177&"."&E177 -> Aktywa:A.I | K177: =E177 -> I | N177: =K177 -> I | O177: =teksty!$D$422 -> Wartości niematerialne i prawne
A178: =4 -> 4 | C178: 2 | D178: A | E178: II | J178: =$J$3&":"&$D178&"."&E178 -> Aktywa:A.II | K178: =E178 -> II | N178: =K178 -> II | O178: =teksty!$D$427 & inc -> Rzeczowe aktywa trwałe, w tym:
A179: =4 -> 4 | C179: 3 | D179: A | E179: =E178 -> II | F179: 1 | J179: =$J$3&":"&$D179&"."&E179&"."&F179 -> Aktywa:A.II.1 | K179: =F179 -> 1 | O179: =" – " & LOWER(teksty!$D$428) -> – środki trwałe
A180: =4 -> 4 | C180: =COUNTA(D180:H180) -> 3 | D180: A | E180: II | F180: 2 | J180: =$J$3&":"&$D180&"."&E180&"."&F180 -> Aktywa:A.II.2 | K180: =F180 -> 2 | O180: =" – " & LOWER(teksty!$D$434) -> – środki trwałe w budowie
A181: =4 -> 4 | C181: 2 | D181: A | E181: III | J181: =$J$3&":"&$D181&"."&E181 -> Aktywa:A.III | K181: =E181 -> III | N181: III | O181: =teksty!$D$436 -> Należności długoterminowe
A182: =4 -> 4 | C182: =COUNTA(D182:H182) -> 2 | D182: A | E182: IV | J182: =$J$3&":"&$D182&"."&E182 -> Aktywa:A.IV | K182: =E182 -> IV | N182: IV | O182: =teksty!$D$440 & inc -> Inwestycje długoterminowe, w tym:
A183: =4 -> 4 | C183: 3 | D183: =D182 -> A | E183: IV | F183: 1 | J183: =$J$3&":"&$D183&"."&E183&"."&F183 -> Aktywa:A.IV.1 | K183: =F183 -> 1 | O183: =" – " & LOWER(teksty!$D$441) -> – nieruchomości
A184: =4 -> 4 | C184: 3 | D184: A | E184: IV | F184: 2 | J184: =$J$3&":"&$D184&"."&E184&"."&F184 -> Aktywa:A.IV.2 | K184: =F184 -> 2 | O184: =" – " & LOWER(teksty!$D$443) -> – długoterminowe aktywa finansowe
A185: =4 -> 4 | C185: 2 | D185: =D184 -> A | E185: V | J185: =$J$3&":"&$D185&"."&E185 -> Aktywa:A.V | K185: =E185 -> V | N185: =K185 -> V | O185: =teksty!$D$461 -> Długoterminowe rozliczenia międzyokresowe
A186: =4 -> 4 | C186: 1 | D186: B | J186: =$J$3&":"&$D186 -> Aktywa:B | K186: =D186 -> B | N186: B | O186: =teksty!$D$464 -> Aktywa obrotowe | V186: =V187+V188+V192+V195 -> 0 | W186: =W187+W188+W192+W195 -> 0
A187: =4 -> 4 | C187: 2 | D187: =D186 -> B | E187: I | J187: =$J$3&":"&$D187&"."&E187 -> Aktywa:B.I | K187: =E187 -> I | N187: I | O187: =teksty!$D$465 -> Zapasy
A188: =4 -> 4 | C188: 2 | D188: B | E188: II | J188: =$J$3&":"&$D188&"."&E188 -> Aktywa:B.II | K188: =E188 -> II | N188: II | O188: =teksty!$D$472 & inc -> Należności krótkoterminowe, w tym:
A189: =4 -> 4 | C189: =COUNTA(D189:G189) -> 3 | D189: B | E189: II | F189: a | J189: =$J$3&":"&$D189&"."&E189&"."&F189 -> Aktywa:B.II.a | K189: =F189 &")" -> a) | N189: a) | O189: =teksty!$D$474 -> z tytułu dostaw i usług, o okresie spłaty: | V189: =V190+V191 -> 0 | W189: =W190+W191 -> 0
A190: =4 -> 4 | C190: =COUNTA(D190:G190) -> 4 | D190: B | E190: =E189 -> II | F190: =F189 -> a | G190: 1 | J190: =$J$3&":"&$D190&"."&E190&"."&F190&"."&G190 -> Aktywa:B.II.a.1 | K190: =G190 & ") " -> 1) | O190: =" – " & teksty!$D$475 -> – do 12 miesięcy
A191: =4 -> 4 | C191: =COUNTA(D191:G191) -> 4 | D191: B | E191: =E190 -> II | F191: =F190 -> a | G191: 2 | J191: =$J$3&":"&$D191&"."&E191&"."&F191&"."&G191 -> Aktywa:B.II.a.2 | K191: =G191 & ") " -> 2) | O191: =" – " & teksty!$D$476 -> – powyżej 12 miesięcy
A192: =4 -> 4 | C192: 2 | D192: B | E192: III | J192: =$J$3&":"&$D192&"."&E192 -> Aktywa:B.III | K192: =E192 -> III | N192: =K192 -> III | O192: =teksty!$D$491 & inc -> Inwestycje krótkoterminowe, w tym:
A193: =4 -> 4 | C193: 3 | D193: =D192 -> B | E193: III | F193: a | J193: =$J$3&":"&$D193&"."&E193&"."&F193 -> Aktywa:B.III.a | K193: =F193 &")" -> a) | N193: a) | O193: =teksty!$D$492 & inc -> Krótkoterminowe aktywa finansowe, w tym:
A194: =4 -> 4 | C194: 4 | D194: B | E194: III | F194: a | G194: 1 | J194: =$J$3&":"&$D194&"."&E194&"."&F194&"."&G194 -> Aktywa:B.III.a.1 | K194: =G194 &")" -> 1) | O194: =" – " &teksty!$D$504 -> – środki pieniężne w kasie i na rachunkach
A195: =4 -> 4 | C195: 2 | D195: B | E195: IV | J195: =$J$3&":"&$D195&"."&E195 -> Aktywa:B.IV | K195: =E195 -> IV | N195: =K195 -> IV | O195: =teksty!$D$508 -> Krótkoterminowe rozliczenia międzyokresowe
A196: =4 -> 4 | C196: 1 | D196: C | J196: =$J$3&":"&$D196 -> Aktywa:C | K196: =D196 -> C | N196: C | O196: =teksty!$D$510 -> Należne wpłaty na kapitał (fundusz) podstawowy
A197: =4 -> 4 | C197: 1 | D197: D | J197: =$J$3&":"&$D197 -> Aktywa:D | K197: =D197 -> D | N197: D | O197: =teksty!$D$511 -> Udziały (akcje) własne
A198: =4 -> 4 | C198: 0 | O198: =teksty!$D$512 -> Aktywa razem (suma pozycji A, B, C i D) | V198: =V197+V196+V186+V176 -> 0 | W198: =W197+W196+W186+W176 -> 0 | Z198: =IF(WrfKwot,IF(AND(AF198=0,AG198=0,AH198=0),"=","!"),"") ->  | AA198: =teksty!$D$514 & ":" -> Pasywa: | AB198: =V233 -> 0 | AC198: =W233 -> 0 | AD198: =X233 -> 0 | AF198: =ROUND(V198-AB198,2) -> 0 | AG198: =ROUND(W198-AC198,2) -> 0 | AH198: 0
A199: =4 -> 4 | C199: 0
A200: =4 -> 4 | C200: 0 | I200: =M2 & teksty!$D$284 & 1 -> Bilans, koniec strony 1
A201: =4 -> 4 | B201: P | C201: 0
... 87 more rows

Sheet RZiS
A1: RZiS | C1: Poziom | F1: Składniki | J1: (pełen symbol) | K1: (wyświetlana etykieta) | R1: 3 | S1: =VLOOKUP(WybranaPozycja,teksty!B131:F136,2) -> JednostkaMikro | U1: 2 | V1: =VLOOKUP(WybranaPodpozycja,teksty!B140:F141,2) -> Porownawczy | W1: =IF(WybranaPodpozycja=1,1,0) -> 0 | X1: =IF(WybranaPodpozycja=2,1,0) -> 1
M2: =teksty!D613 -> Rachunek zysków i strat
N3: =Wprowadzenie!$I$4 & " " & IF(NumerWariantuRaportu = 5, teksty!$D$289, "") ->  | X3: =teksty!D283 & VLOOKUP(NumerBazyRaportu,BazyKwot,3) -> wszystkie kwoty w złotych
A5: =6*65536 + (2+4+16+64) -> 393302 | N5: =VLOOKUP(WybranaPodpozycja,teksty!$B$140:$F$141,3) -> wariant porównawczy | U5: =IF(BezDat,"",teksty!$D$615) ->  | V5: =IF(BezDat,teksty!$D$954,YEAR(DataDo)) -> Okres bieżący | W5: =IF(BezDat,teksty!$D$955,V5-1) -> Okres poprzedni | X5: =teksty!$D$292 -> Przekszt. dane porów. za poprzedni okres | AA5: =IF(OR(_xlfn.ISFORMULA($V$6),_xlfn.ISFORMULA($W$6)),teksty!$D$951,"") -> W niektórych polach tego zestawienia napotkasz pomocnicze formuły. Jeżeli to potrzebne, możesz je zmienić, lub wpisać w te pola odpowiednie kwoty.
A6: =(4*65536)+(2+16) -> 262162 | C6: =COUNTA(D6:H6) -> 1 | D6: A | J6: =$D6 -> A | K6: =D6 -> A | N6: =K6 -> A | O6: =teksty!$D$618 -> Przychody netto ze sprzedaży i zrównane z nimi, w tym: | V6: =V8+V9+V11+V12 -> 0 | W6: =W8+W9+W11+W12 -> 0
A7: =(4*65536)+(2+16) -> 262162 | C7: 2 | D7: =D6 -> A | E7: j | J7: =D7&"."&E7 -> A.j | O7: =IF($N$7=""," – ") & teksty!$D$619 -> – od jednostek powiązanych
A8: 262162 | C8: 2 | D8: =D6 -> A | E8: I | J8: =D8&"."&E8 -> A.I | K8: =E8 -> I | N8: =K8 -> I | O8: =teksty!$D$620 -> Przychody netto ze sprzedaży produktów
A9: 262162 | C9: 2 | D9: =D8 -> A | E9: II | J9: A.II | K9: =E9 -> II | N9: =K9 -> II | O9: =teksty!$D$621 -> Zmiana stanu produktów (zwiększenie – kwota dodatnia, zmniejszenie – kwota ujemna)
A10: 262162 | C10: =COUNTA(D10:H10) -> 2 | D10: =D9 -> A | E10: j | J10: =D10&"."&E10 -> A.j | O10: =IF($N$7=""," – ") & teksty!$D$622 -> – w tym: obiekty w zabudowie
A11: 262162 | C11: 2 | D11: =D9 -> A | E11: III | J11: A.III | K11: III | N11: =K11 -> III | O11: =teksty!$D$623 -> Koszt wytworzenia produktów na własne potrzeby jednostki
A12: 262162 | C12: 2 | D12: A | E12: IV | J12: A.IV | K12: IV | N12: =K12 -> IV | O12: =teksty!$D$624 -> Przychody netto ze sprzedaży towarów
A13: 262162 | C13: 1 | D13: B | J13: =$D13 -> B | K13: =D13 -> B | N13: =K13 -> B | O13: =teksty!$D$625 -> Koszty działalności operacyjnej | V13: =V14+V15+V16+V17+V19+V20+V22+V23 -> 0 | W13: =W14+W15+W16+W17+W19+W20+W22+W23 -> 0
A14: 262162 | C14: 2 | D14: =D13 -> B | E14: I | J14: B.I | K14: =E14 -> I | N14: =K14 -> I | O14: =teksty!$D$626 -> Amortyzacja
A15: 262162 | C15: 2 | D15: B | E15: II | J15: =D15&"."&E15 -> B.II | K15: =E15 -> II | N15: =K15 -> II | O15: =teksty!$D$627 -> Zużycie materiałów i energii
A16: 262162 | C16: 2 | D16: B | E16: III | J16: B.III | K16: III | N16: III | O16: =teksty!$D$628 -> Usługi obce
A17: 262162 | C17: 2 | D17: B | E17: IV | J17: B.IV | K17: IV | N17: IV | O17: =teksty!$D$629 -> Podatki i opłaty, w tym:
A18: 262162 | C18: 3 | D18: B | E18: IV | F18: 1 | J18: =D18&"."&E18&"."&F18 -> B.IV.1 | O18: =IF($N$18=""," – ") & teksty!$D$630 -> – podatek akcyzowy
A19: 262162 | C19: 2 | D19: =D17 -> B | E19: V | J19: B.V | K19: V | N19: =K19 -> V | O19: =teksty!$D$631 -> Wynagrodzenia
A20: 262162 | C20: 2 | D20: B | E20: VI | J20: B.VI | K20: VI | N20: =K20 -> VI | O20: =teksty!$D$632 -> Ubezpieczenia społeczne i inne świadczenia, w tym:
A21: 262162 | C21: 3 | D21: B | E21: VI | F21: 1 | J21: =D21&"."&E21&"."&F21 -> B.VI.1 | O21: =IF($N$21=""," – ") & teksty!$D$633 -> – emerytalne
A22: 262162 | C22: 2 | D22: =D21 -> B | E22: VII | J22: B.VII | K22: VII | N22: =K22 -> VII | O22: =teksty!$D$634 -> Pozostałe koszty rodzajowe
A23: 262162 | C23: 2 | D23: =D22 -> B | E23: VIII | J23: B.VIII | K23: VIII | N23: VIII | O23: =teksty!$D$635 -> Wartość sprzedanych towarów
A24: 262162 | C24: 1 | D24: C | J24: =$D24 -> C | K24: =D24 -> C | N24: =K24 -> C | O24: =teksty!$D$636 -> Zysk (strata) ze sprzedaży (A–B) | V24: =V6-V13 -> 0 | W24: =W6-W13 -> 0
A25: 262162 | C25: 1 | D25: D | J25: =$D25 -> D | K25: =D25 -> D | N25: =K25 -> D | O25: =teksty!$D$637 -> Pozostałe przychody operacyjne | V25: =V26+V27+V28+V29 -> 0 | W25: =W26+W27+W28+W29 -> 0
A26: 262162 | C26: 2 | D26: =D25 -> D | E26: I | J26: =D26&"."&E26 -> D.I | K26: =E26 -> I | N26: =K26 -> I | O26: =teksty!$D$638 -> Zysk z tytułu rozchodu niefinansowych aktywów trwałych
A27: 262162 | C27: 2 | D27: =D26 -> D | E27: II | J27: =D27&"."&E27 -> D.II | K27: =E27 -> II | N27: =K27 -> II | O27: =teksty!$D$639 -> Dotacje
A28: 262162 | C28: 2 | D28: =D27 -> D | E28: III | J28: =D28&"."&E28 -> D.III | K28: =E28 -> III | N28: =K28 -> III | O28: =teksty!$D$640 -> Aktualizacja wartości aktywów niefinansowych
A29: 262162 | C29: 2 | D29: =D28 -> D | E29: IV | J29: =D29&"."&E29 -> D.IV | K29: =E29 -> IV | N29: =K29 -> IV | O29: =teksty!$D$641 -> Inne przychody operacyjne
A30: 262162 | C30: 1 | D30: E | J30: =$D30 -> E | K30: =D30 -> E | N30: =K30 -> E | O30: =teksty!$D$642 -> Pozostałe koszty operacyjne | V30: =V31+V32+V33 -> 0 | W30: =W31+W32+W33 -> 0
A31: 262162 | C31: 2 | D31: =D30 -> E | E31: I | J31: =D31&"."&E31 -> E.I | K31: =E31 -> I | N31: =K31 -> I | O31: =teksty!$D$643 -> Strata z tytułu rozchodu niefinansowych aktywów trwałych
A32: 262162 | C32: 2 | D32: =D31 -> E | E32: II | J32: =D32&"."&E32 -> E.II | K32: =E32 -> II | N32: =K32 -> II | O32: =teksty!$D$644 -> Aktualizacja wartości aktywów niefinansowych
A33: 262162 | C33: 2 | D33: =D32 -> E | E33: III | J33: =D33&"."&E33 -> E.III | K33: =E33 -> III | N33: =K33 -> III | O33: =teksty!$D$645 -> Inne koszty operacyjne
A34: 262162 | C34: 1 | D34: F | J34: =$D34 -> F | K34: =D34 -> F | N34: =K34 -> F | O34: =teksty!$D$646 -> Zysk (strata) z działalności operacyjnej (C+D–E) | V34: =V24+V25-V30 -> 0 | W34: =W24+W25-W30 -> 0
A35: 262162 | C35: 1 | D35: G | I35: =teksty!$D$614 & teksty!$D$284 & 1 -> RZiS, koniec strony 1 | J35: =$D35 -> G | K35: =D35 -> G | N35: =K35 -> G | O35: =teksty!$D$647 -> Przychody finansowe | V35: =V37+V42+V44+V46+V47 -> 0 | W35: =W37+W42+W44+W46+W47 -> 0
A36: 262162 | B36: P | C36: 0 | N36: =teksty!$D$141 & teksty!$D$718 -> wariant porównawczy, c.d. poprzedniej strony | U36: =$U$5 ->  | V36: =$V$5 -> Okres bieżący | W36: =$W$5 -> Okres poprzedni | X36: =teksty!$D$292 -> Przekszt. dane porów. za poprzedni okres
A37: 262162 | C37: 2 | D37: =D35 -> G | E37: I | J37: =D37&"."&E37 -> G.I | K37: =E37 -> I | N37: =K37 -> I | O37: =teksty!$D$648 -> Dywidendy i udziały w zyskach, w tym: | Z37: =teksty!$D$285 -> ukryty wiersz powyżej zawiera nagłówek dla kolejnej strony
A38: 262162 | C38: 3 | D38: =D37 -> G | E38: I | F38: a | J38: =$D38&"."&E38&"."&F38 -> G.I.a | K38: =F38 -> a | N38: =K38 & ")" -> a) | O38: =teksty!$D$649 -> od jednostek powiązanych, w tym:
A39: 262162 | C39: 4 | D39: G | E39: I | F39: a | G39: 1 | J39: =D39&"."&E39&"."&F39&"."&G39 -> G.I.a.1 | O39: =IF($N$39=""," – ") & teksty!$D$650 -> – w których jednostka posiada zaangażowanie w kapitale
A40: 262162 | C40: 3 | D40: =D39 -> G | E40: I | F40: b | J40: =$D40&"."&E40&"."&F40 -> G.I.b | K40: =F40 -> b | N40: =K40 & ")" -> b) | O40: =teksty!$D$651 -> od jednostek pozostałych, w tym:
A41: 262162 | C41: 4 | D41: =D40 -> G | E41: I | F41: b | G41: 1 | J41: =D41&"."&E41&"."&F41&"."&G41 -> G.I.b.1 | O41: =IF($N$41=""," – ") & teksty!$D$652 -> – w których jednostka posiada zaangażowanie w kapitale
A42: 262162 | C42: 2 | D42: =D41 -> G | E42: II | J42: =D42&"."&E42 -> G.II | K42: =E42 -> II | N42: =K42 -> II | O42: =teksty!$D$653 -> Odsetki, w tym:
A43: 262162 | C43: 3 | D43: =D42 -> G | E43: II | F43: j | J43: =D43&"."&E43&"."&F43 -> G.II.j | O43: =IF($N$43=""," – ") & teksty!$D$654 -> – od jednostek powiązanych
A44: 262162 | C44: 2 | D44: =D43 -> G | E44: III | J44: =D44&"."&E44 -> G.III | K44: =E44 -> III | N44: =K44 -> III | O44: =teksty!$D$655 -> Zysk z tytułu rozchodu aktywów finansowych, w tym:
A45: 262162 | C45: 3 | D45: =D44 -> G | E45: III | F45: j | J45: =D45&"."&E45&"."&F45 -> G.III.j | O45: =IF($N$45=""," – ") & teksty!$D$656 -> – w jednostkach powiązanych
A46: 262162 | C46: 2 | D46: =D45 -> G | E46: IV | J46: =D46&"."&E46 -> G.IV | K46: =E46 -> IV | N46: =K46 -> IV | O46: =teksty!$D$657 -> Aktualizacja wartości aktywów finansowych
A47: 262162 | C47: 2 | D47: =D46 -> G | E47: V | J47: =D47&"."&E47 -> G.V | K47: =E47 -> V | N47: =K47 -> V | O47: =teksty!$D$658 -> Inne
A48: 262162 | C48: 1 | D48: H | J48: =$D48 -> H | K48: =D48 -> H | N48: =K48 -> H | O48: =teksty!$D$659 -> Koszty finansowe | V48: =V49+V51+V53+V54 -> 0 | W48: =W49+W51+W53+W54 -> 0
A49: 262162 | C49: 2 | D49: =D48 -> H | E49: I | J49: =D49&"."&E49 -> H.I | K49: =E49 -> I | N49: =K49 -> I | O49: =teksty!$D$660 -> Odsetki, w tym:
A50: 262162 | C50: 3 | D50: =D49 -> H | E50: I | F50: j | J50: =D50&"."&E50&"."&F50 -> H.I.j | O50: =IF($N$50=""," – ") & teksty!$D$661 -> – dla jednostek powiązanych
A51: 262162 | C51: 2 | D51: =D50 -> H | E51: II | J51: =D51&"."&E51 -> H.II | K51: =E51 -> II | N51: =K51 -> II | O51: =teksty!$D$662 -> Strata z tytułu rozchodu aktywów finansowych, w tym:
A52: 262162 | C52: 3 | D52: H | E52: II | F52: j | J52: =D52&"."&E52&"."&F52 -> H.II.j | O52: =IF($N$52=""," – ") & teksty!$D$663 -> – w jednostkach powiązanych
A53: 262162 | C53: 2 | D53: =D52 -> H | E53: III | J53: =D53&"."&E53 -> H.III | K53: =E53 -> III | N53: =K53 -> III | O53: =teksty!$D$664 -> Aktualizacja wartości aktywów finansowych
A54: 262162 | C54: 2 | D54: =D53 -> H | E54: IV | J54: =D54&"."&E54 -> H.IV | K54: =E54 -> IV | N54: =K54 -> IV | O54: =teksty!$D$665 -> Inne
A55: 262162 | C55: 1 | D55: I | J55: =$D55 -> I | K55: =D55 -> I | N55: =K55 -> I | O55: =teksty!$D$666 -> Zysk (strata) brutto (F+G–H) | V55: =V34+V35-V48 -> 0 | W55: =W34+W35-W48 -> 0
A56: 262162 | C56: 1 | D56: J | J56: =$D56 -> J | K56: =D56 -> J | N56: =K56 -> J | O56: =teksty!$D$667 -> Podatek dochodowy
A57: 262162 | C57: =COUNTA(D57:H57) -> 2 | D57: =D56 -> J | E57: j | J57: =D57&"."&E57 -> J.j | O57: =IF($N$52=""," – ") & SUBSTITUTE(teksty!D$356,":"," " & teksty!$D$668 & ":") -> – w tym podatek odroczony:
A58: 262162 | C58: 1 | D58: K | J58: =$D58 -> K | K58: =D58 -> K | N58: =K58 -> K | O58: =teksty!$D$669 -> Pozostałe obowiązkowe zmniejszenia zysku (zwiększenia straty)
A59: 262162 | C59: =COUNTA(D59:H59) -> 1 | D59: L | J59: =$D59 -> L | K59: =D59 -> L | N59: =K59 -> L | O59: =teksty!$D$670 -> Zysk (strata) netto (I–J–K) | V59: =V55-V56-V58 -> 0 | W59: =W55-W56-W58 -> 0 | Z59: =IF(WrfKwot,IF(AND(AF59=0,AG59=0,AH59=0),"=","!"),"") ->  | AA59: =IF(AB59="-", "-",SUBSTITUTE(SUBSTITUTE(EtykietaNaNazwe(Bilans!$J$219),"_A"," A"),"_",".")) -> - | AB59: =IF(Bilans!WybranyWariant="JednostkaInna",Bilans!V$120,IF(Bilans!WybranyWariant="JednostkaMala",Bilans!V$219,"-")) -> - | AC59: =IF(Bilans!WybranyWariant="JednostkaInna",Bilans!W$120,IF(Bilans!WybranyWariant="JednostkaMala",Bilans!W$219,"-")) -> - | AD59: =IF(Bilans!WybranyWariant="JednostkaInna",Bilans!X$120,IF(Bilans!WybranyWariant="JednostkaMala",Bilans!X$219,"-")) -> - | AF59: =ROUND(IF(ISNUMBER(AB59),V59-AB59,0),2) -> 0 | AG59: =ROUND(IF(ISNUMBER(AC59),W59-AC59,0),2) -> 0 | AH59: 0
A60: 0 | I60: Jednostka Inna | J60: kalkulacyjny
A61: =(2*65536)+(2+16) -> 131090 | C61: =COUNTA(D61:H61) -> 1 | D61: A | J61: =$D61 -> A | K61: =D61 -> A | N61: =K61 -> A | O61: =teksty!$D$672 -> Przychody netto ze sprzedaży produktów i towarów, w tym: | V61: =V63+V64 -> 0 | W61: =W63+W64 -> 0
A62: =(2*65536)+(2+16) -> 131090 | C62: =COUNTA(D62:H62) -> 2 | D62: =D61 -> A | E62: j | J62: =D62&"."&E62 -> A.j | O62: =IF($N$62=""," – ") &teksty!$D$673 -> – od jednostek powiązanych
A63: 131090 | C63: 2 | D63: =D61 -> A | E63: I | J63: =D63&"."&E63 -> A.I | K63: =E63 -> I | N63: =K63 -> I | O63: =teksty!$D$674 -> Przychody netto ze sprzedaży produktów
A64: 131090 | C64: 2 | D64: =D63 -> A | E64: II | J64: A.II | K64: =E64 -> II | N64: =K64 -> II | O64: =teksty!$D$675 -> Przychody netto ze sprzedaży towarów
A65: 131090 | C65: 1 | D65: B | J65: =$D65 -> B | K65: =D65 -> B | N65: =K65 -> B | O65: =teksty!$D$676 -> Koszty sprzedanych produktów i towarów, w tym: | V65: =V67+V68 -> 0 | W65: =W67+W68 -> 0
A66: 131090 | C66: 2 | D66: =D65 -> B | E66: j | J66: =D66&"."&E66 -> B.j | O66: =IF($N$66=""," – ") &teksty!$D$677 -> – jednostkom powiązanym
A67: 131090 | C67: 2 | D67: =D65 -> B | E67: I | J67: =D67&"."&E67 -> B.I | K67: =E67 -> I | N67: =K67 -> I | O67: =teksty!$D$678 -> Koszt wytworzenia sprzedanych produktów
A68: 131090 | C68: 2 | D68: =D66 -> B | E68: II | J68: =D68&"."&E68 -> B.II | K68: =E68 -> II | N68: II | O68: =teksty!$D$679 -> Wartość sprzedanych towarów
A69: 131090 | C69: 1 | D69: C | J69: =$D69 -> C | K69: =D69 -> C | N69: C | O69: =teksty!$D$680 -> Zysk (strata) brutto ze sprzedaży (A–B) | V69: =V61-V65 -> 0 | W69: =W61-W65 -> 0
A70: 131090 | C70: 1 | D70: D | J70: =$D70 -> D | K70: =D70 -> D | N70: D | O70: =teksty!$D$681 -> Koszty sprzedaży
A71: 131090 | C71: 1 | D71: E | J71: =$D71 -> E | K71: =D71 -> E | N71: E | O71: =teksty!$D$682 -> Koszty ogólnego zarządu
A72: 131090 | C72: 1 | D72: F | J72: =$D72 -> F | K72: =D72 -> F | N72: F | O72: =teksty!$D$683 -> Zysk (strata) ze sprzedaży (C–D–E) | V72: =V69-V70-V71 -> 0 | W72: =W69-W70-W71 -> 0
A73: 131090 | C73: 1 | D73: G | J73: =$D73 -> G | K73: =D73 -> G | N73: G | O73: =teksty!$D$684 -> Pozostałe przychody operacyjne | V73: =V74+V75+V76+V77 -> 0 | W73: =W74+W75+W76+W77 -> 0
A74: 131090 | C74: 2 | D74: =D73 -> G | E74: I | J74: =D74&"."&E74 -> G.I | K74: =E74 -> I | N74: I | O74: =teksty!$D$685 -> Zysk z tytułu rozchodu niefinansowych aktywów trwałych
A75: 131090 | C75: 2 | D75: =D74 -> G | E75: II | J75: =D75&"."&E75 -> G.II | K75: =E75 -> II | N75: II | O75: =teksty!$D$686 -> Dotacje
A76: 131090 | C76: 2 | D76: =D75 -> G | E76: III | J76: =D76&"."&E76 -> G.III | K76: =E76 -> III | N76: III | O76: =teksty!$D$687 -> Aktualizacja wartości aktywów niefinansowych
A77: 131090 | C77: 2 | D77: =D76 -> G | E77: IV | J77: =D77&"."&E77 -> G.IV | K77: =E77 -> IV | N77: IV | O77: =teksty!$D$688 -> Inne przychody operacyjne
A78: 131090 | C78: 1 | D78: H | J78: =$D78 -> H | K78: =D78 -> H | N78: H | O78: =teksty!$D$689 -> Pozostałe koszty operacyjne | V78: =V79+V80+V81 -> 0 | W78: =W79+W80+W81 -> 0
A79: 131090 | C79: 2 | D79: =D78 -> H | E79: I | J79: =D79&"."&E79 -> H.I | K79: =E79 -> I | N79: I | O79: =teksty!$D$690 -> Strata z tytułu rozchodu niefinansowych aktywów trwałych
A80: 131090 | C80: 2 | D80: =D79 -> H | E80: II | J80: H.II | K80: =E80 -> II | N80: II | O80: =teksty!$D$691 -> Aktualizacja wartości aktywów niefinansowych
A81: 131090 | C81: 2 | D81: =D80 -> H | E81: III | J81: H.III | K81: =E81 -> III | N81: III | O81: =teksty!$D$692 -> Inne koszty operacyjne
A82: 131090 | C82: 1 | D82: I | J82: =$D82 -> I | K82: =D82 -> I | N82: I | O82: =teksty!$D$693 -> Zysk (strata) z działalności operacyjnej (F+G–H) | V82: =V72+V73-V78 -> 0 | W82: =W72+W73-W78 -> 0
A83: 131090 | C83: 1 | D83: J | J83: =$D83 -> J | K83: =D83 -> J | N83: J | O83: =teksty!$D$694 -> Przychody finansowe | V83: =V84+V89+V92+V94+V95 -> 0 | W83: =W84+W89+W92+W94+W95 -> 0
A84: 131090 | C84: 2 | D84: =D83 -> J | E84: I | J84: =D84&"."&E84 -> J.I | K84: =E84 -> I | N84: I | O84: =teksty!$D$695 -> Dywidendy i udziały w zyskach, w tym:
A85: 131090 | C85: 3 | D85: =D84 -> J | E85: I | F85: a | J85: =$D85&"."&E85&"."&F85 -> J.I.a | K85: =F85 -> a | N85: =K85 & ")" -> a) | O85: =teksty!$D$696 -> od jednostek powiązanych, w tym:
A86: 131090 | C86: 4 | D86: =D85 -> J | E86: I | F86: a | G86: 1 | J86: =D86&"."&E86&"."&F86&"."&G86 -> J.I.a.1 | O86: =IF($N$86=""," – ") & teksty!$D$697 -> – w których jednostka posiada zaangażowanie w kapitale
A87: 131090 | C87: 3 | D87: =D86 -> J | E87: I | F87: b | J87: =$D87&"."&E87&"."&F87 -> J.I.b | K87: =F87 -> b | N87: =K87 & ")" -> b) | O87: =teksty!$D$698 -> od jednostek pozostałych, w tym:
A88: 131090 | C88: 4 | D88: =D87 -> J | E88: I | F88: b | G88: 1 | J88: =D88&"."&E88&"."&F88&"."&G88 -> J.I.b.1 | O88: =IF($N$88=""," – ") & teksty!$D$699 -> – w których jednostka posiada zaangażowanie w kapitale
A89: 131090 | C89: 2 | D89: =D88 -> J | E89: II | J89: =D89&"."&E89 -> J.II | K89: =E89 -> II | N89: =K89 -> II | O89: =teksty!$D$700 -> Odsetki, w tym:
A90: 131090 | C90: 3 | D90: =D89 -> J | E90: II | F90: j | I90: =teksty!$D$614 & teksty!$D$284 & 1 -> RZiS, koniec strony 1 | J90: =D90&"."&E90&"."&F90 -> J.II.j | O90: =IF($N$90=""," – ") & teksty!$D$701 -> – od jednostek powiązanych
A91: 131090 | B91: P | C91: 0 | N91: =teksty!$D$140 & teksty!$D$718 -> wariant kalkulacyjny, c.d. poprzedniej strony | U91: =$U$5 ->  | V91: =$V$5 -> Okres bieżący | W91: =$W$5 -> Okres poprzedni | X91: =teksty!$D$292 -> Przekszt. dane porów. za poprzedni okres
A92: 131090 | C92: 2 | D92: =D90 -> J | E92: III | J92: =D92&"."&E92 -> J.III | K92: =E92 -> III | N92: =K92 -> III | O92: =teksty!$D$702 -> Zysk z tytułu rozchodu aktywów finansowych, w tym: | Z92: =teksty!$D$285 -> ukryty wiersz powyżej zawiera nagłówek dla kolejnej strony
A93: 131090 | C93: 3 | D93: J | E93: III | F93: j | J93: =D93&"."&E93&"."&F93 -> J.III.j | O93: =IF($N$93=""," – ") & teksty!$D$703 -> – w jednostkach powiązanych
A94: 131090 | C94: 2 | D94: =D93 -> J | E94: IV | J94: =D94&"."&E94 -> J.IV | K94: =E94 -> IV | N94: =K94 -> IV | O94: =teksty!$D$704 -> Aktualizacja wartości aktywów finansowych
A95: 131090 | C95: 2 | D95: =D94 -> J | E95: V | J95: =D95&"."&E95 -> J.V | K95: =E95 -> V | N95: =K95 -> V | O95: =teksty!$D$705 -> Inne
A96: 131090 | C96: 1 | D96: K | J96: =$D96 -> K | K96: =D96 -> K | N96: =K96 -> K | O96: =teksty!$D$706 -> Koszty finansowe | V96: =V97+V99+V101+V102 -> 0 | W96: =W97+W99+W101+W102 -> 0
A97: 131090 | C97: 2 | D97: =D96 -> K | E97: I | J97: =D97&"."&E97 -> K.I | K97: =E97 -> I | N97: =K97 -> I | O97: =teksty!$D$707 -> Odsetki, w tym:
A98: 131090 | C98: 3 | D98: =D97 -> K | E98: I | F98: j | J98: =D98&"."&E98&"."&F98 -> K.I.j | O98: =IF($N$98=""," – ") & teksty!$D$708 -> – dla jednostek powiązanych
A99: 131090 | C99: 2 | D99: =D98 -> K | E99: II | J99: =D99&"."&E99 -> K.II | K99: =E99 -> II | N99: =K99 -> II | O99: =teksty!$D$709 -> Strata z tytułu rozchodu aktywów finansowych, w tym:
A100: 131090 | C100: 3 | D100: =D99 -> K | E100: II | F100: j | J100: =D100&"."&E100&"."&F100 -> K.II.j | O100: =IF($N$100=""," – ") & teksty!$D$710 -> – w jednostkach powiązanych
A101: 131090 | C101: 2 | D101: =D100 -> K | E101: III | J101: =D101&"."&E101 -> K.III | K101: =E101 -> III | N101: =K101 -> III | O101: =teksty!$D$711 -> Aktualizacja wartości aktywów finansowych
A102: 131090 | C102: 2 | D102: =D101 -> K | E102: IV | J102: K.IV | K102: =E102 -> IV | N102: IV | O102: =teksty!$D$712 -> Inne
A103: 131090 | C103: 1 | D103: L | J103: =$D103 -> L | K103: =D103 -> L | N103: L | O103: =teksty!$D$713 -> Zysk (strata) brutto (I+J–K) | V103: =V82+V83-V96 -> 0 | W103: =W82+W83-W96 -> 0
A104: 131090 | C104: 1 | D104: M | J104: =$D104 -> M | K104: =D104 -> M | N104: M | O104: =teksty!$D$714 -> Podatek dochodowy
A105: 131090 | C105: =COUNTA(D105:H105) -> 2 | D105: =D104 -> M | E105: j | J105: =D105&"."&E105 -> M.j | O105: =IF($N$105=""," – ") & SUBSTITUTE(teksty!D$356,":"," " & teksty!$D$668 & ":") -> – w tym podatek odroczony:
A106: 131090 | C106: 1 | D106: N | J106: =$D106 -> N | K106: =D106 -> N | N106: N | O106: =teksty!$D$715 -> Pozostałe obowiązkowe zmniejszenia zysku (zwiększenia straty)
A107: 131090 | C107: 1 | D107: O | J107: =$D107 -> O | K107: =D107 -> O | N107: O | O107: =teksty!$D$716 -> Zysk (strata) netto (L–M–N) | V107: =V103-V104-V106 -> 0 | W107: =W103-W104-W106 -> 0 | Z107: =IF(WrfKwot,IF(AND(AF107=0,AG107=0,AH107=0),"=","!"),"") ->  | AA107: =IF(AB107="-", "-",SUBSTITUTE(SUBSTITUTE(EtykietaNaNazwe(Bilans!$J$219),"_A"," A"),"_",".")) -> - | AB107: =IF(Bilans!WybranyWariant="JednostkaInna",Bilans!V$120,IF(Bilans!WybranyWariant = "JednostkaMala", Bilans!V$219,"-")) -> - | AC107: =IF(Bilans!WybranyWariant="JednostkaInna",Bilans!W$120,IF(Bilans!WybranyWariant = "JednostkaMala", Bilans!W$219,"-")) -> - | AD107: =IF(Bilans!WybranyWariant="JednostkaInna",Bilans!X$120,IF(Bilans!WybranyWariant = "JednostkaMala", Bilans!X$219,"-")) -> - | AF107: =ROUND(IF(ISNUMBER(AB107),V107-AB107,0),2) -> 0 | AG107: =ROUND(IF(ISNUMBER(AC107),W107-AC107,0),2) -> 0 | AH107: =ROUND(IF(ISNUMBER(AD107),X107-AD107,0),2) -> 0
A108: 0 | C108: 0 | I108: Jednostka Mala | J108: kalkulacyjny
A109: =(2*65536)+(4) -> 131076 | C109: =COUNTA(D109:H109) -> 1 | D109: A | J109: =$D109 -> A | K109: =D109 -> A | N109: =K109 -> A | O109: =SUBSTITUTE(teksty!$D$672,inc,"") -> Przychody netto ze sprzedaży produktów i towarów
A110: =(2*65536)+(4) -> 131076 | C110: =COUNTA(D110:H110) -> 1 | D110: B | J110: B | K110: B | N110: =K110 -> B | O110: =SUBSTITUTE(teksty!$D$676,inc,"") -> Koszty sprzedanych produktów i towarów
A111: 131076 | C111: 1 | D111: C | J111: C | K111: C | N111: =K111 -> C | O111: =teksty!$D$681 -> Koszty sprzedaży
A112: 131076 | C112: 1 | D112: D | J112: D | K112: D | N112: D | O112: =teksty!$D$682 -> Koszty ogólnego zarządu
A113: 131076 | C113: 1 | D113: E | J113: E | K113: E | N113: E | O113: =teksty!$D$722 -> Zysk (strata) ze sprzedaży (A - B - C - D) | V113: =V109-V110-V111-V112 -> 0 | W113: =W109-W110-W111-W112 -> 0
A114: 131076 | C114: 1 | D114: F | J114: F | K114: F | N114: F | O114: =teksty!$D$684 & inc -> Pozostałe przychody operacyjne, w tym:
A115: 131076 | C115: 2 | D115: =D114 -> F | E115: 1 | J115: =D115&"."&E115 -> F.1 | K115: =E115 -> 1 | O115: =" – " & LOWER(teksty!$D$687) -> – aktualizacja wartości aktywów niefinansowych
A116: 131076 | C116: 1 | D116: G | J116: =$D116 -> G | K116: =D116 -> G | N116: G | O116: =teksty!$D$689 & inc -> Pozostałe koszty operacyjne, w tym:
A117: 131076 | C117: 2 | D117: =D116 -> G | E117: 1 | J117: =D117&"."&E117 -> G.1 | K117: =E117 -> 1 | O117: =" – " & LOWER(teksty!$D$691) -> – aktualizacja wartości aktywów niefinansowych
A118: 131076 | C118: 1 | D118: H | J118: =$D118 -> H | K118: =D118 -> H | N118: H | O118: =teksty!$D$694 & inc -> Przychody finansowe, w tym:
A119: 131076 | C119: 2 | D119: =D118 -> H | E119: I | J119: =D119&"."&E119 -> H.I | K119: =E119 -> I | N119: I | O119: =teksty!$D$720 -> Dywidendy i udziały w zyskach od jednostek, w których jednostka posiada zaangażowanie w kapitale, w tym:
A120: 131076 | C120: 3 | D120: =D119 -> H | E120: I | F120: 1 | J120: =$D120&"."&E120&"."&F120 -> H.I.1 | K120: =F120 -> 1 | O120: =" – " & SUBSTITUTE(teksty!$D$696,inc,"") & "," & teksty!$D$697 -> – od jednostek powiązanych,w których jednostka posiada zaangażowanie w kapitale
A121: 131076 | C121: 2 | D121: H | E121: II | J121: =D121&"."&E121 -> H.II | K121: =E121 -> II | N121: =K121 -> II | O121: =teksty!$D$700 -> Odsetki, w tym:
A122: 131076 | C122: 3 | D122: =D121 -> H | E122: II | F122: 1 | J122: =D122&"."&E122&"."&F122 -> H.II.1 | O122: =IF($N$90=""," – ") & teksty!$D$701 -> – od jednostek powiązanych
A123: 131076 | C123: 2 | D123: =D122 -> H | E123: III | J123: =D123&"."&E123 -> H.III | K123: =E123 -> III | N123: =K123 -> III | O123: =teksty!$D$702 -> Zysk z tytułu rozchodu aktywów finansowych, w tym:
A124: 131076 | C124: 3 | D124: =D123 -> H | E124: III | F124: 1 | J124: =D124&"."&E124&"."&F124 -> H.III.1 | O124: =IF($N$93=""," – ") & teksty!$D$703 -> – w jednostkach powiązanych
A125: 131076 | C125: 2 | D125: =D124 -> H | E125: IV | J125: =D125&"."&E125 -> H.IV | K125: =E125 -> IV | N125: =K125 -> IV | O125: =teksty!$D$704 -> Aktualizacja wartości aktywów finansowych
A126: 131076 | C126: 1 | D126: I | J126: =$D126 -> I | K126: =D126 -> I | N126: =K126 -> I | O126: =teksty!$D$706 & inc -> Koszty finansowe, w tym:
A127: 131076 | C127: 2 | D127: =D126 -> I | E127: I | J127: =D127&"."&E127 -> I.I | K127: =E127 -> I | N127: =K127 -> I | O127: =teksty!$D$707 -> Odsetki, w tym:
A128: 131076 | C128: 3 | D128: =D127 -> I | E128: I | F128: 1 | J128: =D128&"."&E128&"."&F128 -> I.I.1 | O128: =IF($N$98=""," – ") & teksty!$D$708 -> – dla jednostek powiązanych
A129: 131076 | C129: 2 | D129: =D128 -> I | E129: II | J129: =D129&"."&E129 -> I.II | K129: =E129 -> II | N129: =K129 -> II | O129: =teksty!$D$709 -> Strata z tytułu rozchodu aktywów finansowych, w tym:
A130: 131076 | C130: 3 | D130: =D129 -> I | E130: II | F130: 1 | J130: =D130&"."&E130&"."&F130 -> I.II.1 | O130: =IF($N$100=""," – ") & teksty!$D$710 -> – w jednostkach powiązanych
A131: 131076 | C131: 2 | D131: =D130 -> I | E131: III | J131: =D131&"."&E131 -> I.III | K131: =E131 -> III | N131: =K131 -> III | O131: =teksty!$D$711 -> Aktualizacja wartości aktywów finansowych
A132: 131076 | C132: 1 | D132: J | J132: =$D132 -> J | K132: =D132 -> J | N132: J | O132: =teksty!$D$723 -> Zysk (strata) brutto (E + F - G + H - I) | V132: =V113+V114-V116+V118-V126 -> 0 | W132: =W113+W114-W116+W118-W126 -> 0
A133: 131076 | C133: 1 | D133: K | J133: =$D133 -> K | K133: =D133 -> K | N133: K | O133: =teksty!$D$714 -> Podatek dochodowy
A134: 131076 | C134: =COUNTA(D134:H134) -> 2 | D134: =D133 -> K | E134: j | J134: =D134&"."&E134 -> K.j | K134: =E134 -> j | O134: =IF($N$134=""," – ") & SUBSTITUTE(teksty!D$356,":"," " & teksty!$D$668 & ":") -> – w tym podatek odroczony:
A135: 131076 | C135: 1 | D135: L | J135: =$D135 -> L | K135: =D135 -> L | N135: L | O135: =teksty!$D$724 -> Zysk (strata) netto (J - K) | V135: =V132-V133 -> 0 | W135: =W132-W133 -> 0 | Z135: =IF(WrfKwot,IF(AND(AF135=0,AG135=0,AH135=0),"=","!"),"") ->  | AA135: =IF(AB135="-", "-",SUBSTITUTE(SUBSTITUTE(EtykietaNaNazwe(Bilans!$J$219),"_A"," A"),"_",".")) -> - | AB135: =IF(Bilans!WybranyWariant="JednostkaInna",Bilans!V$120,IF(Bilans!WybranyWariant = "JednostkaMala", Bilans!V$219,"-")) -> - | AC135: =IF(Bilans!WybranyWariant="JednostkaInna",Bilans!W$120,IF(Bilans!WybranyWariant = "JednostkaMala", Bilans!W$219,"-")) -> - | AD135: =IF(Bilans!WybranyWariant="JednostkaInna",Bilans!X$120,IF(Bilans!WybranyWariant = "JednostkaMala", Bilans!X$219,"-")) -> - | AF135: =ROUND(IF(ISNUMBER(AB135),V135-AB135,0),2) -> 0 | AG135: =ROUND(IF(ISNUMBER(AC135),W135-AC135,0),2) -> 0 | AH135: =ROUND(IF(ISNUMBER(AD135),X135-AD135,0),2) -> 0
A136: 0 | C136: 0 | I136: Jednostka Mala | J136: porównawczy
A137: =(4*65536)+(4) -> 262148 | C137: 1 | D137: A | J137: =$D137 -> A | K137: =D137 -> A | N137: =K137 -> A | O137: =SUBSTITUTE(teksty!$D$618,inc,"") -> Przychody netto ze sprzedaży i zrównane z nimi | V137: =V138+V139+V140 -> 0 | W137: =W138+W139+W140 -> 0
A138: =(4*65536)+(4) -> 262148 | C138: 2 | D138: =D137 -> A | E138: I | J138: =D138&"."&E138 -> A.I | K138: =E138 -> I | N138: =K138 -> I | O138: =teksty!$D$726 -> Przychody netto ze sprzedaży
A139: 262148 | C139: 2 | D139: =D138 -> A | E139: II | J139: A.II | K139: =E139 -> II | N139: =K139 -> II | O139: =teksty!$D$621 -> Zmiana stanu produktów (zwiększenie – kwota dodatnia, zmniejszenie – kwota ujemna)
A140: 262148 | C140: 2 | D140: =D139 -> A | E140: III | J140: A.III | K140: III | N140: =K140 -> III | O140: =teksty!$D$623 -> Koszt wytworzenia produktów na własne potrzeby jednostki
A141: 262148 | C141: 1 | D141: B | J141: =$D141 -> B | K141: =D141 -> B | N141: =K141 -> B | O141: =teksty!$D$625 -> Koszty działalności operacyjnej | V141: =V142+V143+V144+V145+V146+V148 -> 0 | W141: =W142+W143+W144+W145+W146+W148 -> 0
A142: 262148 | C142: 2 | D142: =D141 -> B | E142: I | J142: =D142&"."&E142 -> B.I | K142: =E142 -> I | N142: =K142 -> I | O142: =teksty!$D$626 -> Amortyzacja
A143: 262148 | C143: 2 | D143: =D142 -> B | E143: II | J143: B.II | K143: =E143 -> II | N143: II | O143: =teksty!$D$627 -> Zużycie materiałów i energii
A144: 262148 | C144: 2 | D144: =D143 -> B | E144: III | J144: B.III | K144: III | N144: III | O144: =teksty!$D$628 -> Usługi obce
A145: 262148 | C145: 2 | D145: B | E145: IV | J145: =D145&"."&E145 -> B.IV | K145: =E145 -> IV | N145: =K145 -> IV | O145: =teksty!$D$631 -> Wynagrodzenia
A146: 262148 | C146: 2 | D146: =D145 -> B | E146: V | J146: B.V | K146: V | N146: V | O146: =teksty!$D$632 -> Ubezpieczenia społeczne i inne świadczenia, w tym:
A147: 262148 | C147: 3 | D147: =D146 -> B | E147: V | F147: 1 | J147: =D147&"."&E147&"."&F147 -> B.V.1 | O147: =" – " & teksty!$D$633 -> – emerytalne
A148: 262148 | C148: 2 | D148: =D147 -> B | E148: VI | J148: =D148&"."&E148 -> B.VI | K148: =E148 -> VI | N148: =K148 -> VI | O148: =teksty!$D$727 -> Pozostałe koszty, w tym:
A149: 262148 | C149: =COUNTA(D149:H149) -> 3 | D149: B | E149: VI | F149: 1 | J149: =D149&"."&E149&"."&F149 -> B.VI.1 | O149: =" – " & LOWER(teksty!$D$635) -> – wartość sprzedanych towarów
A150: =(4*65536)+(4) -> 262148 | C150: =COUNTA(D150:H150) -> 1 | D150: C | J150: =$D150 -> C | K150: =D150 -> C | N150: =K150 -> C | O150: =teksty!$D$728 -> Zysk (strata) ze sprzedaży (A - B) | V150: =V137-V141 -> 0 | W150: =W137-W141 -> 0
A151: 262148 | C151: 1 | D151: D | J151: =$D151 -> D | K151: =D151 -> D | N151: D | O151: =teksty!$D$684 & inc -> Pozostałe przychody operacyjne, w tym:
A152: 262148 | C152: 2 | D152: =D151 -> D | E152: 1 | J152: =D152&"."&E152 -> D.1 | K152: =E152 -> 1 | O152: =" – " & LOWER(teksty!$D$687) -> – aktualizacja wartości aktywów niefinansowych
A153: 262148 | C153: 1 | D153: E | J153: =$D153 -> E | K153: =D153 -> E | N153: =K153 -> E | O153: =teksty!$D$689 & inc -> Pozostałe koszty operacyjne, w tym:
A154: 262148 | C154: 2 | D154: =D153 -> E | E154: 1 | J154: =D154&"."&E154 -> E.1 | K154: =E154 -> 1 | O154: =" – " & LOWER(teksty!$D$691) -> – aktualizacja wartości aktywów niefinansowych
A155: 262148 | C155: 1 | D155: F | J155: =$D155 -> F | K155: =D155 -> F | N155: =K155 -> F | O155: =teksty!$D$694 & inc -> Przychody finansowe, w tym:
A156: 262148 | C156: 2 | D156: =D155 -> F | E156: I | J156: =D156&"."&E156 -> F.I | K156: =E156 -> I | N156: I | O156: =teksty!$D$720 -> Dywidendy i udziały w zyskach od jednostek, w których jednostka posiada zaangażowanie w kapitale, w tym:
A157: 262148 | C157: 3 | D157: =D156 -> F | E157: I | F157: 1 | J157: =$D157&"."&E157&"."&F157 -> F.I.1 | K157: =F157 -> 1 | O157: =" – " &SUBSTITUTE(teksty!$D$696,inc,"") & "," & teksty!$D$697 -> – od jednostek powiązanych,w których jednostka posiada zaangażowanie w kapitale
A158: 262148 | C158: 2 | D158: =D157 -> F | E158: II | J158: =D158&"."&E158 -> F.II | K158: =E158 -> II | N158: =K158 -> II | O158: =teksty!$D$700 -> Odsetki, w tym:
A159: 262148 | C159: 3 | D159: =D158 -> F | E159: II | F159: 1 | J159: =D159&"."&E159&"."&F159 -> F.II.1 | O159: =" – " & teksty!$D$701 -> – od jednostek powiązanych
A160: 262148 | C160: 2 | D160: =D159 -> F | E160: III | J160: =D160&"."&E160 -> F.III | K160: =E160 -> III | N160: =K160 -> III | O160: =teksty!$D$702 -> Zysk z tytułu rozchodu aktywów finansowych, w tym:
A161: 262148 | C161: 3 | D161: =D160 -> F | E161: III | F161: 1 | J161: =D161&"."&E161&"."&F161 -> F.III.1 | O161: =" – " &teksty!$D$703 -> – w jednostkach powiązanych
A162: 262148 | C162: 2 | D162: =D161 -> F | E162: IV | J162: =D162&"."&E162 -> F.IV | K162: =E162 -> IV | N162: =K162 -> IV | O162: =teksty!$D$704 -> Aktualizacja wartości aktywów finansowych
A163: 262148 | C163: 1 | D163: G | J163: =$D163 -> G | K163: =D163 -> G | N163: =K163 -> G | O163: =teksty!$D$706 & inc -> Koszty finansowe, w tym:
A164: 262148 | C164: 2 | D164: =D163 -> G | E164: I | J164: =D164&"."&E164 -> G.I | K164: =E164 -> I | N164: =K164 -> I | O164: =teksty!$D$707 -> Odsetki, w tym:
A165: 262148 | C165: 3 | D165: =D164 -> G | E165: I | F165: 1 | J165: =D165&"."&E165&"."&F165 -> G.I.1 | O165: =" – " &teksty!$D$708 -> – dla jednostek powiązanych
A166: 262148 | C166: 2 | D166: =D165 -> G | E166: II | J166: =D166&"."&E166 -> G.II | K166: =E166 -> II | N166: =K166 -> II | O166: =teksty!$D$709 -> Strata z tytułu rozchodu aktywów finansowych, w tym:
A167: 262148 | C167: 3 | D167: =D166 -> G | E167: II | F167: 1 | J167: =D167&"."&E167&"."&F167 -> G.II.1 | O167: =" – " & teksty!$D$710 -> – w jednostkach powiązanych
A168: 262148 | C168: 2 | D168: =D167 -> G | E168: III | I168: =teksty!$D$614 & teksty!$D$284 & 1 -> RZiS, koniec strony 1 | J168: =D168&"."&E168 -> G.III | K168: =E168 -> III | N168: =K168 -> III | O168: =teksty!$D$711 -> Aktualizacja wartości aktywów finansowych
A169: 262148 | B169: P | C169: 0 | N169: =teksty!$D$141 & teksty!$D$718 -> wariant porównawczy, c.d. poprzedniej strony | U169: =$U$5 ->  | V169: =$V$5 -> Okres bieżący | W169: =$W$5 -> Okres poprzedni | X169: =teksty!$D$292 -> Przekszt. dane porów. za poprzedni okres
A170: 262148 | C170: 1 | D170: H | J170: =$D170 -> H | K170: =D170 -> H | N170: H | O170: =teksty!$D$729 -> Zysk (strata) brutto (C + D - E + F - G) | V170: =V150+V151-V153+V155-V163 -> 0 | W170: =W150+W151-W153+W155-W163 -> 0 | Z170: =teksty!$D$285 -> ukryty wiersz powyżej zawiera nagłówek dla kolejnej strony
A171: 262148 | C171: 1 | D171: I | J171: =$D171 -> I | K171: =D171 -> I | N171: I | O171: =teksty!$D$714 -> Podatek dochodowy
A172: 262148 | C172: =COUNTA(D172:H172) -> 2 | D172: =D171 -> I | E172: j | J172: =D172&"."&E172 -> I.j | K172: =E172 -> j | O172: =IF($N$172=""," – ") & SUBSTITUTE(teksty!D$356,":"," " & teksty!$D$668 & ":") -> – w tym podatek odroczony:
A173: 262148 | C173: 1 | D173: J | J173: =$D173 -> J | K173: =D173 -> J | N173: J | O173: =teksty!$D$730 -> Zysk (strata) netto (H - I) | V173: =V170-V171 -> 0 | W173: =W170-W171 -> 0 | Z173: =IF(WrfKwot,IF(AND(AF173=0,AG173=0,AH173=0),"=","!"),"") ->  | AA173: =IF(AB173="-", "-",SUBSTITUTE(SUBSTITUTE(EtykietaNaNazwe(Bilans!$J$219),"_A"," A"),"_",".")) -> - | AB173: =IF(Bilans!WybranyWariant="JednostkaInna",Bilans!V$120,IF(Bilans!WybranyWariant = "JednostkaMala", Bilans!V$219,"-")) -> - | AC173: =IF(Bilans!WybranyWariant="JednostkaInna",Bilans!W$120,IF(Bilans!WybranyWariant = "JednostkaMala", Bilans!W$219,"-")) -> - | AD173: =IF(Bilans!WybranyWariant="JednostkaInna",Bilans!X$120,IF(Bilans!WybranyWariant = "JednostkaMala", Bilans!X$219,"-")) -> - | AF173: =ROUND(IF(ISNUMBER(AB173),V173-AB173,0),2) -> 0 | AG173: =ROUND(IF(ISNUMBER(AC173),W173-AC173,0),2) -> 0 | AH173: =ROUND(IF(ISNUMBER(AD173),X173-AD173,0),2) -> 0
A174: 262148 | C174: =COUNTA(D174:H174) -> 0
A175: 0 | I175: Jednostka Op
A176: =(6*65536)+(32) -> 393248 | N176: =teksty!$D$885 -> wyszczególnienie | U176: =$U$5 ->  | V176: =$V$5 -> Okres bieżący | W176: =$W$5 -> Okres poprzedni | X176: =teksty!$D$292 -> Przekszt. dane porów. za poprzedni okres | AA176: =IF(OR(_xlfn.ISFORMULA($V$177),_xlfn.ISFORMULA($W$177)),teksty!$D$951,"") -> W niektórych polach tego zestawienia napotkasz pomocnicze formuły. Jeżeli to potrzebne, możesz je zmienić, lub wpisać w te pola odpowiednie kwoty.
A177: =(6*65536)+(32) -> 393248 | C177: 1 | D177: A | J177: =$D177 -> A | K177: =D177 -> A | N177: =K177 -> A | O177: =teksty!$D$752 -> Przychody z działalności statutowej | V177: =V178+V179+V180 -> 0 | W177: =W178+W179+W180 -> 0
A178: =(6*65536)+(32) -> 393248 | C178: 2 | D178: =D177 -> A | E178: I | J178: =D178&"."&E178 -> A.I | K178: =E178 -> I | N178: =K178 -> I | O178: =teksty!$D$753 -> Przychody z nieodpłatnej działalności pożytku publicznego
A179: 393248 | C179: 2 | D179: =D178 -> A | E179: II | J179: A.II | K179: =E179 -> II | N179: =K179 -> II | O179: =teksty!$D$754 -> Przychody z odpłatnej działalności pożytku publicznego
A180: 393248 | C180: 2 | D180: A | E180: III | J180: A.III | K180: III | N180: =K180 -> III | O180: =teksty!$D$755 -> Przychody z pozostałej działalności statutowej
A181: 393248 | C181: 1 | D181: B | J181: =$D181 -> B | K181: =D181 -> B | N181: =K181 -> B | O181: =teksty!$D$756 -> Koszty działalnosci statutowej | V181: =V182+V183+V184 -> 0 | W181: =W182+W183+W184 -> 0
A182: 393248 | C182: 2 | D182: =D181 -> B | E182: I | J182: =D182&"."&E182 -> B.I | K182: =E182 -> I | N182: =K182 -> I | O182: =teksty!$D$757 -> Koszty nieodpłatnej działalności pożytku publicznego
A183: 393248 | C183: 2 | D183: =D182 -> B | E183: II | J183: B.II | K183: =E183 -> II | N183: II | O183: =teksty!$D$758 -> Koszty odpłatnej działalności pożytku publicznego
A184: 393248 | C184: 2 | D184: B | E184: III | J184: B.III | K184: III | N184: III | O184: =teksty!$D$759 -> Koszty pozostałej działalności statutowej
A185: 393248 | C185: 1 | D185: C | J185: =$D185 -> C | K185: =D185 -> C | N185: =K185 -> C | O185: =teksty!$D760 -> Zysk (strata) z działalności statutowej (A - B) | V185: =V177-V181 -> 0 | W185: =W177-W181 -> 0
A186: 393248 | C186: 1 | D186: D | J186: D | K186: D | N186: D | O186: =teksty!$D761 -> Przychody z działalności gospodarczej
A187: 393248 | C187: 1 | D187: E | J187: E | K187: E | N187: =K187 -> E | O187: =teksty!$D762 -> Koszty działalności gospodarczej
A188: 393248 | C188: 1 | D188: F | J188: F | K188: F | N188: =K188 -> F | O188: =teksty!$D763 -> Zysk (strata) z działalności gospodarczej (D - E) | V188: =V186-V187 -> 0 | W188: =W186-W187 -> 0
A189: 393248 | C189: 1 | D189: G | J189: G | K189: G | N189: =K189 -> G | O189: =teksty!$D764 -> Koszty ogólnego zarządu
A190: 393248 | C190: 1 | D190: H | J190: H | K190: H | N190: =K190 -> H | O190: =teksty!$D765 -> Zysk (strata) z działalności operacyjnej (C + F - G) | V190: =V185+V188-V189 -> 0 | W190: =W185+W188-W189 -> 0
A191: 393248 | C191: 1 | D191: I | J191: I | K191: I | N191: I | O191: =teksty!$D766 -> Pozostałe przychody operacyjne
A192: 393248 | C192: 1 | D192: J | J192: J | K192: J | N192: J | O192: =teksty!$D767 -> Pozostałe koszty operacyjne
A193: 393248 | C193: =COUNTA(D193:H193) -> 1 | D193: K | J193: K | K193: K | N193: =K193 -> K | O193: =teksty!$D768 -> Przychody finansowe
A194: 393248 | C194: 1 | D194: L | J194: L | K194: L | N194: L | O194: =teksty!$D769 -> Koszty finansowe
A195: 393248 | C195: 1 | D195: M | J195: M | K195: M | N195: =K195 -> M | O195: =teksty!$D770 -> Zysk (strata) brutto (H + I - J + K - L) | V195: =V190+V191-V192+V193-V194 -> 0 | W195: =W190+W191-W192+W193-W194 -> 0
A196: 393248 | C196: 1 | D196: N | J196: N | K196: N | N196: N | O196: =teksty!$D$771 -> Podatek dochodowy
A197: 393248 | C197: =COUNTA(D197:H197) -> 1 | D197: O | J197: O | K197: O | N197: =K197 -> O | O197: =teksty!$D772 -> Zysk (strata) netto (M - N) | V197: =V195-V196 -> 0 | W197: =W195-W196 -> 0 | Z197: =IF(WrfKwot,IF(AND(AF197=0,AG197=0,AH197=0),"=","!"),"") ->  | AA197: =SUBSTITUTE(SUBSTITUTE(EtykietaNaNazwe(Bilans!$J$257),"_A"," A"),"_",".") -> Pasywa A.IV | AB197: =Bilans!$V$257 -> 0 | AC197: =Bilans!$W$257 -> 0 | AD197: =Bilans!$X$257 -> 0 | AF197: =ROUND(V197-AB197,2) -> 0 | AG197: =ROUND(W197-AC197,2) -> 0 | AH197: =ROUND(X197-AD197,2) -> 0
A198: 0 | C198: =COUNTA(D198:H198) -> 0 | I198: Jednostka Mikro
A199: =(6*65536)+(8) -> 393224 | N199: =teksty!$D$885 -> wyszczególnienie | U199: =$U$5 ->  | V199: =$V$5 -> Okres bieżący | W199: =$W$5 -> Okres poprzedni | X199: =teksty!$D$292 -> Przekszt. dane porów. za poprzedni okres | AA199: =IF(OR(_xlfn.ISFORMULA($V$202),_xlfn.ISFORMULA($W$202)),teksty!$D$951,"") -> W niektórych polach tego zestawienia napotkasz pomocnicze formuły. Jeżeli to potrzebne, możesz je zmienić, lub wpisać w te pola odpowiednie kwoty.
A200: =(6*65536)+(8) -> 393224 | C200: 1 | D200: A | J200: =$D200 -> A | K200: =D200 -> A | N200: =K200 -> A | O200: =teksty!D774 -> Przychody podstawowej działalności operacyjnej i zrównane z nimi, w tym:
A201: =(6*65536)+(8) -> 393224 | C201: 2 | D201: =D200 -> A | E201: 1 | J201: =D201&"."&E201 -> A.1 | O201: =" – " & LOWER(teksty!$D$621) -> – zmiana stanu produktów (zwiększenie – kwota dodatnia, zmniejszenie – kwota ujemna)
... 18 more rows

Sheet Kapitał
A1: ZestZmianWKapitale | C1: Poziom | F1: Składniki | J1: (pełen symbol) | K1: (wyświetlana etykieta) | R1: 1 | S1: =VLOOKUP(WybranaPozycja,teksty!B123:F127,2) -> JednostkaInna
M2: =teksty!D884 -> Zestawienie zmian w kapitale (funduszu) własnym
I3: =teksty!$D$291 -> Opcjonalne. Aby nie włączać tego zestawienia do sprawozdania - ukryj ten arkusz | N3: =Wprowadzenie!$I$4 & " " & IF(NumerWariantuRaportu = 5, teksty!$D$289, "") ->  | W3: =teksty!D283 & VLOOKUP(NumerBazyRaportu,BazyKwot,3) -> wszystkie kwoty w złotych | X3: =teksty!D283 & VLOOKUP(NumerBazyRaportu,BazyKwot,3) -> wszystkie kwoty w złotych
N5: =teksty!D885 -> wyszczególnienie | U5: =IF(BezDat,"",teksty!$D$615) ->  | V5: =IF(BezDat,teksty!$D$954,YEAR(DataDo)) -> Okres bieżący | W5: =IF(BezDat,teksty!$D$955,V5-1) -> Okres poprzedni | X5: =teksty!$D$292 -> Przekszt. dane porów. za poprzedni okres | AA5: =IF(OR(_xlfn.ISFORMULA($V$9),_xlfn.ISFORMULA($W$9)),teksty!$D$951,"") -> W niektórych polach tego zestawienia napotkasz pomocnicze formuły. Jeżeli to potrzebne, możesz je zmienić, lub wpisać w te pola odpowiednie kwoty.
A6: =2 -> 2 | C6: =COUNTA(D6:H6) -> 1 | D6: I | J6: =$D6 -> I | K6: =D6 -> I | N6: =K6 -> I | O6: =teksty!$D$888 -> Kapitał (fundusz) własny na początek okresu (BO) | V6: 0 | W6: 0
A7: =A6 -> 2 | C7: =COUNTA(D7:H7) -> 2 | D7: =D6 -> I | E7: 1 | J7: =D7&"."&E7 -> I.1 | O7: =IF($N$7=""," – ") &teksty!$D$889 -> – zmiany przyjętych zasad (polityki) rachunkowości
A8: =A7 -> 2 | C8: =COUNTA(D8:H8) -> 2 | D8: =D7 -> I | E8: 2 | J8: =D8&"."&E8 -> I.2 | O8: =IF($N$8=""," – ") &teksty!$D$890 -> – korekty błędów
A9: 2 | C9: 1 | D9: Ia | J9: =$D9 -> Ia | K9: =D9 -> Ia | N9: =K9 -> Ia | O9: =teksty!$D$891 -> Kapitał (fundusz) własny na początek okresu (BO), po korektach | V9: =V6+V7+V8 -> 0 | W9: =W6+W7+W8 -> 0
A10: 2 | C10: =COUNTA(D10:H10) -> 2 | D10: =D9 -> Ia | E10: 1 | J10: =D10&"."&E10 -> Ia.1 | K10: =E10 -> 1 | N10: =K10 -> 1 | O10: =teksty!$D$892 -> Kapitał (fundusz) podstawowy na początek okresu | V10: 0 | W10: 0 | Z10: =IF(WrfKwot,IF(AND(AF10=0,AG10=0,AH10=0),"=","!"),"") ->  | AA10: =teksty!$D$59 & ": " & J22 & CHAR(10) & "(" & LOWER(SUBSTITUTE(teksty!$D$955, CHAR(10), " ")) &")" -> Kapitał: Ia.1.2 (okres poprzedni) | AB10: =W22 -> 0 | AF10: =ROUND(IF(ISNUMBER(AB10),V10-AB10,0),2) -> 0 | AG10: =ROUND(IF(ISNUMBER(AC10),W10-AC10,0),2) -> 0 | AH10: =ROUND(IF(ISNUMBER(AD10),Y10-AD10,0),2) -> 0 | AI10: -3 | AJ10: -2
A11: 2 | C11: =COUNTA(D11:H11) -> 3 | D11: =D10 -> Ia | E11: 1 | F11: 1 | J11: =D11&"."&E11 & "." & F11 -> Ia.1.1 | K11: =E11&"."&F11 -> 1.1 | N11: =K11 -> 1.1 | O11: =teksty!$D$893 -> Zmiany kapitału (funduszu) podstawowego | V11: =V12-V17 -> 0 | W11: =W12-W17 -> 0
A12: 2 | C12: 4 | D12: Ia | E12: 1 | F12: =F11 -> 1 | G12: a | J12: =D12&"."&E12 & "." & F12& "." & G12 -> Ia.1.1.a | K12: =G12 &")" -> a) | N12: =K12 -> a) | O12: =teksty!$D$894 -> zwiększenie (z tytułu) | V12: =V13+V14+V15+V16 -> 0 | W12: =W13+W14+W15+W16 -> 0
A13: 2 | C13: 5 | D13: =D12 -> Ia | E13: =E12 -> 1 | F13: 1 | G13: =G12 -> a | H13: 1 | J13: =D13&"."&E13 & "." & F13& "." & G13 & "." & H13 -> Ia.1.1.a.1 | O13: =IF($N$13=""," – ") &teksty!$D$895 -> – wydania udziałów (emisji akcji)
A14: 2 | C14: 5 | D14: Ia | E14: =E13 -> 1 | F14: =F13 -> 1 | G14: =G13 -> a | H14: =H13+1 -> 2 | J14: =D14&"."&E14 & "." & F14& "." & G14 & "." & "p" & (H14-H13) -> Ia.1.1.a.p1
A15: 2 | C15: 5 | D15: Ia | E15: 1 | F15: 1 | G15: =G14 -> a | H15: =H14+1 -> 3 | J15: =D15&"."&E15 & "." & F15& "." & G15 & "." & "p" & (H15-H13) -> Ia.1.1.a.p2
A16: 2 | C16: 5 | D16: Ia | E16: 1 | F16: 1 | G16: =G15 -> a | H16: 4 | J16: =D16&"."&E16 & "." & F16& "." & G16 & "." & "p" & (H16-H13) -> Ia.1.1.a.p3
A17: 2 | C17: 4 | D17: Ia | E17: 1 | F17: 1 | G17: b | J17: =D17&"."&E17 & "." & F17& "." & G17 -> Ia.1.1.b | K17: =G17 &")" -> b) | N17: =K17 -> b) | O17: =teksty!$D$896 -> zmniejszenie (z tytułu) | V17: =V18+V19+V20+V21 -> 0 | W17: =W18+W19+W20+W21 -> 0
A18: 2 | C18: 5 | D18: Ia | E18: 1 | F18: =F17 -> 1 | G18: =G17 -> b | H18: 1 | J18: =D18&"."&E18 & "." & F18& "." & G18 & "." & H18 -> Ia.1.1.b.1 | O18: =IF($N$18=""," – ") &teksty!$D$897 -> – umorzenia udziałów (akcji)
A19: 2 | C19: =COUNTA(D19:H19) -> 5 | D19: Ia | E19: 1 | F19: 1 | G19: =G18 -> b | H19: =H18+1 -> 2 | J19: =D19&"."&E19 & "." & F19& "." & G19 & "." & "p" & (H19-H18) -> Ia.1.1.b.p1
A20: 2 | C20: 5 | D20: Ia | E20: 1 | F20: 1 | G20: =G19 -> b | H20: =H19+1 -> 3 | J20: =D20&"."&E20 & "." & F20& "." & G20 & "." & "p" & (H20-H18) -> Ia.1.1.b.p2
A21: 2 | C21: 5 | D21: Ia | E21: 1 | F21: 1 | G21: =G20 -> b | H21: 4 | J21: =D21&"."&E21 & "." & F21& "." & G21 & "." & "p" & (H21-H18) -> Ia.1.1.b.p3
A22: 2 | C22: 3 | D22: Ia | E22: =E18 -> 1 | F22: 2 | J22: =D22&"."&E22 & "." & F22 -> Ia.1.2 | K22: =E22&"."&F22 -> 1.2 | N22: =K22 -> 1.2 | O22: =teksty!$D$898 -> Kapitał (fundusz) podstawowy na koniec okresu | V22: =V10+V11 -> 0 | W22: =W10+W11 -> 0 | Z22: =IF(WrfKwot,IF(AND(AF22=0,AG22=0,AH22=0),"=","!"),"") ->  | AA22: =IF(AB22="-", "-",SUBSTITUTE(SUBSTITUTE(EtykietaNaNazwe(Bilans!$J$103),"_A"," A"),"_",".")) -> - | AB22: =IF(Bilans!WybranyWariant="JednostkaInna",Bilans!V$103, IF(Bilans!WybranyWariant="JednostkaMala",Bilans!V$204,"-")) -> - | AC22: =IF(Bilans!WybranyWariant="JednostkaInna",Bilans!W$103, IF(Bilans!WybranyWariant="JednostkaMala",Bilans!W$204,"-")) -> - | AF22: =ROUND(IF(ISNUMBER(AB22),V22-AB22,0),2) -> 0 | AG22: =ROUND(IF(ISNUMBER(AC22),W22-AC22,0),2) -> 0 | AH22: =ROUND(IF(ISNUMBER(AD22),Y22-AD22,0),2) -> 0 | AI22: -3 | AJ22: -2
A23: 2 | C23: 2 | D23: Ia | E23: 2 | J23: =D23&"."&E23 -> Ia.2 | K23: =E23 -> 2 | N23: =K23 -> 2 | O23: =teksty!$D$899 -> Kapitał (fundusz) zapasowy na początek okresu | V23: 0 | W23: 0 | Z23: =IF(WrfKwot,IF(AND(AF23=0,AG23=0,AH23=0),"=","!"),"") ->  | AA23: =teksty!$D$59 & ": " & J37& CHAR(10) & "(" & LOWER(SUBSTITUTE(teksty!$D$955, CHAR(10), " ")) &")" -> Kapitał: Ia.2.2 (okres poprzedni) | AB23: =W37 -> 0 | AF23: =ROUND(IF(ISNUMBER(AB23),V23-AB23,0),2) -> 0 | AG23: =ROUND(IF(ISNUMBER(AC23),W23-AC23,0),2) -> 0 | AH23: 0 | AI23: -3 | AJ23: -2
A24: 2 | C24: 3 | D24: Ia | E24: 2 | F24: 1 | J24: =D24&"."&E24 & "." & F24 -> Ia.2.1 | K24: =E24&"."&F24 -> 2.1 | N24: =K24 -> 2.1 | O24: =teksty!$D$900 -> Zmiany kapitału (funduszu) zapasowego | V24: =V25-V32 -> 0 | W24: =W25-W32 -> 0
A25: 2 | C25: 4 | D25: Ia | E25: 2 | F25: =F24 -> 1 | G25: a | J25: =D25&"."&E25 & "." & F25& "." & G25 -> Ia.2.1.a | K25: =G25 &")" -> a) | N25: =K25 -> a) | O25: =teksty!$D$901 -> zwiększenie (z tytułu) | V25: =V26+V27+V28+V29+V30+V31 -> 0 | W25: =W26+W27+W28+W29+W30+W31 -> 0
A26: 2 | C26: 5 | D26: =D25 -> Ia | E26: 2 | F26: =F25 -> 1 | G26: =G25 -> a | H26: 1 | J26: =D26&"."&E26 & "." & F26& "." & G26 & "." & H26 -> Ia.2.1.a.1 | O26: =IF($N$26=""," – ") &teksty!$D$902 -> – emisji akcji powyżej wartości nominalnej
A27: 2 | C27: 5 | D27: Ia | E27: 2 | F27: =F26 -> 1 | G27: a | H27: 2 | J27: =D27&"."&E27 & "." & F27& "." & G27 & "." & H27 -> Ia.2.1.a.2 | O27: =IF($N$27=""," – ") &teksty!$D$903 -> – podziału zysku (ustawowo)
A28: 2 | C28: 5 | D28: Ia | E28: 2 | F28: 1 | G28: a | H28: 3 | J28: =D28&"."&E28 & "." & F28& "." & G28 & "." & H28 -> Ia.2.1.a.3 | O28: =IF($N$28=""," – ") &teksty!$D$904 -> – podziału zysku (ponad wymaganą ustawowo minimalną wartość)
A29: 2 | C29: 5 | D29: Ia | E29: 2 | F29: 1 | G29: a | H29: =H28+1 -> 4 | J29: =D29&"."&E29 & "." & F29& "." & G29 & "." & "p" & (H29-H28) -> Ia.2.1.a.p1
A30: 2 | C30: 5 | D30: Ia | E30: 2 | F30: 1 | G30: a | H30: =H29+1 -> 5 | J30: =D30&"."&E30 & "." & F30& "." & G30 & "." & "p" & (H30-H28) -> Ia.2.1.a.p2
A31: 2 | C31: 5 | D31: Ia | E31: 2 | F31: 1 | G31: a | H31: 6 | J31: =D31&"."&E31 & "." & F31& "." & G31 & "." & "p" & (H31-H28) -> Ia.2.1.a.p3
A32: 2 | C32: 4 | D32: =D31 -> Ia | E32: 2 | F32: 1 | G32: b | J32: =D32&"."&E32 & "." & F32& "." & G32 -> Ia.2.1.b | K32: =G32 &")" -> b) | N32: =K32 -> b) | O32: =teksty!$D$905 -> zmniejszenie (z tytułu) | V32: =V33+V34+V35+V36 -> 0 | W32: =W33+W34+W35+W36 -> 0
A33: 2 | C33: 5 | D33: =D32 -> Ia | E33: 2 | F33: =F32 -> 1 | G33: =G32 -> b | H33: 1 | J33: =D33&"."&E33 & "." & F33& "." & G33 & "." & H33 -> Ia.2.1.b.1 | O33: =IF($N$33=""," – ") &teksty!$D$906 -> – pokrycia straty
A34: 2 | C34: =COUNTA(D34:H34) -> 5 | D34: =D33 -> Ia | E34: 2 | F34: 1 | G34: =G33 -> b | H34: =H33+1 -> 2 | J34: =D34&"."&E34 & "." & F34& "." & G34 & "." & "p" & (H34-H33) -> Ia.2.1.b.p1
A35: 2 | C35: 5 | D35: =D34 -> Ia | E35: 2 | F35: 1 | G35: =G34 -> b | H35: =H34+1 -> 3 | J35: =D35&"."&E35 & "." & F35& "." & G35 & "." & "p" & (H35-H33) -> Ia.2.1.b.p2
A36: 2 | C36: 5 | D36: =D35 -> Ia | E36: 2 | F36: 1 | G36: =G35 -> b | H36: 4 | J36: =D36&"."&E36 & "." & F36& "." & G36 & "." & "p" & (H36-H33) -> Ia.2.1.b.p3
A37: 2 | C37: 3 | D37: =D36 -> Ia | E37: 2 | F37: 2 | I37: =teksty!$D$885 & teksty!$D$284 & 1 -> wyszczególnienie, koniec strony 1 | J37: =D37&"."&E37 & "." & F37 -> Ia.2.2 | K37: =E37&"."&F37 -> 2.2 | N37: =K37 -> 2.2 | O37: =teksty!$D$907 -> Stan kapitału (funduszu) zapasowego na koniec okresu | V37: =V23+V24 -> 0 | W37: =W23+W24 -> 0 | Z37: =IF(WrfKwot,IF(AND(AF37=0,AG37=0,AH37=0),"=","!"),"") ->  | AA37: =IF(AB37="-", "-",SUBSTITUTE(SUBSTITUTE(EtykietaNaNazwe(Bilans!$J$205),"_A"," A"),"_",".")) -> - | AB37: =IF(Bilans!WybranyWariant="JednostkaInna",Bilans!V$104, IF(Bilans!WybranyWariant="JednostkaMala",Bilans!V$205,"-")) -> - | AC37: =IF(Bilans!WybranyWariant="JednostkaInna",Bilans!W$104, IF(Bilans!WybranyWariant="JednostkaMala",Bilans!W$205,"-")) -> - | AF37: =ROUND(IF(ISNUMBER(AB37),V37-AB37,0),2) -> 0 | AG37: =ROUND(IF(ISNUMBER(AC37),W37-AC37,0),2) -> 0 | AH37: =ROUND(IF(ISNUMBER(AD37),Y37-AD37,0),2) -> 0 | AI37: -3 | AJ37: -2
A38: 2 | B38: P | C38: 3 | D38: =D37 -> Ia | E38: 2 | F38: 2 | N38: =teksty!$D$885 & teksty!$D$718 -> wyszczególnienie, c.d. poprzedniej strony | U38: =$U$5 ->  | V38: =$V$5 -> Okres bieżący | W38: =$W$5 -> Okres poprzedni | X38: =teksty!$D$292 -> Przekszt. dane porów. za poprzedni okres
A39: 2 | C39: 2 | D39: Ia | E39: 3 | J39: =D39&"."&E39 -> Ia.3 | K39: =E39 -> 3 | N39: =K39 -> 3 | O39: =teksty!$D$908 -> Kapitał (fundusz) z aktualizacji wyceny na początek okresu – zmiany przyjętych zasad (polityki) rachunkowości | V39: 0 | W39: 0 | Z39: =IF(WrfKwot,IF(AND(AF39=0,AG39=0,AH39=0),"=","!"),"") ->  | AA39: =teksty!$D$59 & ": " & J50& CHAR(10) & "(" & LOWER(SUBSTITUTE(teksty!$D$955, CHAR(10), " ")) &")" -> Kapitał: Ia.3.2 (okres poprzedni) | AB39: =W50 -> 0 | AF39: =ROUND(IF(ISNUMBER(AB39),V39-AB39,0),2) -> 0 | AG39: =ROUND(IF(ISNUMBER(AC39),W39-AC39,0),2) -> 0 | AH39: =ROUND(IF(ISNUMBER(AD39),Y39-AD39,0),2) -> 0 | AI39: -3 | AJ39: -2
A40: 2 | C40: 3 | D40: Ia | E40: 3 | F40: 1 | J40: =D40&"."&E40 & "." & F40 -> Ia.3.1 | K40: =E40&"."&F40 -> 3.1 | N40: =K40 -> 3.1 | O40: =teksty!$D$909 -> Zmiany kapitału (funduszu) z aktualizacji wyceny | V40: =V41-V45 -> 0 | W40: =W41-W45 -> 0
A41: 2 | C41: 4 | D41: Ia | E41: 3 | F41: =F40 -> 1 | G41: a | J41: =D41&"."&E41 & "." & F41& "." & G41 -> Ia.3.1.a | K41: =G41 &")" -> a) | N41: =K41 -> a) | O41: =teksty!$D$910 -> zwiększenie (z tytułu) | V41: =V42+V43+V44 -> 0 | W41: =W42+W43+W44 -> 0
A42: 2 | C42: 5 | D42: =D41 -> Ia | E42: 3 | F42: =F41 -> 1 | G42: =G41 -> a | H42: =H41+1 -> 1 | J42: =D42&"."&E42 & "." & F42& "." & G42 & "." & "p" & (H42-H41) -> Ia.3.1.a.p1
A43: 2 | C43: 5 | D43: Ia | E43: 3 | F43: 1 | G43: =G42 -> a | H43: =H42+1 -> 2 | J43: =D43&"."&E43 & "." & F43& "." & G43 & "." & "p" & (H43-H41) -> Ia.3.1.a.p2
A44: 2 | C44: 5 | D44: Ia | E44: 3 | F44: 1 | G44: =G43 -> a | H44: 3 | J44: =D44&"."&E44 & "." & F44& "." & G44 & "." & "p" & (H44-H41) -> Ia.3.1.a.p3
A45: 2 | C45: 4 | D45: Ia | E45: 3 | F45: 1 | G45: b | J45: =D45&"."&E45 & "." & F45& "." & G45 -> Ia.3.1.b | K45: =G45 &")" -> b) | N45: =K45 -> b) | O45: =teksty!$D$911 -> zmniejszenie (z tytułu) | V45: =V46+V47+V48+V49 -> 0 | W45: =W46+W47+W48+W49 -> 0
A46: 2 | C46: 5 | D46: Ia | E46: 3 | F46: =F45 -> 1 | G46: =G45 -> b | H46: 1 | J46: =D46&"."&E46 & "." & F46& "." & G46 & "." & H46 -> Ia.3.1.b.1 | O46: =IF($N$46=""," – ") &teksty!$D$912 -> – zbycia środków trwałych
A47: 2 | C47: =COUNTA(D47:H47) -> 5 | D47: Ia | E47: 3 | F47: 1 | G47: =G46 -> b | H47: =H46+1 -> 2 | J47: =D47&"."&E47 & "." & F47& "." & G47 & "." & "p" & (H47-H46) -> Ia.3.1.b.p1
A48: 2 | C48: 5 | D48: Ia | E48: 3 | F48: 1 | G48: =G47 -> b | H48: =H47+1 -> 3 | J48: =D48&"."&E48 & "." & F48& "." & G48 & "." & "p" & (H48-H46) -> Ia.3.1.b.p2
A49: 2 | C49: 5 | D49: Ia | E49: 3 | F49: 1 | G49: =G48 -> b | H49: 4 | J49: =D49&"."&E49 & "." & F49& "." & G49 & "." & "p" & (H49-H46) -> Ia.3.1.b.p3
A50: 2 | C50: 3 | D50: Ia | E50: =E46 -> 3 | F50: 2 | J50: =D50&"."&E50 & "." & F50 -> Ia.3.2 | K50: =E50&"."&F50 -> 3.2 | N50: =K50 -> 3.2 | O50: =teksty!$D$913 -> Kapitał (fundusz) z aktualizacji wyceny na koniec okresu | V50: =V39+V40 -> 0 | W50: =W39+W40 -> 0 | Z50: =IF(WrfKwot,IF(AND(AF50=0,AG50=0,AH50=0),"=","!"),"") ->  | AA50: =IF(AB50="-", "-",SUBSTITUTE(SUBSTITUTE(EtykietaNaNazwe(Bilans!$J$108),"_A"," A"),"_",".")) -> - | AB50: =IF(Bilans!WybranyWariant="JednostkaInna",Bilans!V$108, IF(Bilans!WybranyWariant="JednostkaMala",Bilans!V$209,"-")) -> - | AC50: =IF(Bilans!WybranyWariant="JednostkaInna",Bilans!W$108, IF(Bilans!WybranyWariant="JednostkaMala",Bilans!W$209,"-")) -> - | AF50: =ROUND(IF(ISNUMBER(AB50),V50-AB50,0),2) -> 0 | AG50: =ROUND(IF(ISNUMBER(AC50),W50-AC50,0),2) -> 0 | AH50: =ROUND(IF(ISNUMBER(AD50),Y50-AD50,0),2) -> 0 | AI50: -3 | AJ50: -2
A51: 2 | C51: 2 | D51: Ia | E51: 4 | J51: =D51&"."&E51 -> Ia.4 | K51: =E51 -> 4 | N51: =K51 -> 4 | O51: =teksty!$D$914 -> Pozostałe kapitały (fundusze) rezerwowe na początek okresu | V51: 0 | W51: 0 | Z51: =IF(WrfKwot,IF(AND(AF51=0,AG51=0,AH51=0),"=","!"),"") ->  | AA51: =teksty!$D$59 & ": " & J61& CHAR(10) & "(" & LOWER(SUBSTITUTE(teksty!$D$955, CHAR(10), " ")) &")" -> Kapitał: Ia.4.2 (okres poprzedni) | AB51: =W61 -> 0 | AF51: =ROUND(IF(ISNUMBER(AB51),V51-AB51,0),2) -> 0 | AG51: =ROUND(IF(ISNUMBER(AC51),W51-AC51,0),2) -> 0 | AH51: 0 | AI51: -3 | AJ51: -2
A52: 2 | C52: 3 | D52: Ia | E52: 4 | F52: 1 | J52: =D52&"."&E52 & "." & F52 -> Ia.4.1 | K52: =E52&"."&F52 -> 4.1 | N52: =K52 -> 4.1 | O52: =teksty!$D$915 -> Zmiany pozostałych kapitałów (funduszy) rezerwowych | V52: =V53-V57 -> 0 | W52: =W53-W57 -> 0
A53: 2 | C53: 4 | D53: Ia | E53: 4 | F53: =F52 -> 1 | G53: a | J53: =D53&"."&E53 & "." & F53& "." & G53 -> Ia.4.1.a | K53: =G53 &")" -> a) | N53: =K53 -> a) | O53: =teksty!$D$916 -> zwiększenie (z tytułu) | V53: =V54+V55+V56 -> 0 | W53: =W54+W55+W56 -> 0
A54: 2 | C54: 5 | D54: =D53 -> Ia | E54: 4 | F54: =F53 -> 1 | G54: =G53 -> a | H54: =H53+1 -> 1 | J54: =D54&"."&E54 & "." & F54& "." & G54 & "." & "p" & (H54-H53) -> Ia.4.1.a.p1
A55: 2 | C55: 5 | D55: Ia | E55: 4 | F55: 1 | G55: =G54 -> a | H55: =H54+1 -> 2 | J55: =D55&"."&E55 & "." & F55& "." & G55 & "." & "p" & (H55-H53) -> Ia.4.1.a.p2
A56: 2 | C56: 5 | D56: Ia | E56: 4 | F56: 1 | G56: =G55 -> a | H56: 3 | J56: =D56&"."&E56 & "." & F56& "." & G56 & "." & "p" & (H56-H53) -> Ia.4.1.a.p3
A57: 2 | C57: 4 | D57: Ia | E57: 4 | F57: 1 | G57: b | J57: =D57&"."&E57 & "." & F57& "." & G57 -> Ia.4.1.b | K57: =G57 &")" -> b) | N57: b) | O57: =teksty!$D$917 -> zmniejszenie (z tytułu) | V57: =V58+V59+V60 -> 0 | W57: =W58+W59+W60 -> 0
A58: 2 | C58: =COUNTA(D58:H58) -> 5 | D58: Ia | E58: =E57 -> 4 | F58: =F57 -> 1 | G58: =G57 -> b | H58: =H57+1 -> 1 | J58: =D58&"."&E58 & "." & F58& "." & G58 & "." & "p" & (H58-H57) -> Ia.4.1.b.p1
A59: 2 | C59: 5 | D59: Ia | E59: 4 | F59: 1 | G59: =G58 -> b | H59: =H58+1 -> 2 | J59: =D59&"."&E59 & "." & F59& "." & G59 & "." & "p" & (H59-H57) -> Ia.4.1.b.p2
A60: 2 | C60: 5 | D60: Ia | E60: 4 | F60: 1 | G60: =G59 -> b | H60: 3 | J60: =D60&"."&E60 & "." & F60& "." & G60 & "." & "p" & (H60-H57) -> Ia.4.1.b.p3
A61: 2 | C61: 3 | D61: Ia | E61: =E57 -> 4 | F61: 2 | J61: =D61&"."&E61 & "." & F61 -> Ia.4.2 | K61: =E61&"."&F61 -> 4.2 | N61: =K61 -> 4.2 | O61: =teksty!$D$918 -> Pozostałe kapitały (fundusze) rezerwowe na koniec okresu | V61: =V51+V52 -> 0 | W61: =W51+W52 -> 0 | Z61: =IF(WrfKwot,IF(AND(AF61=0,AG61=0,AH61=0),"=","!"),"") ->  | AA61: =IF(AB61="-", "-",SUBSTITUTE(SUBSTITUTE(EtykietaNaNazwe(Bilans!$J$211),"_A"," A"),"_",".")) -> - | AB61: =IF(Bilans!WybranyWariant="JednostkaInna",Bilans!V$110, IF(Bilans!WybranyWariant="JednostkaMala",Bilans!V$211,"-")) -> - | AC61: =IF(Bilans!WybranyWariant="JednostkaInna",Bilans!W$110, IF(Bilans!WybranyWariant="JednostkaMala",Bilans!W$211,"-")) -> - | AF61: =ROUND(IF(ISNUMBER(AB61),V61-AB61,0),2) -> 0 | AG61: =ROUND(IF(ISNUMBER(AC61),W61-AC61,0),2) -> 0 | AH61: =ROUND(IF(ISNUMBER(AD61),Y61-AD61,0),2) -> 0 | AI61: -3 | AJ61: -2
A62: 2 | C62: 2 | D62: Ia | E62: 5 | J62: =D62&"."&E62 -> Ia.5 | K62: =E62 -> 5 | N62: =K62 -> 5 | O62: =teksty!$D$919 -> Zysk (strata) z lat ubiegłych na początek okresu | V62: =W94-W95+W92 -> 0 | W62: 0 | Z62: =IF(WrfKwot,IF(AND(AF62=0,AG62=0,AH62=0),"=","!"),"") ->  | AA62: =teksty!$D$59 & ": " & J93 & "a/b + 5.7" & CHAR(10) & "(" & LOWER(SUBSTITUTE(teksty!$D$955, CHAR(10), " ")) &")" -> Kapitał: Ia.6a/b + 5.7 (okres poprzedni) | AB62: =W94-W95+W92 -> 0 | AF62: =ROUND(IF(ISNUMBER(AB62),ABS(V62)-ABS(AB62),0),2) -> 0 | AG62: =ROUND(IF(ISNUMBER(AC62),W62-AC62,0),2) -> 0 | AH62: =ROUND(IF(ISNUMBER(AD62),Y62-AD62,0),2) -> 0 | AI62: -3 | AJ62: -2
A63: 2 | C63: 3 | D63: Ia | E63: 5 | F63: 1 | J63: =D63&"."&E63 & "." & F63 -> Ia.5.1 | K63: =E63&"."&F63 -> 5.1 | N63: =K63 -> 5.1 | O63: =teksty!$D$920 -> Zysk z lat ubiegłych na początek okresu | V63: =IF(V62>=0,V62,0) -> 0 | W63: =IF(W62>=0,W62,0) -> 0
A64: 2 | C64: 4 | D64: =D63 -> Ia | E64: 5 | F64: 1 | G64: 1 | J64: =D64&"."&E64 & "." & F64& "." & G64 -> Ia.5.1.1 | O64: =IF($N$64=""," – ") &teksty!$D$921 -> – zmiany przyjętych zasad (polityki) rachunkowości
A65: 2 | C65: 4 | D65: Ia | E65: 5 | F65: 1 | G65: 2 | I65: =teksty!$D$886& teksty!$D$284 & 2 -> Zmiany w kapitale, koniec strony 2 | J65: =D65&"."&E65 & "." & F65& "." & G65 -> Ia.5.1.2 | O65: =IF($N$65=""," – ") &teksty!$D$922 -> – korekty błędów
A66: 2 | B66: P | C66: =COUNTA(D66:H66) -> 3 | D66: Ia | E66: 5 | F66: 1 | N66: =teksty!$D$885 & teksty!$D$718 -> wyszczególnienie, c.d. poprzedniej strony | U66: =$U$5 ->  | V66: =$V$5 -> Okres bieżący | W66: =$W$5 -> Okres poprzedni | X66: =teksty!$D$292 -> Przekszt. dane porów. za poprzedni okres
A67: 2 | C67: 3 | D67: Ia | E67: 5 | F67: 2 | J67: =D67&"."&E67 & "." & F67 -> Ia.5.2 | K67: =E67&"."&F67 -> 5.2 | N67: =K67 -> 5.2 | O67: =teksty!$D$923 -> Zysk z lat ubiegłych na początek okresu, po korektach | V67: =V63+V64+V65 -> 0 | W67: =W63+W64+W65 -> 0 | Z67: =teksty!$D$285 -> ukryty wiersz powyżej zawiera nagłówek dla kolejnej strony
A68: 2 | C68: 4 | D68: Ia | E68: 5 | F68: =F67 -> 2 | G68: a | J68: =D68&"."&E68 & "." & F68& "." & G68 -> Ia.5.2.a | K68: =G68 &")" -> a) | N68: =K68 -> a) | O68: =teksty!$D$924 -> zwiększenie (z tytułu) | V68: =V69+V70+V71+V72 -> 0 | W68: =W69+W70+W71+W72 -> 0
A69: 2 | C69: 5 | D69: =D68 -> Ia | E69: 5 | F69: =F68 -> 2 | G69: =G68 -> a | H69: 1 | J69: =D69&"."&E69 & "." & F69& "." & G69 & "." & H69 -> Ia.5.2.a.1 | O69: =IF($N$69=""," – ") &teksty!$D$925 -> – podziału zysku z lat ubiegłych
A70: 2 | C70: 5 | D70: Ia | E70: 5 | F70: 2 | G70: =G69 -> a | H70: =H69+1 -> 2 | J70: =D70&"."&E70 & "." & F70& "." & G70 & "." & "p" & (H70-H69) -> Ia.5.2.a.p1
A71: 2 | C71: 5 | D71: Ia | E71: 5 | F71: 2 | G71: =G70 -> a | H71: =H70+1 -> 3 | J71: =D71&"."&E71 & "." & F71& "." & G71 & "." & "p" & (H71-H69) -> Ia.5.2.a.p2
A72: =A71 -> 2 | C72: 5 | D72: Ia | E72: 5 | F72: 2 | G72: =G71 -> a | H72: 4 | J72: =D72&"."&E72 & "." & F72& "." & G72 & "." & "p" & (H72-H69) -> Ia.5.2.a.p3
A73: 2 | C73: 4 | D73: Ia | E73: 5 | F73: 2 | G73: b | J73: =D73&"."&E73 & "." & F73& "." & G73 -> Ia.5.2.b | K73: =G73 &")" -> b) | N73: =K73 -> b) | O73: =teksty!$D$926 -> zmniejszenie (z tytułu) | V73: =V74+V75+V76 -> 0 | W73: =W74+W75+W76 -> 0
A74: 2 | C74: =COUNTA(D74:H74) -> 5 | D74: Ia | E74: =E73 -> 5 | F74: =F73 -> 2 | G74: =G73 -> b | H74: =H73+1 -> 1 | J74: =D74&"."&E74 & "." & F74& "." & G74 & "." & "p" & (H74-H73) -> Ia.5.2.b.p1
A75: 2 | C75: 5 | D75: Ia | E75: =E74 -> 5 | F75: 2 | G75: =G74 -> b | H75: =H74+1 -> 2 | J75: =D75&"."&E75 & "." & F75& "." & G75 & "." & "p" & (H75-H73) -> Ia.5.2.b.p2
A76: 2 | C76: 5 | D76: Ia | E76: =E75 -> 5 | F76: 2 | G76: =G75 -> b | H76: 3 | J76: =D76&"."&E76 & "." & F76& "." & G76 & "." & "p" & (H76-H73) -> Ia.5.2.b.p3
A77: 2 | C77: 3 | D77: Ia | E77: 5 | F77: 3 | J77: =D77&"."&E77 & "." & F77 -> Ia.5.3 | K77: =E77&"."&F77 -> 5.3 | N77: =K77 -> 5.3 | O77: =teksty!$D$927 -> Zysk z lat ubiegłych na koniec okresu | V77: =V67+V68-V73 -> 0 | W77: =W67+W68-W73 -> 0
A78: 2 | C78: 3 | D78: Ia | E78: 5 | F78: 4 | J78: =D78&"."&E78 & "." & F78 -> Ia.5.4 | K78: =E78&"."&F78 -> 5.4 | N78: =K78 -> 5.4 | O78: =teksty!$D$928 -> Strata z lat ubiegłych na początek okresu | V78: =IF(V62<0,-V62,0) -> 0 | W78: =IF(W62<0,-W62,0) -> 0
A79: 2 | C79: 4 | D79: Ia | E79: 5 | F79: 4 | G79: 1 | J79: =D79&"."&E79 & "." & F79& "." & G79 -> Ia.5.4.1 | O79: =IF($N$79=""," – ") &teksty!$D$929 -> – zmiany przyjętych zasad (polityki) rachunkowości
A80: 2 | C80: 4 | D80: Ia | E80: 5 | F80: 4 | G80: 2 | J80: =D80&"."&E80 & "." & F80& "." & G80 -> Ia.5.4.2 | O80: =IF($N$80=""," – ") &teksty!$D$930 -> – korekty błędów
A81: 2 | C81: 3 | D81: Ia | E81: 5 | F81: 5 | J81: =D81&"."&E81 & "." & F81 -> Ia.5.5 | K81: =E81&"."&F81 -> 5.5 | N81: =K81 -> 5.5 | O81: =teksty!$D$931 -> Strata z lat ubiegłych na początek okresu, po korektach | V81: =V78+V79+V80 -> 0 | W81: =W78+W79+W80 -> 0
A82: 2 | C82: 4 | D82: Ia | E82: 5 | F82: =F81 -> 5 | G82: a | J82: =D82&"."&E82 & "." & F82& "." & G82 -> Ia.5.5.a | K82: =G82 &")" -> a) | N82: =K82 -> a) | O82: =teksty!$D$932 -> zwiększenie (z tytułu) | V82: =V83+V84+V85+V86 -> 0 | W82: =W83+W84+W85+W86 -> 0
A83: 2 | C83: 5 | D83: =D82 -> Ia | E83: 5 | F83: =F82 -> 5 | G83: =G82 -> a | H83: 1 | J83: =D83&"."&E83 & "." & F83& "." & G83 & "." & H83 -> Ia.5.5.a.1 | O83: =IF($N$83=""," – ") &teksty!$D$933 -> – przeniesienia straty z lat ubiegłych do pokrycia
A84: 2 | C84: 5 | D84: Ia | E84: =E83 -> 5 | F84: 5 | G84: =G83 -> a | H84: =H83+1 -> 2 | J84: =D84&"."&E84 & "." & F84& "." & G84 & "." & "p" & (H84-H83) -> Ia.5.5.a.p1
A85: 2 | C85: 5 | D85: Ia | E85: =E84 -> 5 | F85: 5 | G85: =G84 -> a | H85: =H84+1 -> 3 | J85: =D85&"."&E85 & "." & F85& "." & G85 & "." & "p" & (H85-H83) -> Ia.5.5.a.p2
A86: 2 | C86: 5 | D86: Ia | E86: =E85 -> 5 | F86: 5 | G86: =G85 -> a | H86: 4 | J86: =D86&"."&E86 & "." & F86& "." & G86 & "." & "p" & (H86-H83) -> Ia.5.5.a.p3
A87: 2 | C87: 4 | D87: Ia | E87: 5 | F87: 5 | G87: b | J87: =D87&"."&E87 & "." & F87& "." & G87 -> Ia.5.5.b | K87: =G87 &")" -> b) | N87: =K87 -> b) | O87: =teksty!$D$934 -> zmniejszenie (z tytułu) | V87: =V88+V89+V90 -> 0 | W87: =W88+W89+W90 -> 0
A88: 2 | C88: =COUNTA(D88:H88) -> 5 | D88: Ia | E88: =E87 -> 5 | F88: =F87 -> 5 | G88: =G87 -> b | H88: =H87+1 -> 1 | J88: =D88&"."&E88 & "." & F88& "." & G88 & "." & "p" & (H88-H87) -> Ia.5.5.b.p1
A89: 2 | C89: 5 | D89: Ia | E89: =E88 -> 5 | F89: 5 | G89: =G88 -> b | H89: =H88+1 -> 2 | J89: =D89&"."&E89 & "." & F89& "." & G89 & "." & "p" & (H89-H87) -> Ia.5.5.b.p2
A90: 2 | C90: 5 | D90: Ia | E90: =E89 -> 5 | F90: 5 | G90: =G89 -> b | H90: 3 | J90: =D90&"."&E90 & "." & F90& "." & G90 & "." & "p" & (H90-H87) -> Ia.5.5.b.p3
A91: 2 | C91: 3 | D91: Ia | E91: 5 | F91: 6 | J91: =D91&"."&E91 & "." & F91 -> Ia.5.6 | K91: =E91&"."&F91 -> 5.6 | N91: =K91 -> 5.6 | O91: =teksty!$D$935 -> Strata z lat ubiegłych na koniec okresu | V91: =V81+V82-V87 -> 0 | W91: =W81+W82-W87 -> 0
A92: 2 | C92: 3 | D92: Ia | E92: 5 | F92: 7 | J92: =D92&"."&E92 & "." & F92 -> Ia.5.7 | K92: =E92&"."&F92 -> 5.7 | N92: =K92 -> 5.7 | O92: =teksty!$D$936 -> Zysk (strata) z lat ubiegłych na koniec okresu | V92: =V77-V91 -> 0 | W92: =W77-W91 -> 0
A93: 2 | C93: 2 | D93: =D92 -> Ia | E93: 6 | J93: =D93&"."&E93 -> Ia.6 | K93: =E93 -> 6 | N93: =K93 -> 6 | O93: =teksty!$D$937 -> Wynik netto | V93: =V94-V95-V96 -> 0 | W93: =W94-W95-W96 -> 0 | Z93: =IF(WrfKwot,IF(AND(AF93=0,AG93=0,AH93=0),"=","!"),"") ->  | AA93: =IF(AB93="-", "-",SUBSTITUTE(SUBSTITUTE(EtykietaNaNazwe(Bilans!$J$219),"_A"," A"),"_",".") & " + " & CHAR(10) & AA96) -> - | AB93: =IF(Bilans!WybranyWariant="JednostkaInna",Bilans!V$120+Bilans!V$121, IF(Bilans!WybranyWariant="JednostkaMala",Bilans!V$219-Bilans!V$220,"-")) -> - | AC93: =IF(Bilans!WybranyWariant="JednostkaInna",Bilans!W$120+Bilans!W$121, IF(Bilans!WybranyWariant="JednostkaMala",Bilans!W$219-Bilans!W$220,"-")) -> - | AF93: =ROUND(IF(ISNUMBER(AB93),V93-AB93,0),2) -> 0 | AG93: =ROUND(IF(ISNUMBER(AC93),W93-AC93,0),2) -> 0 | AH93: =ROUND(IF(ISNUMBER(AD93),Y93-AD93,0),2) -> 0 | AI93: -3 | AJ93: -2
A94: 2 | C94: 3 | D94: Ia | E94: 6 | F94: a | J94: =D94&"."&E94 & "." & F94 -> Ia.6.a | K94: =F94 &")" -> a) | N94: =K94 -> a) | O94: =teksty!$D$938 -> zysk netto
A95: 2 | C95: 3 | D95: Ia | E95: 6 | F95: b | J95: =D95&"."&E95 & "." & F95 -> Ia.6.b | K95: =F95 &")" -> b) | N95: =K95 -> b) | O95: =teksty!$D$939 -> strata netto
A96: 2 | C96: 3 | D96: Ia | E96: 6 | F96: c | J96: Ia.6.c | K96: =F96 &")" -> c) | N96: =K96 -> c) | O96: =teksty!$D$940 -> odpisy z zysku | Z96: =IF(WrfKwot,IF(AND(AF96=0,AG96=0,AH96=0),"=","!"),"") ->  | AA96: =IF(AB96="-", "-",SUBSTITUTE(SUBSTITUTE(EtykietaNaNazwe(Bilans!$J$220),"_A"," A"),"_",".")) -> - | AB96: =IF(Bilans!WybranyWariant="JednostkaInna",Bilans!V$121,IF(Bilans!WybranyWariant="JednostkaMala",Bilans!V$220,"-")) -> - | AC96: =IF(Bilans!WybranyWariant="JednostkaInna",Bilans!W$121,IF(Bilans!WybranyWariant="JednostkaMala",Bilans!W$220,"-")) -> - | AF96: =ROUND(IF(ISNUMBER(AB96),ABS(V96)-ABS(AB96),0),2) -> 0 | AG96: =ROUND(IF(ISNUMBER(AC96),ABS(W96)-ABS(AC96),0),2) -> 0 | AH96: =ROUND(IF(ISNUMBER(AD96),ABS(Y96)-ABS(AD96),0),2) -> 0 | AI96: -3 | AJ96: -2
A97: 2 | C97: 1 | D97: II | J97: =$D97 -> II | K97: =D97 -> II | N97: =K97 -> II | O97: =teksty!$D$941 -> Kapitał (fundusz) własny na koniec okresu (BZ) | V97: =V22+V37+V50+V61+V92+V93 -> 0 | W97: =W22+W37+W50+W61+W92+W93 -> 0
A98: 2 | C98: 1 | D98: III | J98: =$D98 -> III | K98: =D98 -> III | N98: =K98 -> III | O98: =teksty!$D$942 -> Kapitał (fundusz) własny, po uwzględnieniu proponowanego podziału zysku (pokrycia straty) | V98: =V97 -> 0 | W98: =W97 -> 0 | Z98: =IF(WrfKwot,IF(AND(AF98=0,AG98=0,AH98=0),"=","!"),"") ->  | AA98: =IF(AB98="-", "-",SUBSTITUTE(SUBSTITUTE(EtykietaNaNazwe(Bilans!$J$102),"_A"," A"),"_",".")) -> - | AB98: =IF(Bilans!WybranyWariant="JednostkaInna",Bilans!V$102, IF(Bilans!WybranyWariant="JednostkaMala",-Bilans!V$203,"-")) -> - | AC98: =IF(Bilans!WybranyWariant="JednostkaInna",Bilans!W$102, IF(Bilans!WybranyWariant="JednostkaMala",-Bilans!W$203,"-")) -> - | AF98: =ROUND(IF(ISNUMBER(AB98),ABS(V98)-ABS(AB98),0),2) -> 0 | AG98: =ROUND(IF(ISNUMBER(AC98),ABS(W98)-ABS(AC98),0),2) -> 0 | AH98: =ROUND(IF(ISNUMBER(AD98),ABS(Y98)-ABS(AD98),0),2) -> 0 | AI98: -3 | AJ98: -2
A99: 0 | I99: Skonsolidowana:
A100: =#REF! ->  | B100: P | C100: =COUNTA(D100:H100) -> 3 | D100: =#REF! ->  | E100: =#REF! ->  | F100: =#REF! ->  | N100: =teksty!$D$885 & teksty!$D$718 -> wyszczególnienie, c.d. poprzedniej strony | U100: =$U$5 ->  | V100: =$V$5 -> Okres bieżący | W100: =$W$5 -> Okres poprzedni | X100: =teksty!$D$292 -> Przekszt. dane porów. za poprzedni okres
A101: =#REF! ->  | B101: P | C101: 3 | D101: =#REF! ->  | E101: =#REF! ->  | F101: =#REF! ->  | N101: =teksty!$D$885 & teksty!$D$718 -> wyszczególnienie, c.d. poprzedniej strony | U101: =$U$5 ->  | V101: =$V$5 -> Okres bieżący | W101: =$W$5 -> Okres poprzedni | X101: =teksty!$D$292 -> Przekszt. dane porów. za poprzedni okres

Sheet Przepływy
A1: RachPrzeplywow | C1: Poziom | F1: Składniki | J1: (pełen symbol) | K1: (wyświetlana etykieta) | R1: 1 | S1: =VLOOKUP(WybranaPozycja,teksty!B150:F155,2) -> JednostkaInna | U1: 2 | V1: =VLOOKUP(WybranaPodpozycja,teksty!B159:F160,2) -> Posrednia
M2: =teksty!D787 -> Rachunek przepływów
I3: =teksty!$D$291 -> Opcjonalne. Aby nie włączać tego zestawienia do sprawozdania - ukryj ten arkusz | N3: =Wprowadzenie!$I$4 & " " & IF(NumerWariantuRaportu = 5, teksty!$D$289, "") ->  | X3: =teksty!D283 & VLOOKUP(NumerBazyRaportu,BazyKwot,3) -> wszystkie kwoty w złotych
N5: =VLOOKUP(WybranaPodpozycja,teksty!$B$159:$F$160,3) -> metoda pośrednia | U5: =IF(BezDat,"",teksty!$D$615) ->  | V5: =IF(BezDat,teksty!$D$954,YEAR(DataDo)) -> Okres bieżący | W5: =IF(BezDat,teksty!$D$955,V5-1) -> Okres poprzedni | X5: =teksty!$D$292 -> Przekszt. dane porów. za poprzedni okres | AA5: =IF(OR(_xlfn.ISFORMULA($V$8),_xlfn.ISFORMULA($W$8)),teksty!$D$951,"") -> W niektórych polach tego zestawienia napotkasz pomocnicze formuły. Jeżeli to potrzebne, możesz je zmienić, lub wpisać w te pola odpowiednie kwoty.
A6: =(4*65536)+(2+32) -> 262178 | C6: =COUNTA(D6:H6) -> 1 | D6: A | J6: =$D6 -> A | K6: =D6 -> A | N6: =K6 -> A | O6: =teksty!$D$851 -> Przepływy środków pieniężnych z działalności operacyjnej
A7: =(4*65536)+(2+32) -> 262178 | C7: 2 | D7: =D6 -> A | E7: I | J7: =D7&"."&E7 -> A.I | K7: =E7 -> I | N7: I | O7: =teksty!$D$852 -> Zysk (strata) netto | Z7: =IF(WrfKwot,IF(AND(AF7=0,AG7=0,AH7=0),"=","!"),"") ->  | AA7: =IF(AB7="-", "-",SUBSTITUTE(SUBSTITUTE(EtykietaNaNazwe(Bilans!$J$219),"_A"," A"),"_",".")) -> - | AB7: =IF(Bilans!WybranyWariant="JednostkaInna",Bilans!V$120, IF(Bilans!WybranyWariant="JednostkaMala",Bilans!V$219,"-")) -> - | AC7: =IF(Bilans!WybranyWariant="JednostkaInna",Bilans!W$120, IF(Bilans!WybranyWariant="JednostkaMala",Bilans!W$219,"-")) -> - | AD7: =IF(Bilans!WybranyWariant="JednostkaInna",Bilans!X$120, IF(Bilans!WybranyWariant="JednostkaMala",Bilans!X$219,"-")) -> - | AF7: =ROUND(IF(ISNUMBER(AB7),V7-AB7,0),2) -> 0 | AG7: =ROUND(IF(ISNUMBER(AC7),W7-AC7,0),2) -> 0 | AH7: 0
A8: 262178 | C8: 2 | D8: =D7 -> A | E8: II | J8: =D8&"."&E8 -> A.II | K8: =E8 -> II | N8: II | O8: =teksty!$D$853 -> Korekty razem | V8: =V9+V10+V11+V12+V13+V14+V15+V16+V17+V18 -> 0 | W8: =W9+W10+W11+W12+W13+W14+W15+W16+W17+W18 -> 0
A9: 262178 | C9: 3 | D9: =D8 -> A | E9: II | F9: 1 | J9: =D9&"."&E9 & "." & F9 -> A.II.1 | K9: =F9 -> 1 | N9: 1 | O9: =teksty!$D$854 -> Amortyzacja
A10: 262178 | C10: 3 | D10: A | E10: II | F10: 2 | J10: A.II.2 | K10: 2 | N10: 2 | O10: =teksty!$D$855 -> Zyski (straty) z tytułu różnic kursowych
A11: 262178 | C11: 3 | D11: A | E11: II | F11: 3 | J11: A.II.3 | K11: 3 | N11: 3 | O11: =teksty!$D$856 -> Odsetki i udziały w zyskach (dywidendy)
A12: 262178 | C12: 3 | D12: A | E12: II | F12: 4 | J12: A.II.4 | K12: 4 | N12: 4 | O12: =teksty!$D$857 -> Zysk (strata) z działalności inwestycyjnej
A13: 262178 | C13: 3 | D13: A | E13: II | F13: 5 | J13: A.II.5 | K13: 5 | N13: 5 | O13: =teksty!$D$858 -> Zmiana stanu rezerw
A14: 262178 | C14: 3 | D14: A | E14: II | F14: 6 | J14: A.II.6 | K14: 6 | N14: 6 | O14: =teksty!$D$859 -> Zmiana stanu zapasów
A15: 262178 | C15: 3 | D15: A | E15: II | F15: 7 | J15: A.II.7 | K15: 7 | N15: 7 | O15: =teksty!$D$860 -> Zmiana stanu należności
A16: 262178 | C16: 3 | D16: A | E16: II | F16: 8 | J16: A.II.8 | K16: 8 | N16: 8 | O16: =teksty!$D$861 -> Zmiana stanu zobowiązań krótkoterminowych, z wyjątkiem pożyczek i kredytów
A17: 262178 | C17: 3 | D17: A | E17: II | F17: 9 | J17: A.II.9 | K17: 9 | N17: 9 | O17: =teksty!$D$862 -> Zmiana stanu rozliczeń międzyokresowych
A18: 262178 | C18: 3 | D18: A | E18: II | F18: 10 | J18: A.II.10 | K18: 10 | N18: 10 | O18: =teksty!$D$863 -> Inne korekty
A19: 262178 | C19: 2 | D19: =D18 -> A | E19: III | J19: =D19&"."&E19 -> A.III | K19: =E19 -> III | N19: =K19 -> III | O19: =teksty!$D$864 -> Przepływy pieniężne netto z działalności operacyjnej (I±II) | V19: =V7+V8 -> 0 | W19: =W7+W8 -> 0
A20: 262178 | C20: 1 | D20: B | J20: =$D20 -> B | K20: =D20 -> B | N20: B | O20: =teksty!$D$802 -> Przepływy środków pieniężnych z działalności inwestycyjnej
A21: 262178 | C21: 2 | D21: =D20 -> B | E21: I | J21: =D21&"."&E21 -> B.I | K21: =E21 -> I | N21: =K21 -> I | O21: =teksty!$D$803 -> Wpływy | V21: =V22+V23+V24+V32 -> 0 | W21: =W22+W23+W24+W32 -> 0
A22: 262178 | C22: 3 | D22: =D21 -> B | E22: I | F22: 1 | J22: =D22&"."&E22 & "." & F22 -> B.I.1 | K22: =F22 -> 1 | N22: =K22 -> 1 | O22: =teksty!$D$804 -> Zbycie wartości niematerialnych i prawnych oraz rzeczowych aktywów trwałych
A23: 262178 | C23: 3 | D23: =D22 -> B | E23: I | F23: 2 | J23: =D23&"."&E23 & "." & F23 -> B.I.2 | K23: =F23 -> 2 | N23: =K23 -> 2 | O23: =teksty!$D$805 -> Zbycie inwestycji w nieruchomości oraz wartości niematerialne i prawne
A24: 262178 | C24: 3 | D24: =D23 -> B | E24: I | F24: 3 | J24: =D24&"."&E24 & "." & F24 -> B.I.3 | K24: =F24 -> 3 | N24: =K24 -> 3 | O24: =teksty!$D$806 -> Z aktywów finansowych, w tym: | V24: =V25+V26 -> 0 | W24: =W25+W26 -> 0
A25: 262178 | C25: 4 | D25: =D24 -> B | E25: I | F25: =F24 -> 3 | G25: a | J25: =D25&"."&E25 & "." & F25& "." & G25 -> B.I.3.a | K25: =G25 &")" -> a) | N25: =K25 -> a) | O25: =teksty!$D$807 -> w jednostkach powiązanych
A26: 262178 | C26: 4 | D26: =D25 -> B | E26: I | F26: =F25 -> 3 | G26: b | J26: =D26&"."&E26 & "." & F26& "." & G26 -> B.I.3.b | K26: =G26 &")" -> b) | N26: b) | O26: =teksty!$D$808 -> w pozostałych jednostkach | V26: =V27+V28+V29+V30+V31 -> 0 | W26: =W27+W28+W29+W30+W31 -> 0
A27: 262178 | C27: 5 | D27: =D26 -> B | E27: I | F27: 3 | G27: =G26 -> b | H27: 1 | J27: =$D27&"."&E27&"."&F27&"."&G27&"."&H27 -> B.I.3.b.1 | K27: =H27 & ") " -> 1) | O27: =$K$27&teksty!$D$809 -> 1) zbycie aktywów finansowych
A28: 262178 | C28: 5 | D28: =D27 -> B | E28: I | F28: 3 | G28: =G27 -> b | H28: 2 | J28: =$D28&"."&E28&"."&F28&"."&G28&"."&H28 -> B.I.3.b.2 | K28: =H28 & ") " -> 2) | O28: =$K$28&teksty!$D$810 -> 2) dywidendy i udziały w zyskach
A29: 262178 | C29: 5 | D29: =D28 -> B | E29: I | F29: 3 | G29: =G28 -> b | H29: 3 | J29: =$D29&"."&E29&"."&F29&"."&G29&"."&H29 -> B.I.3.b.3 | K29: =H29 & ") " -> 3) | O29: =$K$29&teksty!$D$811 -> 3) spłata udzielonych pożyczek długoterminowych
A30: 262178 | C30: 5 | D30: =D29 -> B | E30: I | F30: 3 | G30: =G29 -> b | H30: 4 | J30: =$D30&"."&E30&"."&F30&"."&G30&"."&H30 -> B.I.3.b.4 | K30: =H30 & ") " -> 4) | O30: =$K$30&teksty!$D$812 -> 4) odsetki
A31: 262178 | C31: 5 | D31: =D30 -> B | E31: I | F31: 3 | G31: =G30 -> b | H31: 5 | J31: =$D31&"."&E31&"."&F31&"."&G31&"."&H31 -> B.I.3.b.5 | K31: =H31 & ") " -> 5) | O31: =$K$31&teksty!$D$813 -> 5) inne wpływy z aktywów finansowych
A32: 262178 | C32: 3 | D32: =D31 -> B | E32: I | F32: 4 | J32: =D32&"."&E32 & "." & F32 -> B.I.4 | K32: =F32 -> 4 | N32: =K32 -> 4 | O32: =teksty!$D$814 -> Inne wpływy inwestycyjne
A33: 262178 | C33: 2 | D33: =D32 -> B | E33: II | J33: =D33&"."&E33 -> B.II | K33: =E33 -> II | N33: =K33 -> II | O33: =teksty!$D$815 -> Wydatki | V33: =V34+V36+V37+V42 -> 0 | W33: =W34+W36+W37+W42 -> 0
A34: 262178 | C34: 3 | D34: =D33 -> B | E34: II | F34: 1 | I34: =teksty!$D$789 & teksty!$D$284 & 1 -> Rach. Przepływów, koniec strony 1 | J34: =D34&"."&E34 & "." & F34 -> B.II.1 | K34: =F34 -> 1 | N34: =K34 -> 1 | O34: =teksty!$D$816 -> Nabycie wartości niematerialnych i prawnych oraz rzeczowych aktywów trwałych
A35: 262178 | B35: P | C35: 2 | D35: B | E35: II | N35: =teksty!$D$160 & teksty!$D$718 -> metoda pośrednia, c.d. poprzedniej strony | U35: =$U$5 ->  | V35: =$V$5 -> Okres bieżący | W35: =$W$5 -> Okres poprzedni | X35: =teksty!$D$292 -> Przekszt. dane porów. za poprzedni okres
A36: 262178 | C36: 3 | D36: =D35 -> B | E36: II | F36: 2 | J36: =D36&"."&E36 & "." & F36 -> B.II.2 | K36: =F36 -> 2 | N36: =K36 -> 2 | O36: =teksty!$D$817 -> Inwestycje w nieruchomości oraz wartości niematerialne i prawne | Z36: =teksty!$D$285 -> ukryty wiersz powyżej zawiera nagłówek dla kolejnej strony
A37: 262178 | C37: 3 | D37: =D36 -> B | E37: II | F37: 3 | J37: =D37&"."&E37 & "." & F37 -> B.II.3 | K37: =F37 -> 3 | N37: =K37 -> 3 | O37: =teksty!$D$819 -> Na aktywa finansowe, w tym: | V37: =V38+V39 -> 0 | W37: =W38+W39 -> 0
A38: 262178 | C38: 4 | D38: =D37 -> B | E38: II | F38: =F37 -> 3 | G38: a | J38: =D38&"."&E38 & "." & F38& "." & G38 -> B.II.3.a | K38: =G38 &")" -> a) | N38: =K38 -> a) | O38: =teksty!$D$820 -> w jednostkach powiązanych
A39: 262178 | C39: 4 | D39: =D38 -> B | E39: II | F39: =F38 -> 3 | G39: b | J39: =D39&"."&E39 & "." & F39& "." & G39 -> B.II.3.b | K39: =G39 &")" -> b) | N39: b) | O39: =teksty!$D$821 -> w pozostałych jednostkach | V39: =V40+V41 -> 0 | W39: =W40+W41 -> 0
A40: 262178 | C40: 5 | D40: =D39 -> B | E40: II | F40: 3 | G40: =G39 -> b | H40: 1 | J40: =$D40&"."&E40&"."&F40&"."&G40&"."&H40 -> B.II.3.b.1 | K40: =H40 & ") " -> 1) | O40: =$K$40&teksty!$D$822 -> 1) nabycie aktywów finansowych
A41: 262178 | C41: 5 | D41: =D40 -> B | E41: II | F41: 3 | G41: =G40 -> b | H41: 2 | J41: =$D41&"."&E41&"."&F41&"."&G41&"."&H41 -> B.II.3.b.2 | K41: =H41 & ") " -> 2) | O41: =$K$41&teksty!$D$823 -> 2) udzielone pożyczki długoterminowe
A42: 262178 | C42: 3 | D42: =D41 -> B | E42: II | F42: 4 | J42: =D42&"."&E42 & "." & F42 -> B.II.4 | K42: =F42 -> 4 | N42: =K42 -> 4 | O42: =teksty!$D$824 -> Inne wydatki inwestycyjne
A43: 262178 | C43: 2 | D43: =D42 -> B | E43: III | J43: =D43&"."&E43 -> B.III | K43: =E43 -> III | N43: =K43 -> III | O43: =teksty!$D$825 -> Przepływy pieniężne netto z działalności inwestycyjnej (I–II) | V43: =V21-V33 -> 0 | W43: =W21-W33 -> 0
A44: 262178 | C44: 1 | D44: C | J44: =$D44 -> C | K44: =D44 -> C | N44: =K44 -> C | O44: =teksty!$D$826 -> Przepływy środków pieniężnych z działalności finansowej
A45: 262178 | C45: 2 | D45: =D44 -> C | E45: I | J45: =D45&"."&E45 -> C.I | K45: =E45 -> I | N45: =K45 -> I | O45: =teksty!$D$827 -> Wpływy | V45: =V46+V47+V48+V49 -> 0 | W45: =W46+W47+W48+W49 -> 0
A46: 262178 | C46: 3 | D46: =D45 -> C | E46: I | F46: 1 | J46: =D46&"."&E46 & "." & F46 -> C.I.1 | K46: =F46 -> 1 | N46: 1 | O46: =teksty!$D$828 -> Wpływy netto z wydania udziałów (emisji akcji) i innych instrumentów kapitałowych oraz dopłat do kapitału
A47: 262178 | C47: 3 | D47: =D46 -> C | E47: I | F47: 2 | J47: =D47&"."&E47 & "." & F47 -> C.I.2 | K47: =F47 -> 2 | N47: 2 | O47: =teksty!$D$829 -> Kredyty i pożyczki
A48: 262178 | C48: 3 | D48: =D47 -> C | E48: I | F48: 3 | J48: =D48&"."&E48 & "." & F48 -> C.I.3 | K48: =F48 -> 3 | N48: 3 | O48: =teksty!$D$830 -> Emisja dłużnych papierów wartościowych
A49: 262178 | C49: 3 | D49: =D48 -> C | E49: I | F49: 4 | J49: =D49&"."&E49 & "." & F49 -> C.I.4 | K49: =F49 -> 4 | N49: 4 | O49: =teksty!$D$831 -> Inne wpływy finansowe
A50: 262178 | C50: 2 | D50: =D49 -> C | E50: II | J50: =D50&"."&E50 -> C.II | K50: =E50 -> II | N50: II | O50: =teksty!$D$832 -> Wydatki | V50: =V51+V52+V53+V54+V55+V56+V57+V58+V59 -> 0 | W50: =W51+W52+W53+W54+W55+W56+W57+W58+W59 -> 0
A51: 262178 | C51: 3 | D51: =D50 -> C | E51: II | F51: 1 | J51: =D51&"."&E51 & "." & F51 -> C.II.1 | K51: =F51 -> 1 | N51: 1 | O51: =teksty!$D$833 -> Nabycie udziałów (akcji) własnych
A52: 262178 | C52: 3 | D52: =D51 -> C | E52: II | F52: 2 | J52: C.II.2 | K52: 2 | N52: 2 | O52: =teksty!$D$834 -> Dywidendy i inne wypłaty na rzecz właścicieli
A53: 262178 | C53: 3 | D53: =D52 -> C | E53: II | F53: 3 | J53: C.II.3 | K53: 3 | N53: 3 | O53: =teksty!$D$835 -> Inne, niż wypłaty na rzecz właścicieli, wydatki z tytułu podziału zysku
A54: 262178 | C54: 3 | D54: =D53 -> C | E54: II | F54: 4 | J54: C.II.4 | K54: 4 | N54: 4 | O54: =teksty!$D$836 -> Spłaty kredytów i pożyczek
A55: 262178 | C55: 3 | D55: =D54 -> C | E55: II | F55: 5 | J55: C.II.5 | K55: 5 | N55: 5 | O55: =teksty!$D$837 -> Wykup dłużnych papierów wartościowych
A56: 262178 | C56: 3 | D56: =D55 -> C | E56: II | F56: 6 | J56: C.II.6 | K56: 6 | N56: 6 | O56: =teksty!$D$838 -> Z tytułu innych zobowiązań finansowych
A57: 262178 | C57: 3 | D57: =D56 -> C | E57: II | F57: 7 | J57: C.II.7 | K57: 7 | N57: 7 | O57: =teksty!$D$839 -> Płatności zobowiązań z tytułu umów leasingu finansowego
A58: 262178 | C58: 3 | D58: =D57 -> C | E58: II | F58: 8 | J58: C.II.8 | K58: 8 | N58: 8 | O58: =teksty!$D$840 -> Odsetki
A59: 262178 | C59: 3 | D59: =D58 -> C | E59: II | F59: 9 | J59: C.II.9 | K59: 9 | N59: 9 | O59: =teksty!$D$841 -> Inne wydatki finansowe
A60: 262178 | C60: 2 | D60: =D59 -> C | E60: III | J60: =D60&"."&E60 -> C.III | K60: =E60 -> III | N60: III | O60: =teksty!$D$842 -> Przepływy pieniężne netto z działalności finansowej (I–II) | V60: =V45-V50 -> 0 | W60: =W45-W50 -> 0
A61: 262178 | C61: 1 | D61: D | J61: =$D61 -> D | K61: =D61 -> D | N61: =K61 -> D | O61: =teksty!$D$843 -> Przepływy pieniężne netto, razem (A.III±B.III±C.III) | V61: =V19+V43+V60 -> 0 | W61: =W19+W43+W60 -> 0 | Z61: =IF(WrfKwot,IF(AND(AF61=0,AG61=0,AH61=0),"=","!"),"") ->  | AA61: =teksty!$D$60 & " " & N62 -> Przepływy E | AB61: =V62 -> 0 | AC61: =W62 -> 0 | AD61: 0 | AF61: =ROUND(IF(ISNUMBER(AB61),V61-AB61,0),2) -> 0 | AG61: =ROUND(IF(ISNUMBER(AC61),W61-AC61,0),2) -> 0 | AH61: =ROUND(IF(ISNUMBER(AD61),X61-AD61,0),2) -> 0
A62: 262178 | C62: 1 | D62: E | J62: =$D62 -> E | K62: =D62 -> E | N62: E | O62: =teksty!$D$844 -> Bilansowa zmiana stanu środków pieniężnych, w tym: | Z62: =IF(WrfKwot,IF(AND(AF62=0,AG62=0,AH62=0),"=","!"),"") ->  | AA62: =IF(AA65="-","-",AA65 & " " & N63 & CHAR(10) & "(" & teksty!$D$788 &")") -> - | AB62: =IF(ISNUMBER(AB65),AB65-AC65,"-") -> - | AF62: =ROUND(IF(ISNUMBER(AB62),V62-AB62,0),2) -> 0 | AG62: =ROUND(IF(ISNUMBER(AC62),W62-AC62,0),2) -> 0 | AH62: =ROUND(IF(ISNUMBER(AD62),X62-AD62,0),2) -> 0
A63: 262178 | C63: 2 | D63: =D62 -> E | E63: 1 | J63: =D63&"."&E63 -> E.1 | O63: =IF($N$63=""," – ") &teksty!$D$845 -> – zmiana stanu środków pieniężnych z tytułu różnic kursowych
A64: 262178 | C64: 1 | D64: F | J64: =$D64 -> F | K64: =D64 -> F | N64: =K64 -> F | O64: =teksty!$D$846 -> Środki pieniężne na początek okresu | V64: 0 | W64: 0 | Z64: =IF(WrfKwot,IF(AND(AF64=0,AG64=0,AH64=0),"=","!"),"") ->  | AA64: =teksty!$D$60 & " " & N65 & CHAR(10) & "(" & LOWER(SUBSTITUTE(teksty!$D$955, CHAR(10), " ")) &")" -> Przepływy G (okres poprzedni) | AB64: =W65 -> 0 | AF64: =ROUND(IF(ISNUMBER(AB64),V64-AB64,0),2) -> 0 | AG64: =ROUND(IF(ISNUMBER(AC64),W64-AC64,0),2) -> 0 | AH64: 0
A65: 262178 | C65: =COUNTA(D65:H65) -> 1 | D65: G | J65: =$D65 -> G | K65: =D65 -> G | N65: G | O65: =teksty!$D$847 -> Środki pieniężne na koniec okresu (F±D), w tym: | V65: =V64+V61 -> 0 | W65: =W64+W61 -> 0 | Z65: =IF(WrfKwot,IF(AND(AF65=0,AG65=0,AH65=0),"=","!"),"") ->  | AA65: =SUBSTITUTE(SUBSTITUTE(SUBSTITUTE(EtykietaNaNazwe(IF(Bilans!WybranyWariant="JednostkaInna",Bilans!$J$88,"-")),"_B"," B"),"_","."),"1.C","1c)") -> - | AB65: =IF(Bilans!WybranyWariant="JednostkaInna",Bilans!V$88,"-") -> - | AC65: =IF(Bilans!WybranyWariant="JednostkaInna",Bilans!W$88,"-") -> - | AD65: =IF(Bilans!WybranyWariant="JednostkaInna",Bilans!X$88,"-") -> - | AF65: =ROUND(IF(ISNUMBER(AB65),V65-AB65,0),2) -> 0 | AG65: 0 | AH65: 0
A66: 262178 | C66: =COUNTA(D66:H66) -> 2 | D66: =D65 -> G | E66: 1 | J66: =D66&"."&E66 -> G.1 | O66: =IF($N$66=""," – ") &teksty!$D$848 -> – o ograniczonej możliwości dysponowania
A67: 0
A68: =(2*65536)+(2+32) -> 131106 | C68: =COUNTA(D68:H68) -> 1 | D68: A | J68: =$D68 -> A | K68: =D68 -> A | N68: =K68 -> A | O68: =teksty!$D$791 -> Przepływy środków pieniężnych z działalności operacyjnej
A69: =A68 -> 131106 | C69: =COUNTA(D69:H69) -> 2 | D69: =D68 -> A | E69: I | J69: =D69&"."&E69 -> A.I | K69: =E69 -> I | N69: I | O69: =teksty!$D$792 -> Wpływy | V69: =V70+V71 -> 0 | W69: =W70+W71 -> 0
A70: =A69 -> 131106 | C70: 3 | D70: =D69 -> A | E70: I | F70: 1 | J70: =D70&"."&E70 & "." & F70 -> A.I.1 | K70: =F70 -> 1 | N70: 1 | O70: =teksty!$D$793 -> Sprzedaż
A71: 131106 | C71: =COUNTA(D71:H71) -> 3 | D71: A | E71: I | F71: 2 | J71: =D71&"."&E71 & "." & F71 -> A.I.2 | K71: =F71 -> 2 | N71: 2 | O71: =teksty!$D$794 -> Inne wpływy z działalności operacyjnej
A72: 131106 | C72: 2 | D72: =D71 -> A | E72: II | J72: =D72&"."&E72 -> A.II | K72: =E72 -> II | N72: II | O72: =teksty!$D$795 -> Wydatki | V72: =V73+V74+V75+V76+V77 -> 0 | W72: =W73+W74+W75+W76+W77 -> 0
A73: 131106 | C73: 3 | D73: A | E73: II | F73: 1 | J73: =D73&"."&E73 & "." & F73 -> A.II.1 | K73: =F73 -> 1 | N73: 1 | O73: =teksty!$D$796 -> Dostawy i usługi
A74: 131106 | C74: =COUNTA(D74:H74) -> 3 | D74: A | E74: II | F74: 2 | J74: =D74&"."&E74 & "." & F74 -> A.II.2 | K74: =F74 -> 2 | N74: 2 | O74: =teksty!$D$797 -> Wynagrodzenia netto
A75: 131106 | C75: 3 | D75: A | E75: II | F75: 3 | J75: =D75&"."&E75 & "." & F75 -> A.II.3 | K75: =F75 -> 3 | N75: 3 | O75: =teksty!$D$798 -> Ubezpieczenia społeczne i zdrowotne oraz inne świadczenia
A76: 131106 | C76: 3 | D76: A | E76: II | F76: 4 | J76: =D76&"."&E76 & "." & F76 -> A.II.4 | K76: =F76 -> 4 | N76: 4 | O76: =teksty!$D$799 -> Podatki i opłaty o charakterze publicznoprawnym
A77: 131106 | C77: 3 | D77: A | E77: II | F77: 5 | J77: =D77&"."&E77 & "." & F77 -> A.II.5 | K77: =F77 -> 5 | N77: 5 | O77: =teksty!$D$800 -> Inne wydatki operacyjne
A78: 131106 | C78: 2 | D78: =D77 -> A | E78: III | J78: =D78&"."&E78 -> A.III | K78: =E78 -> III | N78: III | O78: =teksty!$D$801 -> Przepływy pieniężne netto z działalności operacyjnej (I–II) | V78: =V69-V72 -> 0 | W78: =W69-W72 -> 0
A79: 131106 | C79: 1 | D79: B | J79: =$D79 -> B | K79: =D79 -> B | N79: =K79 -> B | O79: =teksty!$D$802 -> Przepływy środków pieniężnych z działalności inwestycyjnej
A80: 131106 | C80: 2 | D80: =D79 -> B | E80: I | J80: =D80&"."&E80 -> B.I | K80: =E80 -> I | N80: =K80 -> I | O80: =teksty!$D$803 -> Wpływy | V80: =V81+V82+V83+V91 -> 0 | W80: =W81+W82+W83+W91 -> 0
A81: 131106 | C81: 3 | D81: =D80 -> B | E81: I | F81: 1 | J81: =D81&"."&E81 & "." & F81 -> B.I.1 | K81: =F81 -> 1 | N81: =K81 -> 1 | O81: =teksty!$D$804 -> Zbycie wartości niematerialnych i prawnych oraz rzeczowych aktywów trwałych
A82: 131106 | C82: 3 | D82: B | E82: I | F82: 2 | J82: =D82&"."&E82 & "." & F82 -> B.I.2 | K82: =F82 -> 2 | N82: =K82 -> 2 | O82: =teksty!$D$805 -> Zbycie inwestycji w nieruchomości oraz wartości niematerialne i prawne
A83: 131106 | C83: 3 | D83: B | E83: I | F83: 3 | J83: =D83&"."&E83 & "." & F83 -> B.I.3 | K83: =F83 -> 3 | N83: =K83 -> 3 | O83: =teksty!$D$806 -> Z aktywów finansowych, w tym: | V83: =V84+V85 -> 0 | W83: =W84+W85 -> 0
A84: 131106 | C84: 4 | D84: B | E84: I | F84: =F83 -> 3 | G84: a | J84: =D84&"."&E84 & "." & F84& "." & G84 -> B.I.3.a | K84: =G84 &")" -> a) | N84: =K84 -> a) | O84: =teksty!$D$807 -> w jednostkach powiązanych
A85: 131106 | C85: 4 | D85: B | E85: I | F85: =F84 -> 3 | G85: b | J85: =D85&"."&E85 & "." & F85& "." & G85 -> B.I.3.b | K85: =G85 &")" -> b) | N85: =K85 -> b) | O85: =teksty!$D$808 -> w pozostałych jednostkach | V85: =V86+V87+V88+V89+V90 -> 0 | W85: =W86+W87+W88+W89+W90 -> 0
A86: 131106 | C86: 5 | D86: B | E86: I | F86: 3 | G86: =G85 -> b | H86: 1 | J86: =$D86&"."&E86&"."&F86&"."&G86&"."&H86 -> B.I.3.b.1 | K86: =H86 & ") " -> 1) | O86: =$K$86&teksty!$D$809 -> 1) zbycie aktywów finansowych
A87: 131106 | C87: 5 | D87: B | E87: I | F87: 3 | G87: =G86 -> b | H87: 2 | J87: =$D87&"."&E87&"."&F87&"."&G87&"."&H87 -> B.I.3.b.2 | K87: =H87 & ") " -> 2) | O87: =$K$87&teksty!$D$810 -> 2) dywidendy i udziały w zyskach
A88: 131106 | C88: 5 | D88: B | E88: I | F88: 3 | G88: =G87 -> b | H88: 3 | J88: =$D88&"."&E88&"."&F88&"."&G88&"."&H88 -> B.I.3.b.3 | K88: =H88 & ") " -> 3) | O88: =$K$88&teksty!$D$811 -> 3) spłata udzielonych pożyczek długoterminowych
A89: 131106 | C89: 5 | D89: B | E89: I | F89: 3 | G89: =G88 -> b | H89: 4 | J89: =$D89&"."&E89&"."&F89&"."&G89&"."&H89 -> B.I.3.b.4 | K89: =H89 & ") " -> 4) | O89: =$K$89&teksty!$D$812 -> 4) odsetki
A90: 131106 | C90: 5 | D90: B | E90: I | F90: 3 | G90: =G89 -> b | H90: 5 | J90: =$D90&"."&E90&"."&F90&"."&G90&"."&H90 -> B.I.3.b.5 | K90: =H90 & ") " -> 5) | O90: =$K$90&teksty!$D$813 -> 5) inne wpływy z aktywów finansowych
A91: 131106 | C91: 3 | D91: B | E91: I | F91: 4 | J91: =D91&"."&E91 & "." & F91 -> B.I.4 | K91: =F91 -> 4 | N91: =K91 -> 4 | O91: =teksty!$D$814 -> Inne wpływy inwestycyjne
A92: 131106 | C92: 2 | D92: =D91 -> B | E92: II | J92: =D92&"."&E92 -> B.II | K92: =E92 -> II | N92: =K92 -> II | O92: =teksty!$D$815 -> Wydatki | V92: =V93+V94+V96+V101 -> 0 | W92: =W93+W94+W96+W101 -> 0
A93: 131106 | C93: 3 | D93: B | E93: II | F93: 1 | J93: =D93&"."&E93 & "." & F93 -> B.II.1 | K93: =F93 -> 1 | N93: =K93 -> 1 | O93: =teksty!$D$816 -> Nabycie wartości niematerialnych i prawnych oraz rzeczowych aktywów trwałych
A94: 131106 | C94: 3 | D94: B | E94: II | F94: 2 | I94: =teksty!$D$789 & teksty!$D$284 & 1 -> Rach. Przepływów, koniec strony 1 | J94: =D94&"."&E94 & "." & F94 -> B.II.2 | K94: =F94 -> 2 | N94: =K94 -> 2 | O94: =teksty!$D$817 -> Inwestycje w nieruchomości oraz wartości niematerialne i prawne
A95: 131106 | B95: P | C95: 2 | D95: B | E95: II | N95: =teksty!$D$159 & teksty!$D$718 -> metoda bezpośrednia, c.d. poprzedniej strony | U95: =$U$5 ->  | V95: =$V$5 -> Okres bieżący | W95: =$W$5 -> Okres poprzedni | X95: =teksty!$D$292 -> Przekszt. dane porów. za poprzedni okres
A96: 131106 | C96: 3 | D96: B | E96: II | F96: 3 | J96: =D96&"."&E96 & "." & F96 -> B.II.3 | K96: =F96 -> 3 | N96: =K96 -> 3 | O96: =teksty!$D$819 -> Na aktywa finansowe, w tym: | V96: =V97+V98 -> 0 | W96: =W97+W98 -> 0 | Z96: =teksty!$D$285 -> ukryty wiersz powyżej zawiera nagłówek dla kolejnej strony
A97: 131106 | C97: 4 | D97: B | E97: II | F97: =F96 -> 3 | G97: a | J97: =D97&"."&E97 & "." & F97& "." & G97 -> B.II.3.a | K97: =G97 &")" -> a) | N97: =K97 -> a) | O97: =teksty!$D$820 -> w jednostkach powiązanych
A98: 131106 | C98: 4 | D98: B | E98: II | F98: =F97 -> 3 | G98: b | J98: =D98&"."&E98 & "." & F98& "." & G98 -> B.II.3.b | K98: =G98 &")" -> b) | N98: b) | O98: =teksty!$D$821 -> w pozostałych jednostkach | V98: =V99+V100 -> 0 | W98: =W99+W100 -> 0
A99: 131106 | C99: 5 | D99: =D98 -> B | E99: II | F99: 3 | G99: =G98 -> b | H99: 1 | J99: =$D99&"."&E99&"."&F99&"."&G99&"."&H99 -> B.II.3.b.1 | K99: =H99 & ") " -> 1) | O99: =$K$99&teksty!$D$822 -> 1) nabycie aktywów finansowych
A100: 131106 | C100: 5 | D100: =D99 -> B | E100: II | F100: 3 | G100: =G99 -> b | H100: 2 | J100: =$D100&"."&E100&"."&F100&"."&G100&"."&H100 -> B.II.3.b.2 | K100: =H100 & ") " -> 2) | O100: =$K$100&teksty!$D$823 -> 2) udzielone pożyczki długoterminowe
A101: 131106 | C101: 3 | D101: B | E101: II | F101: 4 | J101: =D101&"."&E101 & "." & F101 -> B.II.4 | K101: =F101 -> 4 | N101: =K101 -> 4 | O101: =teksty!$D$824 -> Inne wydatki inwestycyjne
A102: 131106 | C102: 2 | D102: =D101 -> B | E102: III | J102: =D102&"."&E102 -> B.III | K102: =E102 -> III | N102: =K102 -> III | O102: =teksty!$D$825 -> Przepływy pieniężne netto z działalności inwestycyjnej (I–II) | V102: =V80-V92 -> 0 | W102: =W80-W92 -> 0
A103: 131106 | C103: 1 | D103: C | J103: =$D103 -> C | K103: =D103 -> C | N103: =K103 -> C | O103: =teksty!$D$826 -> Przepływy środków pieniężnych z działalności finansowej
A104: 131106 | C104: 2 | D104: =D103 -> C | E104: I | J104: =D104&"."&E104 -> C.I | K104: =E104 -> I | N104: =K104 -> I | O104: =teksty!$D$827 -> Wpływy | V104: =V105+V106+V107+V108 -> 0 | W104: =W105+W106+W107+W108 -> 0
A105: 131106 | C105: 3 | D105: =D104 -> C | E105: I | F105: 1 | J105: =D105&"."&E105 & "." & F105 -> C.I.1 | K105: =F105 -> 1 | N105: 1 | O105: =teksty!$D$828 -> Wpływy netto z wydania udziałów (emisji akcji) i innych instrumentów kapitałowych oraz dopłat do kapitału
A106: 131106 | C106: 3 | D106: C | E106: I | F106: 2 | J106: =D106&"."&E106 & "." & F106 -> C.I.2 | K106: =F106 -> 2 | N106: 2 | O106: =teksty!$D$829 -> Kredyty i pożyczki
A107: 131106 | C107: 3 | D107: C | E107: I | F107: 3 | J107: =D107&"."&E107 & "." & F107 -> C.I.3 | K107: =F107 -> 3 | N107: 3 | O107: =teksty!$D$830 -> Emisja dłużnych papierów wartościowych
A108: 131106 | C108: =COUNTA(D108:H108) -> 3 | D108: C | E108: I | F108: 4 | J108: =D108&"."&E108 & "." & F108 -> C.I.4 | K108: =F108 -> 4 | N108: 4 | O108: =teksty!$D$831 -> Inne wpływy finansowe
A109: 131106 | C109: 2 | D109: =D108 -> C | E109: II | J109: =D109&"."&E109 -> C.II | K109: =E109 -> II | N109: II | O109: =teksty!$D$832 -> Wydatki | V109: =V110+V111+V112+V113+V114+V115+V116+V117+V118 -> 0 | W109: =W110+W111+W112+W113+W114+W115+W116+W117+W118 -> 0
A110: 131106 | C110: 3 | D110: C | E110: II | F110: 1 | J110: =D110&"."&E110 & "." & F110 -> C.II.1 | K110: =F110 -> 1 | N110: 1 | O110: =teksty!$D$833 -> Nabycie udziałów (akcji) własnych
A111: 131106 | C111: =COUNTA(D111:H111) -> 3 | D111: C | E111: II | F111: 2 | J111: C.II.2 | K111: 2 | N111: 2 | O111: =teksty!$D$834 -> Dywidendy i inne wypłaty na rzecz właścicieli
A112: 131106 | C112: =COUNTA(D112:H112) -> 3 | D112: C | E112: II | F112: 3 | J112: C.II.3 | K112: 3 | N112: 3 | O112: =teksty!$D$835 -> Inne, niż wypłaty na rzecz właścicieli, wydatki z tytułu podziału zysku
A113: 131106 | C113: 3 | D113: C | E113: II | F113: 4 | J113: C.II.4 | K113: 4 | N113: 4 | O113: =teksty!$D$836 -> Spłaty kredytów i pożyczek
A114: 131106 | C114: 3 | D114: C | E114: II | F114: 5 | J114: C.II.5 | K114: 5 | N114: 5 | O114: =teksty!$D$837 -> Wykup dłużnych papierów wartościowych
A115: 131106 | C115: 3 | D115: C | E115: II | F115: 6 | J115: C.II.6 | K115: 6 | N115: 6 | O115: =teksty!$D$838 -> Z tytułu innych zobowiązań finansowych
A116: 131106 | C116: 3 | D116: C | E116: II | F116: 7 | J116: C.II.7 | K116: 7 | N116: 7 | O116: =teksty!$D$839 -> Płatności zobowiązań z tytułu umów leasingu finansowego
A117: 131106 | C117: =COUNTA(D117:H117) -> 3 | D117: C | E117: II | F117: 8 | J117: C.II.8 | K117: 8 | N117: 8 | O117: =teksty!$D$840 -> Odsetki
A118: 131106 | C118: 3 | D118: C | E118: II | F118: 9 | J118: C.II.9 | K118: 9 | N118: 9 | O118: =teksty!$D$841 -> Inne wydatki finansowe
A119: 131106 | C119: =COUNTA(D119:H119) -> 2 | D119: =D118 -> C | E119: III | J119: =D119&"."&E119 -> C.III | K119: =E119 -> III | N119: III | O119: =teksty!$D$842 -> Przepływy pieniężne netto z działalności finansowej (I–II) | V119: =V104-V109 -> 0 | W119: =W104-W109 -> 0
A120: 131106 | C120: 1 | D120: D | J120: =$D120 -> D | K120: =D120 -> D | N120: =K120 -> D | O120: =teksty!$D$843 -> Przepływy pieniężne netto, razem (A.III±B.III±C.III) | V120: =V78+V102+V119 -> 0 | W120: =W78+W102+W119 -> 0 | Z120: =IF(WrfKwot,IF(AND(AF120=0,AG120=0,AH120=0),"=","!"),"") ->  | AA120: =teksty!$D$60 & " " & N121 -> Przepływy E | AB120: =V121 -> 0 | AC120: =W121 -> 0 | AD120: =X121 -> 0 | AF120: =ROUND(IF(ISNUMBER(AB120),V120-AB120,0),2) -> 0 | AG120: =ROUND(IF(ISNUMBER(AC120),W120-AC120,0),2) -> 0 | AH120: =ROUND(IF(ISNUMBER(AD120),X120-AD120,0),2) -> 0
A121: 131106 | C121: =COUNTA(D121:H121) -> 1 | D121: E | J121: =$D121 -> E | K121: =D121 -> E | N121: =K121 -> E | O121: =teksty!$D$844 -> Bilansowa zmiana stanu środków pieniężnych, w tym: | Z121: =IF(WrfKwot,IF(AND(AF121=0,AG121=0,AH121=0),"=","!"),"") ->  | AA121: =IF(AA124="-","-",AA124 & " " & N122 & CHAR(10) & "(" & teksty!$D$788 &")") -> - | AB121: =IF(ISNUMBER(AB124),AB124-AC124,"-") -> - | AF121: =ROUND(IF(ISNUMBER(AB121),V121-AB121,0),2) -> 0 | AG121: 0 | AH121: 0
A122: 131106 | C122: 2 | D122: =D121 -> E | E122: 1 | J122: =D122&"."&E122 -> E.1 | O122: =IF($N$122=""," – ") &teksty!$D$845 -> – zmiana stanu środków pieniężnych z tytułu różnic kursowych
A123: 131106 | C123: =COUNTA(D123:H123) -> 1 | D123: F | J123: =$D123 -> F | K123: =D123 -> F | N123: =K123 -> F | O123: =teksty!$D$846 -> Środki pieniężne na początek okresu | V123: 0 | W123: 0 | Z123: =IF(WrfKwot,IF(AND(AF123=0,AG123=0,AH123=0),"=","!"),"") ->  | AA123: =teksty!$D$60 & " " & N124 & CHAR(10) & "(" & LOWER(SUBSTITUTE(teksty!$D$955, CHAR(10), " ")) &")" -> Przepływy G (okres poprzedni) | AB123: =W124 -> 0 | AF123: =ROUND(IF(ISNUMBER(AB123),V123-AB123,0),2) -> 0 | AG123: =ROUND(IF(ISNUMBER(AC123),W123-AC123,0),2) -> 0 | AH123: =ROUND(IF(ISNUMBER(AD123),X123-AD123,0),2) -> 0
A124: 131106 | C124: 1 | D124: G | J124: =$D124 -> G | K124: =D124 -> G | N124: =K124 -> G | O124: =teksty!$D$847 -> Środki pieniężne na koniec okresu (F±D), w tym: | V124: =V123+V120 -> 0 | W124: =W123+W120 -> 0 | Z124: =IF(WrfKwot,IF(AND(AF124=0,AG124=0,AH124=0),"=","!"),"") ->  | AA124: =SUBSTITUTE(SUBSTITUTE(SUBSTITUTE(EtykietaNaNazwe(IF(Bilans!WybranyWariant="JednostkaInna",Bilans!$J$88,"-")),"_B"," B"),"_","."),"1.C","1c)") -> - | AB124: =IF(Bilans!WybranyWariant="JednostkaInna",Bilans!V$88,"-") -> - | AC124: =IF(Bilans!WybranyWariant="JednostkaInna",Bilans!W$88,"-") -> - | AD124: =IF(Bilans!WybranyWariant="JednostkaInna",Bilans!X$88,"-") -> - | AF124: =ROUND(IF(ISNUMBER(AB124),V124-AB124,0),2) -> 0 | AG124: 0 | AH124: 0
A125: 131106 | C125: 2 | D125: =D124 -> G | E125: 1 | J125: =D125&"."&E125 -> G.1 | O125: =IF($N$125=""," – ") &teksty!$D$848 -> – o ograniczonej możliwości dysponowania
A126: 131106
A127: 0 | I127: Skonsolidowana:
A128: =#REF! ->  | B128: P | C128: =COUNTA(D128:H128) -> 2 | D128: =#REF! ->  | E128: =#REF! ->  | N128: =teksty!$D$160 & teksty!$D$718 -> metoda pośrednia, c.d. poprzedniej strony | U128: =$U$5 ->  | V128: =$V$5 -> Okres bieżący | W128: =$W$5 -> Okres poprzedni | X128: =teksty!$D$292 -> Przekszt. dane porów. za poprzedni okres
A129: =#REF! ->  | B129: P | C129: =COUNTA(D129:H129) -> 0 | N129: =teksty!$D$160 & teksty!$D$718 -> metoda pośrednia, c.d. poprzedniej strony | U129: =$U$5 ->  | V129: =$V$5 -> Okres bieżący | W129: =$W$5 -> Okres poprzedni | X129: =teksty!$D$292 -> Przekszt. dane porów. za poprzedni okres | Z129: =teksty!$D$285 -> ukryty wiersz powyżej zawiera nagłówek dla kolejnej strony
A130: =#REF! ->  | B130: P | C130: =COUNTA(D130:H130) -> 2 | D130: =#REF! ->  | E130: =#REF! ->  | N130: =teksty!$D$159 & teksty!$D$718 -> metoda bezpośrednia, c.d. poprzedniej strony | U130: =$U$5 ->  | V130: =$V$5 -> Okres bieżący | W130: =$W$5 -> Okres poprzedni | X130: =teksty!$D$292 -> Przekszt. dane porów. za poprzedni okres

Sheet Dodatkowe
A1: Dodatkowe | D1: (wyświetlana etykieta) | H1: 2 | I1: =VLOOKUP(WybranaPozycja,teksty!B164:F169,2) -> JednostkaInna | M1: =OR(WybranaPozycja=2, WybranaPozycja=4) -> TRUE
E2: =teksty!D950 -> Dodatkowe informacje i objaśnienia
F3: =Wprowadzenie!$I$4 & " " & IF(NumerWariantuRaportu = 5, teksty!$D$289, "") ->  | P3: =teksty!D283 & VLOOKUP(NumerBazyRaportu,BazyKwot,3) -> wszystkie kwoty w złotych | S3: =IF(OR(_xlfn.ISFORMULA(L139),_xlfn.ISFORMULA(L141)),teksty!$D$951,"") -> W niektórych polach tego zestawienia napotkasz pomocnicze formuły. Jeżeli to potrzebne, możesz je zmienić, lub wpisać w te pola odpowiednie kwoty.
E4: =teksty!$D$952 -> Rozliczenie różnicy pomiędzy podstawą opodatkowania a wynikiem finansowym:
F6: =teksty!$D$953 -> Rozliczenie różnicy pomiędzy podstawą opodatkowania podatkiem dochodowym a wynikiem finansowym (zyskiem, stratą) brutto | L6: =SUBSTITUTE(teksty!$D$954, CHAR(10)," ") -> Okres bieżący | O6: =SUBSTITUTE(teksty!$D$955, CHAR(10)," ") -> Okres poprzedni
L7: =teksty!$D$956 -> Ogółem: | M7: =teksty!$D$957 -> w tym z zysków kapitałowych: | O7: =teksty!$D$956 -> Ogółem: | P7: =teksty!$D$957 -> w tym z zysków kapitałowych:
C8: P_ID 1 | D8: A | F8: =D8 & "." -> A. | G8: =teksty!D966 -> Zysk (strata) brutto za dany rok | M8: ___ | P8: ___ | S8: =IF(WrfKwot,IF(AND(Y8=0,Z8=0,AA8=0),"=","!"),"") ->  | T8: =teksty!$D$58 & ": " & IF(RZiS!WybranyWariant="JednostkaInna", IF(RZiS!SPor,RZiS!N55,RZiS!N103), IF(RZiS!WybranyWariant="JednostkaMala", IF(RZiS!SPor,RZiS!N170,RZiS!N132), IF(RZiS!WybranyWariant="JednostkaMikro", RZiS!N211 & "+" & IF(RZiS!SPor,RZiS!N212,RZiS!N213), IF(RZiS!WybranyWariant="JednostkaOp",RZiS!N195, "-")))) -> RZiS: E+F | U8: =IF(RZiS!WybranyWariant="JednostkaInna", RZiS!SPor*RZiS!V$55+RZiS!SKalk*RZiS!V$103, IF(RZiS!WybranyWariant="JednostkaMala",RZiS!SPor*RZiS!V$170+RZiS!SKalk*RZiS!V$132, IF(RZiS!WybranyWariant="JednostkaMikro",RZiS!V$211+RZiS!SPor*RZiS!V$212+RZiS!SKalk*RZiS!V$213, IF(RZiS!WybranyWariant="JednostkaOp",RZiS!V$195, "-")))) -> 0 | V8: =IF(RZiS!WybranyWariant="JednostkaInna", RZiS!SPor*RZiS!W$55+RZiS!SKalk*RZiS!W$103, IF(RZiS!WybranyWariant="JednostkaMala",RZiS!SPor*RZiS!W$170+RZiS!SKalk*RZiS!W$132, IF(RZiS!WybranyWariant="JednostkaMikro",RZiS!W$211+RZiS!SPor*RZiS!W$212+RZiS!SKalk*RZiS!W$213, IF(RZiS!WybranyWariant="JednostkaOp",RZiS!W$195, "-")))) -> 0 | Y8: =ROUND(IF(AND(ISNUMBER(L8),ISNUMBER(U8)),L8-U8,0),0) -> 0 | Z8: =ROUND(IF(AND(ISNUMBER(O8),ISNUMBER(V8)),O8-V8,0),0) -> 0 | AA8: 0 | AB8: -7 | AC8: -4
C10: P_ID 2 | D10: B | F10: B. | G10: =teksty!D967&" *" & IF(G12<> "", inc,"") -> Przychody zwolnione z opodatkowania *
A11: =127*B11 -> 0 | B11: =B12 -> 0 | G11: =teksty!$D$959 -> pdst. prawna: | H11: =teksty!$D$960 -> Art. | I11: =teksty!$D$961 -> poz. | J11: =teksty!$D$962 -> pkt. | K11: =teksty!$D$963 -> lit. | L11: =teksty!$D$958 -> (informacja uszczegóławiająca, wynikająca z potrzeb lub specyfiki jednostki) | Q11: 0
A12: =127*B12 -> 0 | B12: =IF(G12<>"",1,0) -> 0 | D12: =D11+1 -> 1 | F12: =D12 -> 1 | Q12: 1
A13: 0 | B13: 0 | D13: =D12+1 -> 2 | F13: 2 | Q13: 1
A14: 0 | B14: 0 | D14: =D13+1 -> 3 | F14: 3 | Q14: 1
A15: 0 | B15: 0 | D15: 4 | F15: 4 | Q15: 1
A16: 0 | B16: 0 | D16: =D15+1 -> 5 | F16: 5 | Q16: 1
A17: 0 | B17: 0 | D17: =D16+1 -> 6 | F17: 6 | Q17: 1
A18: 0 | B18: 0 | D18: 7 | F18: 7 | Q18: 1
A19: 0 | B19: 0 | D19: =D18+1 -> 8 | F19: 8 | Q19: 1
A20: 0 | B20: 0 | D20: =D19+1 -> 9 | F20: 9 | Q20: 1
A21: 0 | B21: 0 | D21: 10 | F21: 10 | Q21: 1
A22: 0 | B22: =B11 -> 0 | G22: =teksty!$D$964 -> pozostałe (mniej niż 20 tys. zł): | L22: =IF(L12="","",L10-SUM(L12:L21)) ->  | O22: =IF(O12="","",O10-SUM(O12:O21)) ->  | Q22: 0
C24: P_ID 3 | D24: C | F24: C. | G24: =teksty!D968& IF(G26<> "", inc,"") -> Przychody niepodlegające opodatkowania w roku bieżącym
A25: =127*B25 -> 0 | B25: =B26 -> 0 | G25: =teksty!$D$959 -> pdst. prawna: | H25: =teksty!$D$960 -> Art. | I25: =teksty!$D$961 -> poz. | J25: =teksty!$D$962 -> pkt. | K25: =teksty!$D$963 -> lit. | L25: =teksty!$D$958 -> (informacja uszczegóławiająca, wynikająca z potrzeb lub specyfiki jednostki) | Q25: 0
A26: =127*B26 -> 0 | B26: =IF(G26<>"",1,0) -> 0 | D26: =D25+1 -> 1 | F26: =D26 -> 1 | Q26: 1
A27: 0 | B27: 0 | D27: =D26+1 -> 2 | F27: 2 | Q27: 1
A28: 0 | B28: 0 | D28: =D27+1 -> 3 | F28: 3 | Q28: 1
A29: 0 | B29: 0 | D29: 4 | F29: 4 | Q29: 1
A30: 0 | B30: 0 | D30: =D29+1 -> 5 | F30: 5 | Q30: 1
A31: 0 | B31: 0 | D31: =D30+1 -> 6 | F31: 6 | Q31: 1
A32: 0 | B32: 0 | D32: 7 | F32: 7 | Q32: 1
A33: 0 | B33: 0 | D33: 8 | F33: 8 | Q33: 1
A34: 0 | B34: 0 | D34: =D33+1 -> 9 | F34: 9 | Q34: 1
A35: 0 | B35: 0 | D35: =D34+1 -> 10 | F35: 10 | Q35: 1
A36: 0 | B36: =B25 -> 0 | G36: =teksty!$D$964 -> pozostałe (mniej niż 20 tys. zł): | L36: =IF(L26="","",L24-SUM(L26:L35)) ->  | O36: =IF(O26="","",O24-SUM(O26:O35)) ->  | Q36: 0
C38: P_ID 4 | D38: D | F38: D. | G38: =teksty!D969& IF(G40<> "", inc,"") -> Przychody podlegające opodatkowania w roku bieżącym, ujęte w księgach rachunkowych lat ubiegłych
A39: =127*B39 -> 0 | B39: =B40 -> 0 | G39: =teksty!$D$959 -> pdst. prawna: | H39: =teksty!$D$960 -> Art. | I39: =teksty!$D$961 -> poz. | J39: =teksty!$D$962 -> pkt. | K39: =teksty!$D$963 -> lit. | L39: =teksty!$D$958 -> (informacja uszczegóławiająca, wynikająca z potrzeb lub specyfiki jednostki) | Q39: 0
A40: =127*B40 -> 0 | B40: =IF(G40<>"",1,0) -> 0 | D40: =D39+1 -> 1 | F40: =D40 -> 1 | Q40: 1
A41: 0 | B41: 0 | D41: =D40+1 -> 2 | F41: 2 | Q41: 1
A42: 0 | B42: 0 | D42: =D41+1 -> 3 | F42: 3 | Q42: 1
A43: 0 | B43: 0 | D43: 4 | F43: 4 | Q43: 1
A44: 0 | B44: 0 | D44: 5 | F44: 5 | Q44: 1
A45: 0 | B45: 0 | D45: =D44+1 -> 6 | F45: 6 | Q45: 1
A46: 0 | B46: 0 | D46: =D45+1 -> 7 | F46: 7 | Q46: 1
A47: 0 | B47: 0 | D47: =D46+1 -> 8 | F47: 8 | Q47: 1
A48: 0 | B48: 0 | D48: 9 | F48: 9 | Q48: 1
A49: 0 | B49: 0 | D49: 10 | F49: 10 | Q49: 1
A50: 0 | B50: =B39 -> 0 | G50: =teksty!$D$964 -> pozostałe (mniej niż 20 tys. zł): | L50: =IF(L40="","",L38-SUM(L40:L49)) ->  | O50: =IF(O40="","",O38-SUM(O40:O49)) ->  | Q50: 0
C52: P_ID 5 | D52: E | F52: E. | G52: =teksty!D970 & "*" & IF(G54<> "", inc,"") -> Koszty niestanowiące kosztów uzyskania przychodów *
A53: =127*B53 -> 0 | B53: =B54 -> 0 | G53: =teksty!$D$959 -> pdst. prawna: | H53: =teksty!$D$960 -> Art. | I53: =teksty!$D$961 -> poz. | J53: =teksty!$D$962 -> pkt. | K53: =teksty!$D$963 -> lit. | L53: =teksty!$D$958 -> (informacja uszczegóławiająca, wynikająca z potrzeb lub specyfiki jednostki) | Q53: 0
A54: =127*B54 -> 0 | B54: =IF(G54<>"",1,0) -> 0 | D54: =D53+1 -> 1 | F54: =D54 -> 1 | Q54: 1
A55: 0 | B55: 0 | D55: =D54+1 -> 2 | F55: 2 | Q55: 1
A56: 0 | B56: 0 | D56: =D55+1 -> 3 | F56: 3 | Q56: 1
A57: 0 | B57: 0 | D57: 4 | F57: 4 | Q57: 1
A58: 0 | B58: 0 | D58: 5 | F58: 5 | Q58: 1
A59: =127*B59 -> 0 | B59: =IF(G59<>"",1,0) -> 0 | D59: =D58+1 -> 6 | F59: =D59 -> 6 | Q59: 1
A60: 0 | B60: 0 | D60: =D59+1 -> 7 | F60: 7 | Q60: 1
A61: 0 | B61: 0 | D61: =D60+1 -> 8 | F61: 8 | Q61: 1
A62: 0 | B62: 0 | D62: 9 | F62: 9 | Q62: 1
A63: 0 | B63: 0 | D63: 10 | F63: 10 | Q63: 1
A64: =127*B64 -> 0 | B64: =IF(G64<>"",1,0) -> 0 | D64: =D63+1 -> 11 | F64: =D64 -> 11 | Q64: 1
A65: 0 | B65: 0 | D65: =D64+1 -> 12 | F65: 12 | Q65: 1
A66: 0 | B66: 0 | D66: =D65+1 -> 13 | F66: 13 | Q66: 1
A67: 0 | B67: 0 | D67: 14 | F67: 14 | Q67: 1
A68: 0 | B68: 0 | D68: 15 | F68: 15 | Q68: 1
A69: =127*B69 -> 0 | B69: =IF(G69<>"",1,0) -> 0 | D69: =D68+1 -> 16 | F69: =D69 -> 16 | Q69: 1
A70: 0 | B70: 0 | D70: =D69+1 -> 17 | F70: 17 | Q70: 1
A71: 0 | B71: 0 | D71: =D70+1 -> 18 | F71: 18 | Q71: 1
A72: 0 | B72: 0 | D72: 19 | F72: 19 | Q72: 1
A73: 0 | B73: 0 | D73: 20 | F73: 20 | Q73: 1
A74: 0 | B74: =B53 -> 0 | G74: =teksty!$D$964 -> pozostałe (mniej niż 20 tys. zł): | L74: =IF(L54="","",L52-SUM(L54:L73)) ->  | O74: =IF(O54="","",O52-SUM(O54:O73)) ->  | Q74: 0
C76: P_ID 6 | D76: F | F76: F. | G76: =teksty!D971 & IF(G78<> "", inc,"") -> Koszty nieuznawane za koszty uzyskania przychodów w bieżącym roku
A77: =127*B77 -> 0 | B77: =B78 -> 0 | G77: =teksty!$D$959 -> pdst. prawna: | H77: =teksty!$D$960 -> Art. | I77: =teksty!$D$961 -> poz. | J77: =teksty!$D$962 -> pkt. | K77: =teksty!$D$963 -> lit. | L77: =teksty!$D$958 -> (informacja uszczegóławiająca, wynikająca z potrzeb lub specyfiki jednostki) | Q77: 0
A78: =127*B78 -> 0 | B78: =IF(G78<>"",1,0) -> 0 | D78: =D77+1 -> 1 | F78: =D78 -> 1 | Q78: 1
A79: 0 | B79: 0 | D79: =D78+1 -> 2 | F79: 2 | Q79: 1
A80: 0 | B80: 0 | D80: =D79+1 -> 3 | F80: 3 | Q80: 1
A81: 0 | B81: 0 | D81: 4 | F81: 4 | Q81: 1
A82: 0 | B82: 0 | D82: 5 | F82: 5 | Q82: 1
A83: =127*B83 -> 0 | B83: =IF(G83<>"",1,0) -> 0 | D83: =D82+1 -> 6 | F83: =D83 -> 6 | Q83: 1
A84: 0 | B84: 0 | D84: =D83+1 -> 7 | F84: 7 | Q84: 1
A85: 0 | B85: 0 | D85: =D84+1 -> 8 | F85: 8 | Q85: 1
A86: 0 | B86: 0 | D86: 9 | F86: 9 | Q86: 1
A87: 0 | B87: 0 | D87: 10 | F87: 10 | Q87: 1
A88: =127*B88 -> 0 | B88: =IF(G88<>"",1,0) -> 0 | D88: =D87+1 -> 11 | F88: =D88 -> 11 | Q88: 1
A89: 0 | B89: 0 | D89: =D88+1 -> 12 | F89: 12 | Q89: 1
A90: 0 | B90: 0 | D90: =D89+1 -> 13 | F90: 13 | Q90: 1
A91: 0 | B91: 0 | D91: 14 | F91: 14 | Q91: 1
A92: 0 | B92: 0 | D92: 15 | F92: 15 | Q92: 1
A93: 0 | B93: =B77 -> 0 | G93: =teksty!$D$964 -> pozostałe (mniej niż 20 tys. zł): | L93: =IF(L78="","",L76-SUM(L78:L92)) ->  | O93: =IF(O78="","",O76-SUM(O78:O92)) ->  | Q93: 0
C95: P_ID 7 | D95: G | F95: G. | G95: =teksty!D972 & IF(G97<> "", inc,"") -> Koszty uznawane za koszty uzyskania przychodów w roku bieżącym ujęte w księgach lat ubiegłych
A96: =127*B96 -> 0 | B96: =B97 -> 0 | G96: =teksty!$D$959 -> pdst. prawna: | H96: =teksty!$D$960 -> Art. | I96: =teksty!$D$961 -> poz. | J96: =teksty!$D$962 -> pkt. | K96: =teksty!$D$963 -> lit. | L96: =teksty!$D$958 -> (informacja uszczegóławiająca, wynikająca z potrzeb lub specyfiki jednostki) | Q96: 0
A97: =127*B97 -> 0 | B97: =IF(G97<>"",1,0) -> 0 | D97: =D96+1 -> 1 | F97: =D97 -> 1 | Q97: 1
A98: 0 | B98: 0 | D98: =D97+1 -> 2 | F98: 2 | Q98: 1
A99: 0 | B99: 0 | D99: =D98+1 -> 3 | F99: 3 | Q99: 1
A100: 0 | B100: 0 | D100: 4 | F100: 4 | Q100: 1
A101: 0 | B101: 0 | D101: 5 | F101: 5 | Q101: 1
A102: =127*B102 -> 0 | B102: =IF(G102<>"",1,0) -> 0 | D102: =D101+1 -> 6 | F102: =D102 -> 6 | Q102: 1
A103: 0 | B103: 0 | D103: =D102+1 -> 7 | F103: 7 | Q103: 1
A104: 0 | B104: 0 | D104: =D103+1 -> 8 | F104: 8 | Q104: 1
A105: 0 | B105: 0 | D105: 9 | F105: 9 | Q105: 1
A106: 0 | B106: 0 | D106: 10 | F106: 10 | Q106: 1
A107: =127*B107 -> 0 | B107: =IF(G107<>"",1,0) -> 0 | D107: =D106+1 -> 11 | F107: =D107 -> 11 | Q107: 1
A108: 0 | B108: 0 | D108: =D107+1 -> 12 | F108: 12 | Q108: 1
A109: 0 | B109: 0 | D109: =D108+1 -> 13 | F109: 13 | Q109: 1
A110: 0 | B110: 0 | D110: 14 | F110: 14 | Q110: 1
A111: 0 | B111: 0 | D111: 15 | F111: 15 | Q111: 1
A112: 0 | B112: =B96 -> 0 | G112: =teksty!$D$964 -> pozostałe (mniej niż 20 tys. zł): | L112: =IF(L97="","",L95-SUM(L97:L111)) ->  | O112: =IF(O97="","",O95-SUM(O97:O111)) ->  | Q112: 0
G114: =teksty!D973 -> Dochód (A - B - C + D + E + F - G) | L114: =IF(ISNUMBER($L$8),$L$8-$L$10-$L$24+$L$38+$L$52+$L$76-$L$95,"") ->  | M114: ___ | O114: =IF(ISNUMBER($O$8),$O$8-$O$10-$O$24+$O$38+$O$52+$O$76-$O$95,"") ->  | P114: ___ | S114: =teksty!$D$974 -> pomocniczy wiersz sumujący (wartości z tego wiersza nie są zapisywane do pliku e-sprawozdania)
C116: P_ID 8 | D116: H | F116: H. | G116: =teksty!D975 & IF(G118<> "", inc,"") -> Strata z lat ubiegłych
A117: =127*B117 -> 0 | B117: =B118 -> 0 | L117: =teksty!$D$958 -> (informacja uszczegóławiająca, wynikająca z potrzeb lub specyfiki jednostki) | Q117: 0
A118: =127*B118 -> 0 | B118: =IF(G118<>"",1,0) -> 0 | D118: =D117+1 -> 1 | F118: =D118 -> 1 | Q118: 1
A119: 0 | B119: 0 | D119: =D118+1 -> 2 | F119: 2 | Q119: 1
A120: 0 | B120: 0 | D120: =D119+1 -> 3 | F120: 3 | Q120: 1
A121: 0 | B121: 0 | D121: 4 | F121: 4 | Q121: 1
A122: 0 | B122: 0 | D122: 5 | F122: 5 | Q122: 1
A123: 0 | B123: =B117 -> 0 | G123: =teksty!$D$965 -> pozostałe: | L123: =IF(L118="","",L116-SUM(L118:L122)) ->  | M123: =IF(M118="","",M116-SUM(M118:M122)) ->  | O123: =IF(O118="","",O116-SUM(O118:O122)) ->  | P123: =IF(P118="","",P116-SUM(P118:P122)) ->  | Q123: 0
C125: P_ID 9 | D125: I | F125: I. | G125: =teksty!D977 & IF(G127<> "", inc,"") -> Inne zmiany podstawy opodatkowania
A126: =127*B126 -> 0 | B126: =B127 -> 0 | G126: =teksty!$D$959 -> pdst. prawna: | H126: =teksty!$D$960 -> Art. | I126: =teksty!$D$961 -> poz. | J126: =teksty!$D$962 -> pkt. | K126: =teksty!$D$963 -> lit. | L126: =teksty!$D$958 -> (informacja uszczegóławiająca, wynikająca z potrzeb lub specyfiki jednostki) | Q126: 0
A127: =127*B127 -> 0 | B127: =IF(G127<>"",1,0) -> 0 | D127: =D126+1 -> 1 | F127: =D127 -> 1 | Q127: 1
A128: 0 | B128: 0 | D128: =D127+1 -> 2 | F128: 2 | Q128: 1
A129: 0 | B129: 0 | D129: =D128+1 -> 3 | F129: 3 | Q129: 1
A130: 0 | B130: 0 | D130: 4 | F130: 4 | Q130: 1
A131: 0 | B131: 0 | D131: 5 | F131: 5 | Q131: 1
A132: =127*B132 -> 0 | B132: =IF(G132<>"",1,0) -> 0 | D132: 6 | F132: =D132 -> 6 | Q132: 1
A133: 0 | B133: 0 | D133: 7 | F133: 7 | Q133: 1
A134: 0 | B134: 0 | D134: 8 | F134: 8 | Q134: 1
A135: 0 | B135: 0 | D135: 9 | F135: 9 | Q135: 1
A136: 0 | B136: 0 | D136: 10 | F136: 10 | Q136: 1
A137: 0 | B137: =B126 -> 0 | G137: =teksty!$D$964 -> pozostałe (mniej niż 20 tys. zł): | L137: =IF(L127="","",L125-SUM(L127:L136)) ->  | O137: =IF(O127="","",O125-SUM(O127:O136)) ->  | Q137: 0
C139: P_ID 10 | D139: J | F139: J. | G139: =teksty!D978 -> Podstawa opodatkowania podatkiem dochodowym | L139: =IF(ISNUMBER($L$8),ROUND($L$114-$L$116+$L$125,0),"") ->  | M139: ___ | O139: =IF(ISNUMBER($O$8),ROUND($O$114-$O$116+$O$125,0),"") ->  | P139: ___ | AD139: =SUBSTITUTE(teksty!$D$954, CHAR(10)," ") -> Okres bieżący | AE139: =SUBSTITUTE(teksty!$D$955, CHAR(10)," ") -> Okres poprzedni
C141: P_ID 11 | D141: K | F141: K. | G141: =teksty!D979 -> Podatek dochodowy | L141: =IF(ISNUMBER($L$8),IF($L$139> 0,ROUND(CIT_B*$L$139,0),0),"") ->  | M141: ___ | O141: =IF(ISNUMBER($O$8),IF($O$139> 0,ROUND(CIT_P*$O$139,0),0),"") ->  | P141: ___ | S141: =IF(WrfKwot,IF(AND(Y141=0,Z141=0,AA141=0),"=","!"),"") ->  | T141: =teksty!$D$58&": "& IF(RZiS!WybranyWariant="JednostkaInna",CHAR(10)&IF(RZiS!SPor,RZiS!N56,RZiS!N104)&" − '"&teksty!D$668&"'", IF(RZiS!WybranyWariant="JednostkaMala",CHAR(10)&IF(RZiS!SPor,RZiS!N171,RZiS!N133)&" − '"&teksty!D$668&"'", IF(RZiS!WybranyWariant="JednostkaMikro",RZiS!N212, IF(RZiS!WybranyWariant="JednostkaOp",RZiS!N196, "-")))) -> RZiS: F | U141: =IF(RZiS!WybranyWariant="JednostkaInna", RZiS!SPor*RZiS!V$56+RZiS!SKalk*RZiS!V$104 - BiezacyPodatekOdroczony, IF(RZiS!WybranyWariant="JednostkaMala",RZiS!SPor*RZiS!V$171+RZiS!SKalk*RZiS!V$133 - BiezacyPodatekOdroczony, IF(RZiS!WybranyWariant="JednostkaMikro",RZiS!V$211, IF(RZiS!WybranyWariant="JednostkaOp",RZiS!V$196, "-")))) -> 0 | V141: =IF(RZiS!WybranyWariant="JednostkaInna", RZiS!SPor*RZiS!W$56+RZiS!SKalk*RZiS!W$104 - PoprzedniPodatekOdroczony, IF(RZiS!WybranyWariant="JednostkaMala",RZiS!SPor*RZiS!W$171+RZiS!SKalk*RZiS!W$133 - PoprzedniPodatekOdroczony, IF(RZiS!WybranyWariant="JednostkaMikro",RZiS!W$211, IF(RZiS!WybranyWariant="JednostkaOp",RZiS!W$196, "-")))) -> 0 | X141: =teksty!$D$997 & ": " -> Stawka CIT: | Y141: =ROUND(IF(AND(ISNUMBER(L141),ISNUMBER(U141)),L141-U141,0),0) -> 0 | Z141: =ROUND(IF(AND(ISNUMBER(O141),ISNUMBER(V141)),O141-V141,0),0) -> 0 | AA141: 0 | AB141: -7 | AC141: -4 | AD141: 0.19 | AE141: 0.19
U142: =IF(RZiS!WybranyWariant="JednostkaInna", RZiS!SPor*RZiS!V$57+RZiS!SKalk*RZiS!V$105,0)+IF(RZiS!WybranyWariant="JednostkaMala", RZiS!SPor*RZiS!V$172+RZiS!SKalk*RZiS!V134,0) -> 0 | V142: =IF(RZiS!WybranyWariant="JednostkaInna", RZiS!SPor*RZiS!W$57+RZiS!SKalk*RZiS!W$105,0)+IF(RZiS!WybranyWariant="JednostkaMala", RZiS!SPor*RZiS!W$172+RZiS!SKalk*RZiS!W134,0) -> 0
F143: * | G143: =teksty!D981 -> trwałe różnice pomiędzy zyskiem/stratą dla celów rachunkowych a dochodem/stratą dla celów podatkowych
E145: =teksty!$D$983 -> Załączniki i objaśnienia:
G147: brak | O147: =teksty!$D$985 -> Załącznik:
O151: =teksty!$D$985 -> Załącznik:
O155: =teksty!$D$985 -> Załącznik:
O159: =teksty!$D$985 -> Załącznik:
O163: =teksty!$D$985 -> Załącznik:
O167: =teksty!$D$985 -> Załącznik:
O171: =teksty!$D$985 -> Załącznik:
O175: =teksty!$D$985 -> Załącznik:
O179: =teksty!$D$985 -> Załącznik:
O183: =teksty!$D$985 -> Załącznik:

Sheet inne (hidden)

Sheet teksty (hidden)
H1: Ten arkusz obsługuje wielojęzyczność skoroszytu
C2: W kolumnie D są teksty aktualnie wybranej wersji językowej, a w kolumnach B,C,E,F - dodatkowe dane konfiguracyjne: | I2: Unikalna etykieta
H3: Objaśnienie | J3: PL | K3: EN | L3: Trzeci język - do wpisania przez Użytkownika
I4: 5
A5: Etykiety przycisków: | C5: Id obiektu | D5: Etykieta | H5: Etykiety przycisków: | I5: 10
C6: ShiftColumn | D6: =OFFSET(I6,0,WybranyJezyk) -> Przestaw rok | I6: 15 | J6: Przestaw rok | K6: Shift to next year | L6: Przestaw rok
C7: WyzerujWszystko | D7: Wyzeruj cały raport | I7: 20 | J7: Wyzeruj cały raport | K7: Reset whole report | L7: Wyzeruj cały raport
C8: WyzerujDane | D8: Wyzeruj, zachowując część Wprowadzenia | I8: 25 | J8: Wyzeruj, zachowując część Wprowadzenia | K8: Reset, but preserve descriptions | L8: Wyzeruj, zachowując część Wprowadzenia
C9: Wczytaj | D9: Wczytaj plik e-sprawozdania | I9: 30 | J9: Wczytaj plik e-sprawozdania | K9: Open report file (XML) | L9: Wczytaj plik e-sprawozdania
C10: Zapisz | D10: Zapisz jako plik e-sprawozdania | I10: 35 | J10: Zapisz jako plik e-sprawozdania | K10: Save as report file (XML) | L10: Zapisz jako plik e-sprawozdania
C11: Manual | D11: Instrukcja obsługi | I11: 40 | J11: Instrukcja obsługi | K11: User guide | L11: Instrukcja obsługi
C12: Licencja | D12: Licencja | I12: 45 | J12: Licencja | K12: Licence terms | L12: Licencja
C13: DrukujWszystko | D13: Utwórz podgląd sprawozdania (PDF) | I13: 50 | J13: Utwórz podgląd sprawozdania (PDF) | K13: Create report preview (PDF) | L13: Utwórz podgląd sprawozdania (PDF)
C14: EditLinks | D14: Edytuj linki do plików… | I14: 55 | J14: Edytuj linki do plików… | K14: Edit external links… | L14: Edytuj linki do plików…
D15: Etykiety skoroszytu w: | I15: 60 | J15: Etykiety skoroszytu w: | K15: Workbook labels in: | L15: Etykiety skoroszytu w:
D16: Niezgodności w powiązanych kwotach: | I16: 61 | J16: Niezgodności w powiązanych kwotach: | K16: Differences in related amounts: | L16: Niezgodności w powiązanych kwotach sprawozdania:
A17: Listy: | B17: Obsługiwane języki dla etykiet: | D17: Wykrywaj drugi monitor | I17: 65 | J17: Wykrywaj drugi monitor | K17: Detect multi-screen | L17: Wykrywaj drugi monitor:
B18: Nr kolejny | C18: Wart. | D18: Etykieta | H18: Lista języków | I18: 70
B19: 1 | C19: PL | D19: =OFFSET(I19,0,WybranyJezyk) -> języku polskim | I19: 75 | J19: języku polskim | K19: Polish | L19: języku polskim
B20: 2 | C20: EN | D20: =OFFSET(I20,0,WybranyJezyk) -> języku angielskim | I20: 80 | J20: języku angielskim | K20: English | L20: języku angielskim
B21: 3 | C21: 03 | D21: =OFFSET(I21,0,WybranyJezyk) -> języku trzecim | I21: 85 | J21: języku trzecim | K21: User-defined language | L21: języku trzecim
I22: 90
B23: Baza kwot (wartość nazwana Baza): | I23: 95
B24: Nr kolejny | C24: Wart. | D24: Etykieta | E24: Sufiks kodu formularza | H24: Lista baz kwot | I24: 100
B25: 1 | C25: WZlotych | D25: =OFFSET(I25,0,WybranyJezyk) -> złotych | E25: Z | I25: 105 | J25: złotych | K25: PLN | L25: złotych
B26: 2 | C26: WTysiacach | D26: =OFFSET(I26,0,WybranyJezyk) -> tysiącach złotych | E26: T | I26: 110 | J26: tysiącach złotych | K26: thousand PLN | L26: tysiącach złotych
I27: 115
B28: Wariant numeru id przedsiębiorcy (pole alternatywne w arkuszu Wprowadzenie) | I28: 120
B29: Nr kolejny | C29: Wart. | D29: Etykieta | H29: Lista typów Id (z "Wprowadzenia") | I29: 125
B30: 1 | C30: KRS | D30: =OFFSET(I30,0,WybranyJezyk) -> numer KRS | I30: 130 | J30: numer KRS | K30: KRS: | L30: numer KRS
B31: 2 | C31: NIP | D31: =OFFSET(I31,0,WybranyJezyk) -> numer NIP | I31: 135 | J31: numer NIP | K31: NIP: | L31: numer NIP
B33: Opcje weryfikacji niezgodności kwot
B34: Nr kolejny | C34: Wart. | D34: Etykieta | H34: Lista sposobu obsługi niezgodnych kwot
B35: 1 | C35: domyslne | D35: =OFFSET(I35,0,WybranyJezyk) -> obsługa domyślna | I35: 136 | J35: obsługa domyślna | K35: default method | L35: obsługa domyślna
B36: 2 | C36: wyswietlaj | D36: =OFFSET(I36,0,WybranyJezyk) -> tylko wyświetlaj | I36: 137 | J36: tylko wyświetlaj | K36: display only | L36: tylko wyświetlaj
B37: 3 | C37: ostrzezenie | D37: =OFFSET(I37,0,WybranyJezyk) -> sygnalizuj jako ostrzeżenie | I37: 138 | J37: sygnalizuj jako ostrzeżenie | K37: show as warning | L37: sygnalizuj jako ostrzeżenie
B38: 4 | C38: blad | D38: =OFFSET(I38,0,WybranyJezyk) -> sygnalizuj jako błąd | I38: 139 | J38: sygnalizuj jako błąd | K38: show as error | L38: sygnalizuj jako błąd
I39: 140
B40: Wariant dla pola logicznego: | I40: 145
B41: Nr kolejny | C41: Wart. | D41: Etykieta | H41: Lista Tak/Nie | I41: 150
B42: 1 | C42: true | D42: =OFFSET(I42,0,WybranyJezyk) -> Tak | I42: 155 | J42: Tak | K42: Yes | L42: Tak
B43: 2 | C43: false | D43: =OFFSET(I43,0,WybranyJezyk) -> Nie | I43: 160 | J43: Nie | K43: No | L43: Nie
I44: 165
B45: Wariant raportu (lista nazwana WariantRaportu) | I45: 170
B46: Nr kolejny | C46: Wart. | D46: Etykieta | E46: Prefiks kodu formularza | F46: Max. opcji | H46: Lista wariantów raportu | I46: 175
B47: 1 | C47: JednostkaMikro | D47: =OFFSET(I47,0,WybranyJezyk) -> dla mikroprzedsiębiorstwa ("Jednostka Mikro") | E47: SFJMI | F47: 3 | I47: 180 | J47: dla mikroprzedsiębiorstwa ("Jednostka Mikro") | K47: for micro-entities ("Jednostka Mikro") | L47: dla mikroprzedsiębiorstwa ("Jednostka Mikro")
B48: 2 | C48: JednostkaMala | D48: =OFFSET(I48,0,WybranyJezyk) -> dla małego przedsiębiorstwa ("Jednostka Mała") | E48: SFJMA | F48: 2 | I48: 185 | J48: dla małego przedsiębiorstwa ("Jednostka Mała") | K48: for small entities ("Jednostka Mała") | L48: dla małego przedsiębiorstwa ("Jednostka Mała")
B49: 3 | C49: JednostkaInna | D49: =OFFSET(I49,0,WybranyJezyk) -> dla większego przedsiębiorstwa ("Jednostka Inna") | E49: SFJIN | F49: 1 | I49: 190 | J49: dla większego przedsiębiorstwa ("Jednostka Inna") | K49: for other entities ("Jednostka Inna") | L49: dla większego przedsiębiorstwa ("Jednostka Inna")
B50: 4 | C50: JednostkaOp | D50: =OFFSET(I50,0,WybranyJezyk) -> dla organizacji pozarządowej ("Jednostka Op") | E50: SFJOP | F50: 1 | I50: 195 | J50: dla organizacji pozarządowej ("Jednostka Op") | K50: for NGOs ("Jednostka Op") | L50: dla organizacji pozarządowej ("Jednostka Op")
B51: 5 | C51: Skonsolidowana | D51: =OFFSET(I51,0,WybranyJezyk) -> skonsolidowanym (dla "Skonsolidowana Jednostka Inna") | E51: SFSIN | F51: 1 | I51: 200 | J51: skonsolidowanym (dla "Skonsolidowana Jednostka Inna") | K51: for the consolidated statement ("Skonsolidowana Jednostka Inna") | L51: skonsolidowanym (dla "Skonsolidowana Jednostka Inna")
I52: 205
B53: Lista sekcji (arkuszy) raportu | I53: 210
B54: Niezmienny Id | C54: Nazwa sekcji w zasobach XML /przedrostek nazwy elementu w dokumencie (do pierwszej spacji) | D54: Etykieta arkusza (zależna od języka) | E54: Odsyłacz do obszaru z wariantami formularza (do identyfikacji podczas importu) | H54: Lista nazw arkuszy | I54: 215 | L54: UWAGA: poniższe nazwy arkuszy się nie drukują. Dlatego najlepiej je pozostawić w wersji polskiej, bo niewłaściwa zmiana nazw arkuszy może spowodować błędy programu. Jeżeli jednak musisz je zmienić, pamiętaj, że nazwy arkuszy: 1. nie mogą zawierać dziwnych znaków jak np. "&" - tylko litery, a nazwy pierwszych 7 nie mogą zawierać spacji. 2. każda nazwa musi być unikalna
B55: Nagłówek | C55: Naglowek | D55: =OFFSET(I55,0,WybranyJezyk) -> Nagłówek | I55: 220 | J55: Nagłówek | K55: Header | L55: Nagłówek
B56: Wprowadzenie | C56: WprowadzenieDoSprawozdaniaFinansowego | D56: Wprowadzenie | E56: =Adr($B$105:$F$110) -> teksty!$B$105:$F$110 | I56: 225 | J56: Wprowadzenie | K56: Introduction | L56: Wprowadzenie
B57: Bilans | C57: Bilans | D57: Bilans | E57: =Adr($B$114:$F$119) -> teksty!$B$114:$F$119 | I57: 230 | J57: Bilans | K57: Balance | L57: Bilans
B58: RZiS | C58: RZiS | D58: RZiS | E58: =Adr($B$131:$F$136) -> teksty!$B$131:$F$136 | I58: 235 | J58: RZiS | K58: Profit | L58: RZiS
B59: ZestZmianWKapitale | C59: ZestZmianWKapitale | D59: Kapitał | E59: =Adr(B123:F127) -> teksty!$B$123:$F$127 | I59: 240 | J59: Kapitał | K59: Equity | L59: Kapitał
B60: RachPrzeplywow | C60: RachPrzeplywow | D60: Przepływy | E60: =Adr(B150:F155) -> teksty!$B$150:$F$155 | I60: 245 | J60: Przepływy | K60: CashFlow | L60: Przepływy
B61: Dodatkowe | C61: DodatkoweInformacjeIObjasnienia | D61: Dodatkowe | E61: =Adr($B$164:$F$169) -> teksty!$B$164:$F$169 | I61: 250 | J61: Dodatkowe | K61: Other | L61: Dodatkowe
A62: =A60+1 -> 1 | B62: ="Dodatkowe " &A62 -> Dodatkowe 1 | C62: ="DodatkoweInformacjeIObjasnienia " & A62 -> DodatkoweInformacjeIObjasnienia 1 | D62: Dodatkowe (1) | E62: teksty!$B$164:$F$169 | I62: 255 | J62: Dodatkowe (1) | K62: =SUBSTITUTE(J62,J$61,K$61) -> Other (1) | L62: Dodatkowe (1)
A63: =A62+1 -> 2 | B63: ="Dodatkowe " &A63 -> Dodatkowe 2 | C63: ="DodatkoweInformacjeIObjasnienia " & A63 -> DodatkoweInformacjeIObjasnienia 2 | D63: Dodatkowe (2) | E63: teksty!$B$164:$F$169 | I63: 260 | J63: Dodatkowe (2) | K63: =SUBSTITUTE(J63,J$61,K$61) -> Other (2) | L63: Dodatkowe (2)
A64: 3 | B64: Dodatkowe 3 | C64: DodatkoweInformacjeIObjasnienia 3 | D64: Dodatkowe (3) | E64: teksty!$B$164:$F$169 | I64: 265 | J64: Dodatkowe (3) | K64: Other (3) | L64: Dodatkowe (3)
A65: 4 | B65: Dodatkowe 4 | C65: DodatkoweInformacjeIObjasnienia 4 | D65: Dodatkowe (4) | E65: teksty!$B$164:$F$169 | I65: 270 | J65: Dodatkowe (4) | K65: Other (4) | L65: Dodatkowe (4)
A66: 5 | B66: Dodatkowe 5 | C66: DodatkoweInformacjeIObjasnienia 5 | D66: Dodatkowe (5) | E66: teksty!$B$164:$F$169 | I66: 275 | J66: Dodatkowe (5) | K66: Other (5) | L66: Dodatkowe (5)
A67: 6 | B67: Dodatkowe 6 | C67: DodatkoweInformacjeIObjasnienia 6 | D67: Dodatkowe (6) | E67: teksty!$B$164:$F$169 | I67: 280 | J67: Dodatkowe (6) | K67: Other (6) | L67: Dodatkowe (6)
A68: 7 | B68: Dodatkowe 7 | C68: DodatkoweInformacjeIObjasnienia 7 | D68: Dodatkowe (7) | E68: teksty!$B$164:$F$169 | I68: 285 | J68: Dodatkowe (7) | K68: Other (7) | L68: Dodatkowe (7)
A69: 8 | B69: Dodatkowe 8 | C69: DodatkoweInformacjeIObjasnienia 8 | D69: Dodatkowe (8) | E69: teksty!$B$164:$F$169 | I69: 290 | J69: Dodatkowe (8) | K69: Other (8) | L69: Dodatkowe (8)
A70: 9 | B70: Dodatkowe 9 | C70: DodatkoweInformacjeIObjasnienia 9 | D70: Dodatkowe (9) | E70: teksty!$B$164:$F$169 | I70: 295 | J70: Dodatkowe (9) | K70: Other (9) | L70: Dodatkowe (9)
A71: 10 | B71: Dodatkowe 10 | C71: DodatkoweInformacjeIObjasnienia 10 | D71: Dodatkowe (10) | E71: teksty!$B$164:$F$169 | I71: 300 | J71: Dodatkowe (10) | K71: Other (10) | L71: Dodatkowe (10)
A72: 11 | B72: Dodatkowe 11 | C72: DodatkoweInformacjeIObjasnienia 11 | D72: Dodatkowe (11) | E72: teksty!$B$164:$F$169 | I72: 305 | J72: Dodatkowe (11) | K72: Other (11) | L72: Dodatkowe (11)
A73: 12 | B73: Dodatkowe 12 | C73: DodatkoweInformacjeIObjasnienia 12 | D73: Dodatkowe (12) | E73: teksty!$B$164:$F$169 | I73: 310 | J73: Dodatkowe (12) | K73: Other (12) | L73: Dodatkowe (12)
A74: 13 | B74: Dodatkowe 13 | C74: DodatkoweInformacjeIObjasnienia 13 | D74: Dodatkowe (13) | E74: teksty!$B$164:$F$169 | I74: 315 | J74: Dodatkowe (13) | K74: Other (13) | L74: Dodatkowe (13)
A75: 14 | B75: Dodatkowe 14 | C75: DodatkoweInformacjeIObjasnienia 14 | D75: Dodatkowe (14) | E75: teksty!$B$164:$F$169 | I75: 320 | J75: Dodatkowe (14) | K75: Other (14) | L75: Dodatkowe (14)
A76: 15 | B76: Dodatkowe 15 | C76: DodatkoweInformacjeIObjasnienia 15 | D76: Dodatkowe (15) | E76: teksty!$B$164:$F$169 | I76: 325 | J76: Dodatkowe (15) | K76: Other (15) | L76: Dodatkowe (15)
A77: 16 | B77: Dodatkowe 16 | C77: DodatkoweInformacjeIObjasnienia 16 | D77: Dodatkowe (16) | E77: teksty!$B$164:$F$169 | I77: 330 | J77: Dodatkowe (16) | K77: Other (16) | L77: Dodatkowe (16)
A78: 17 | B78: Dodatkowe 17 | C78: DodatkoweInformacjeIObjasnienia 17 | D78: Dodatkowe (17) | E78: teksty!$B$164:$F$169 | I78: 335 | J78: Dodatkowe (17) | K78: Other (17) | L78: Dodatkowe (17)
A79: 18 | B79: Dodatkowe 18 | C79: DodatkoweInformacjeIObjasnienia 18 | D79: Dodatkowe (18) | E79: teksty!$B$164:$F$169 | I79: 340 | J79: Dodatkowe (18) | K79: Other (18) | L79: Dodatkowe (18)
A80: 19 | B80: Dodatkowe 19 | C80: DodatkoweInformacjeIObjasnienia 19 | D80: Dodatkowe (19) | E80: teksty!$B$164:$F$169 | I80: 345 | J80: Dodatkowe (19) | K80: Other (19) | L80: Dodatkowe (19)
A81: 20 | B81: Dodatkowe 20 | C81: DodatkoweInformacjeIObjasnienia 20 | D81: Dodatkowe (20) | E81: teksty!$B$164:$F$169 | I81: 350 | J81: Dodatkowe (20) | K81: Other (20) | L81: Dodatkowe (20)
A82: 21 | B82: Dodatkowe 21 | C82: DodatkoweInformacjeIObjasnienia 21 | D82: Dodatkowe (21) | E82: teksty!$B$164:$F$169 | I82: 355 | J82: Dodatkowe (21) | K82: Other (21) | L82: Dodatkowe (21)
A83: 22 | B83: Dodatkowe 22 | C83: DodatkoweInformacjeIObjasnienia 22 | D83: Dodatkowe (22) | E83: teksty!$B$164:$F$169 | I83: 360 | J83: Dodatkowe (22) | K83: Other (22) | L83: Dodatkowe (22)
A84: 23 | B84: Dodatkowe 23 | C84: DodatkoweInformacjeIObjasnienia 23 | D84: Dodatkowe (23) | E84: teksty!$B$164:$F$169 | I84: 365 | J84: Dodatkowe (23) | K84: Other (23) | L84: Dodatkowe (23)
A85: 24 | B85: Dodatkowe 24 | C85: DodatkoweInformacjeIObjasnienia 24 | D85: Dodatkowe (24) | E85: teksty!$B$164:$F$169 | I85: 370 | J85: Dodatkowe (24) | K85: Other (24) | L85: Dodatkowe (24)
A86: 25 | B86: Dodatkowe 25 | C86: DodatkoweInformacjeIObjasnienia 25 | D86: Dodatkowe (25) | E86: teksty!$B$164:$F$169 | I86: 375 | J86: Dodatkowe (25) | K86: Other (25) | L86: Dodatkowe (25)
A87: 26 | B87: Dodatkowe 26 | C87: DodatkoweInformacjeIObjasnienia 26 | D87: Dodatkowe (26) | E87: teksty!$B$164:$F$169 | I87: 380 | J87: Dodatkowe (26) | K87: Other (26) | L87: Dodatkowe (26)
A88: 27 | B88: Dodatkowe 27 | C88: DodatkoweInformacjeIObjasnienia 27 | D88: Dodatkowe (27) | E88: teksty!$B$164:$F$169 | I88: 385 | J88: Dodatkowe (27) | K88: Other (27) | L88: Dodatkowe (27)
A89: 28 | B89: Dodatkowe 28 | C89: DodatkoweInformacjeIObjasnienia 28 | D89: Dodatkowe (28) | E89: teksty!$B$164:$F$169 | I89: 390 | J89: Dodatkowe (28) | K89: Other (28) | L89: Dodatkowe (28)
A90: 29 | B90: Dodatkowe 29 | C90: DodatkoweInformacjeIObjasnienia 29 | D90: Dodatkowe (29) | E90: teksty!$B$164:$F$169 | I90: 395 | J90: Dodatkowe (29) | K90: Other (29) | L90: Dodatkowe (29)
A91: 30 | B91: Dodatkowe 30 | C91: DodatkoweInformacjeIObjasnienia 30 | D91: Dodatkowe (30) | E91: teksty!$B$164:$F$169 | I91: 400 | J91: Dodatkowe (30) | K91: Other (30) | L91: Dodatkowe (30)
A92: 31 | B92: Dodatkowe 31 | C92: DodatkoweInformacjeIObjasnienia 31 | D92: Dodatkowe (31) | E92: teksty!$B$164:$F$169 | I92: 405 | J92: Dodatkowe (31) | K92: Other (31) | L92: Dodatkowe (31)
A93: 32 | B93: Dodatkowe 32 | C93: DodatkoweInformacjeIObjasnienia 32 | D93: Dodatkowe (32) | E93: teksty!$B$164:$F$169 | I93: 410 | J93: Dodatkowe (32) | K93: Other (32) | L93: Dodatkowe (32)
A94: 33 | B94: Dodatkowe 33 | C94: DodatkoweInformacjeIObjasnienia 33 | D94: Dodatkowe (33) | E94: teksty!$B$164:$F$169 | I94: 415 | J94: Dodatkowe (33) | K94: Other (33) | L94: Dodatkowe (33)
A95: 34 | B95: Dodatkowe 34 | C95: DodatkoweInformacjeIObjasnienia 34 | D95: Dodatkowe (34) | E95: teksty!$B$164:$F$169 | I95: 420 | J95: Dodatkowe (34) | K95: Other (34) | L95: Dodatkowe (34)
A96: 35 | B96: Dodatkowe 35 | C96: ="DodatkoweInformacjeIObjasnienia " & A96 -> DodatkoweInformacjeIObjasnienia 35 | D96: Dodatkowe (35) | E96: teksty!$B$164:$F$169 | I96: 425 | J96: Dodatkowe (35) | K96: Other (35) | L96: Dodatkowe (35)
A97: 36 | B97: Dodatkowe 36 | C97: DodatkoweInformacjeIObjasnienia 36 | D97: Dodatkowe (36) | E97: teksty!$B$164:$F$169 | I97: 430 | J97: Dodatkowe (36) | K97: Other (36) | L97: Dodatkowe (36)
A98: 37 | B98: Dodatkowe 37 | C98: DodatkoweInformacjeIObjasnienia 37 | D98: Dodatkowe (37) | E98: teksty!$B$164:$F$169 | I98: 435 | J98: Dodatkowe (37) | K98: Other (37) | L98: Dodatkowe (37)
A99: 38 | B99: Dodatkowe 38 | C99: DodatkoweInformacjeIObjasnienia 38 | D99: Dodatkowe (38) | E99: teksty!$B$164:$F$169 | I99: 440 | J99: Dodatkowe (38) | K99: Other (38) | L99: Dodatkowe (38)
A100: 39 | B100: Dodatkowe 39 | C100: DodatkoweInformacjeIObjasnienia 39 | D100: Dodatkowe (39) | E100: teksty!$B$164:$F$169 | I100: 445 | J100: Dodatkowe (39) | K100: Other (39) | L100: Dodatkowe (39)
A101: 40 | B101: Dodatkowe 40 | C101: ="DodatkoweInformacjeIObjasnienia " & A101 -> DodatkoweInformacjeIObjasnienia 40 | D101: Dodatkowe (40) | E101: teksty!$B$164:$F$169 | I101: 450 | J101: Dodatkowe (40) | K101: Other (40) | L101: Dodatkowe (40)
I102: 455
B103: warianty sekcji "WprowadzenieDoSprawozdaniaFinansowego": | I103: 460 | L103: ------- koniec nazw arkuszy -------
B104: Nr kolejny | C104: Pole tekstowe ze wzorcem struktury | D104: Etykieta | E104: Nazwa bazowa węzła XML | F104: Odsyłacz do obszaru subelementów | H104: Lista wersji "Wprowadzenia" | I104: 465
B105: 1 | C105: JednostkaInna(Rozszerzona) | D105: =OFFSET(I105,0,WybranyJezyk) -> wersja pełna | E105: WprowadzenieDoSprawozdaniaFinansowegoJednostkaInna | I105: 470 | J105: wersja pełna | K105: full version | L105: wersja pełna
B106: 2 | C106: JednostkaMala | D106: =OFFSET(I106,0,WybranyJezyk) -> wersja uproszczona | E106: InformacjeOgolneJednostkaMikro,WprowadzenieDoSprawozdaniaFinansowegoJednostkaMala | I106: 475 | J106: wersja uproszczona | K106: simplified version | L106: wersja uproszczona
I107: 480
B108: 4 | C108: JednostkaInna | D108: =OFFSET(I108,0,WybranyJezyk) -> stała | E108: WprowadzenieDoSprawozdaniaFinansowego | I108: 485 | J108: stała | K108: fixed | L108: stała
B109: 5 | C109: JednostkaOp | D109: =OFFSET(I109,0,WybranyJezyk) -> stała | E109: WprowadzenieDoSprawozdaniaFinansowegoJednostkaOp | I109: 490 | J109: stała | K109: fixed | L109: stała
B110: 6 | C110: Skonsolidowana | D110: =OFFSET(I110,0,WybranyJezyk) -> stała | E110: WprowadzenieDoSprawozdaniaFinansowego | I110: 495 | J110: stała | K110: fixed | L110: stała
I111: 500
B112: warianty sekcji "Bilans": | I112: 505
B113: Nr kolejny | C113: Pole tekstowe ze wzorcem struktury | D113: Etykieta | E113: Nazwa bazowa węzła XML | F113: Odsyłacz do obszaru subelementów | H113: Lista wersji "Bilansu" | I113: 510
B114: 1 | C114: JednostkaInna | D114: =OFFSET(I114,0,WybranyJezyk) -> wersja pełna | E114: Bilans,BilansJednostkaInna | I114: 515 | J114: wersja pełna | K114: full version | L114: wersja pełna
B115: 2 | C115: JednostkaMala | D115: =OFFSET(I115,0,WybranyJezyk) -> wersja uproszczona | E115: BilansJednostkaMala | I115: 520 | J115: wersja uproszczona | K115: simplified version | L115: wersja uproszczona
B116: 3 | C116: JednostkaMikro | D116: =OFFSET(I116,0,WybranyJezyk) -> wersja najprostsza | E116: BilansJednostkaMikro | I116: 525 | J116: wersja najprostsza | K116: the simplest version | L116: wersja najprostsza
I117: 530
B118: 5 | C118: JednostkaOp | D118: =OFFSET(I118,0,WybranyJezyk) -> stała | E118: BilansJednostkaOp | I118: 535 | J118: stała | K118: fixed | L118: stała
B119: 6 | C119: Skonsolidowana | D119: =OFFSET(I119,0,WybranyJezyk) -> stała | E119: Bilans | I119: 540 | J119: stała | K119: fixed | L119: stała
I120: 545
B121: warianty sekcji "ZestZmianWKapitale": | I121: 550
B122: Nr kolejny | C122: Pole tekstowe ze wzorcem struktury | D122: Etykieta | E122: Nazwa bazowa węzła XML | F122: Odsyłacz do obszaru subelementów | I122: 555
B123: 1 | C123: JednostkaInna | D123: =OFFSET(I123,0,WybranyJezyk) -> stała | E123: ZestZmianWKapitale,ZestZmianWKapitaleJednostkaInna | I123: 560 | J123: stała | K123: fixed | L123: stała
I124: 565
I125: 570
B126: 4 | C126: Skonsolidowana | D126: =OFFSET(I126,0,WybranyJezyk) -> stała | E126: ZestZmianWKapitale | I126: 575 | J126: stała | K126: fixed | L126: stała
B127: 1 | C127: JednostkaOp | D127: stała | E127: ZestZmianWKapitaleJednostkaInna | I127: 580
I128: 585
B129: warianty sekcji "RZiS": | I129: 590
B130: Nr kolejny | C130: Pole tekstowe ze wzorcem struktury | D130: Etykieta | E130: Nazwa bazowa węzła XML | F130: Odsyłacz do obszaru subelementów | H130: Lista wersji"RZiS" | I130: 595
B131: 1 | C131: JednostkaInna | D131: =OFFSET(I131,0,WybranyJezyk) -> wersja pełna | E131: RZiS,RZiSJednostkaInna | F131: =Adr($B$140:$F$141) -> teksty!$B$140:$F$141 | I131: 600 | J131: wersja pełna | K131: full version | L131: wersja pełna
B132: 2 | C132: JednostkaMala | D132: =OFFSET(I132,0,WybranyJezyk) -> wersja uproszczona | E132: RZiSJednostkaMala | F132: =Adr($B$140:$F$141) -> teksty!$B$140:$F$141 | I132: 605 | J132: wersja uproszczona | K132: simplified version | L132: wersja uproszczona
B133: 3 | C133: JednostkaMikro | D133: =OFFSET(I133,0,WybranyJezyk) -> wersja najprostsza | E133: RZiSJednostkaMikro | F133: =Adr(B145:F146) -> teksty!$B$145:$F$146 | I133: 610 | J133: wersja najprostsza | K133: the simplest version | L133: wersja najprostsza
I134: 615
B135: 5 | C135: JednostkaOp | D135: =OFFSET(I135,0,WybranyJezyk) -> stała | E135: RZiSJednostkaOp | I135: 620 | J135: stała | K135: fixed | L135: stała
B136: 6 | C136: Skonsolidowana | D136: =OFFSET(I136,0,WybranyJezyk) -> stała | E136: RZiS | F136: =Adr($B$140:$F$141) -> teksty!$B$140:$F$141 | I136: 625 | J136: stała | K136: fixed | L136: stała
I137: 630
B138: subwarianty sekcji "RZiS": | I138: 635
B139: Nr kolejny | C139: (nieistotne) | D139: Etykieta | E139: Nazwa bazowa węzła XML | F139: Odsyłacz do obszaru subelementów | H139: Lista wariantów "RZS" | I139: 640
B140: 1 | C140: Kalkulacyjny | D140: =OFFSET(I140,0,WybranyJezyk) -> wariant kalkulacyjny | E140: RZiSKalk | I140: 645 | J140: wariant kalkulacyjny | K140: calculation variant | L140: wariant kalkulacyjny
B141: 2 | C141: Porownawczy | D141: =OFFSET(I141,0,WybranyJezyk) -> wariant porównawczy | E141: RZiSPor | I141: 650 | J141: wariant porównawczy | K141: comparative variant | L141: wariant porównawczy
I142: 655
B143: subwarianty sekcji "RZiS": | I143: 660
B144: Nr kolejny | C144: (nieistotne) | D144: Etykieta | E144: Nazwa bazowa węzła XML | F144: Odsyłacz do obszaru subelementów | H144: Lista subwariantów RZiS dla jedn. Mikro | I144: 665
B145: 1 | C145: art3.1a.2 | D145: =OFFSET(I145,0,WybranyJezyk) -> wariant dla jednostki z art. 3 ust. 1a pkt 2 ustawy | E145: G | I145: 670 | J145: wariant dla jednostki z art. 3 ust. 1a pkt 2 ustawy | K145: for entities descr. by sect. 3, par. 1a, p. 2 of the Act | L145: wariant dla jednostki z art. 3 ust. 1a pkt 2 ustawy
B146: 2 | C146: pozostale | D146: =OFFSET(I146,0,WybranyJezyk) -> wariant dla jednostek z art. 3 ust. 1a p. 1,3, i 4 oraz ust. 1b | E146: F | I146: 675 | J146: wariant dla jednostek z art. 3 ust. 1a p. 1,3, i 4 oraz ust. 1b | K146: for entities descr. By sect. 3, par. 1a p. 1,3, 4 or par. 1b of the Act | L146: wariant dla jednostek z art. 3 ust. 1a p. 1,3, i 4 oraz ust. 1b
I147: 680
B148: warianty sekcji "RachPrzeplywow": | I148: 685
B149: Nr kolejny | C149: Pole tekstowe ze wzorcem struktury | D149: Etykieta | E149: Nazwa bazowa węzła XML | F149: Odsyłacz do obszaru subelementów | I149: 690
B150: 1 | C150: JednostkaInna | D150: =OFFSET(I150,0,WybranyJezyk) -> stała | E150: RachPrzeplywow,RachPrzeplywowJednostkaInna | F150: =Adr($B$159:$F$160) -> teksty!$B$159:$F$160 | I150: 695 | J150: stała | K150: fixed | L150: stała
I151: 700
I152: 705
I153: 710
B154: 5 | C154: JednostkaOp | D154: =OFFSET(I154,0,WybranyJezyk) -> stała | E154: RachPrzeplywowJednostkaInna | F154: =Adr($B$159:$F$160) -> teksty!$B$159:$F$160 | I154: 715 | J154: stała | K154: fixed | L154: stała
B155: 6 | C155: Skonsolidowana | D155: =OFFSET(I155,0,WybranyJezyk) -> stała | E155: RachPrzeplywow | F155: =Adr($B$159:$F$160) -> teksty!$B$159:$F$160 | I155: 720 | J155: stała | K155: fixed | L155: stała
I156: 725
B157: subwarianty sekcji "RachPrzeplywow": | I157: 730
B158: Nr kolejny | C158: (nieistotne) | D158: Etykieta | E158: Nazwa bazowa węzła XML | F158: Odsyłacz do obszaru subelementów | H158: Lista wariantów "Przepływów" | I158: 735
B159: 1 | C159: Bezposrednia | D159: =OFFSET(I159,0,WybranyJezyk) -> metoda bezpośrednia | E159: PrzeplywyBezp | I159: 740 | J159: metoda bezpośrednia | K159: direct method | L159: metoda bezpośrednia
B160: 2 | C160: Posrednia | D160: =OFFSET(I160,0,WybranyJezyk) -> metoda pośrednia | E160: PrzeplywyPosr | I160: 745 | J160: metoda pośrednia | K160: indirect method | L160: metoda pośrednia
I161: 750
B162: sufiksy nazwy obaszaru do "DodatkoweInformacjeIObjasnienia": | I162: 755
B163: Nr kolejny | C163: Pole tekstowe ze wzorcem struktury | D163: Etykieta | E163: Nazwa bazowa węzła XML | F163: Odsyłacz do obszaru subelementów | I163: 760
B164: 1 | C164: JednostkaInna | D164: =OFFSET(I164,0,WybranyJezyk) -> stała | E164: DodatkoweInformacjeIObjasnieniaJednstkaInna,DodatkoweInformacjeIObjasnieniaJednostkaInna | I164: 765 | J164: stała | K164: fixed | L164: stała
B165: 2 | C165: JednostkaInna | D165: =OFFSET(I165,0,WybranyJezyk) -> stała | E165: InformacjeUzupelniajaceDoBilansuJednostkaMikro,DodatkoweInformacjeIObjasnieniaJednostkaMala | I165: 770 | J165: stała | K165: fixed | L165: stała
I166: 775
B167: 4 | C167: JednostkaOp | D167: =OFFSET(I167,0,WybranyJezyk) -> stała | E167: InformacjaDodatkowaJednostkaOp | I167: 780 | J167: stała | K167: fixed | L167: stała
I168: 785
B169: 6 | C169: Skonsolidowana | D169: =OFFSET(I169,0,WybranyJezyk) -> stała | E169: DodatkoweInformacjeIObjasnieniaJednostkaInna | I169: 790 | J169: stała | K169: fixed | L169: stała
I170: 795
A171: Teksty używane w kodzie programu: | I171: 800
I172: 805
C173: ID używane w kodzie | D173: Tekst (pola {0}, {1}, {2}, … są na kolejne argumenty wywołania) | H173: Komunikaty programu | I173: 810
C174: WkbookCorrupted | D174: =OFFSET(I174,0,WybranyJezyk) -> W tym skoroszycie brakuje niektórych danych niezbędnych do poprawnego działania. (Ta kopia jest niekompletna) | H174: UWAGA: zawsze należy zachować pola {0}, {1}, {2}, … - są to miejsca na kolejne argumenty wywołania | I174: 815 | J174: W tym skoroszycie brakuje niektórych danych niezbędnych do poprawnego działania. (Ta kopia jest niekompletna) | K174: This workbook lost some vital data, and is not working properly. (This copy is incomplete). | L174: =J174 -> W tym skoroszycie brakuje niektórych danych niezbędnych do poprawnego działania. (Ta kopia jest niekompletna)
C175: WkbookProblem | D175: Problem ze skoroszytem | I175: 820 | J175: Problem ze skoroszytem | K175: Workbook problem | L175: =J175 -> Problem ze skoroszytem
C176: ErrOnOpen | D176: Błąd podczas otwierania pliku | I176: 825 | J176: Błąd podczas otwierania pliku | K176: Error on opening the file | L176: Błąd podczas otwierania pliku
C177: CannotLoadFile | D177: Nie można załadować pliku: {0} | I177: 830 | J177: Nie można załadować pliku: {0} | K177: Cannot load file: {0} | L177: Nie można załadować pliku: {0}
C178: UnknownProtectionPwd | D178: Arkusz jest chroniony nieznanym hasłem. Ten przycisk działa tylko dla arkuszy z ochroną bez hasła lub z hasłem predefiniowanym | I178: 835 | J178: Arkusz jest chroniony nieznanym hasłem. Ten przycisk działa tylko dla arkuszy z ochroną bez hasła lub z hasłem predefiniowanym | K178: This worksheet is protected by an unknown password. This button works only for the sheets protected without a password, or by the predefined password | L178: Arkusz jest chroniony nieznanym hasłem. Ten przycisk działa tylko dla arkuszy z ochroną bez hasła lub z hasłem predefiniowanym
C179: CannotUnprotect | D179: Nie można wyłączyć ochrony arkusza. Spróbuj użyć oryginalnej wersji tego skoroszytu (z tą coś jest nie tak) | I179: 840 | J179: Nie można wyłączyć ochrony arkusza. Spróbuj użyć oryginalnej wersji tego skoroszytu (z tą coś jest nie tak) | K179: Cannot unprotect this worksheet. Try to use the original version of this workbook (there is something wrong with this one). | L179: Nie można wyłączyć ochrony arkusza. Spróbuj użyć oryginalnej wersji tego skoroszytu (z tą coś jest nie tak)
C180: STDExpireMsg | D180: Szanowny Kliencie, upłynął okres licencji udzielonej na używanie tego skoroszytu. Aby przedłużyć licencję, prosimy o kontakt z producentem (biuro@zigzak.eu). | I180: 845 | J180: Szanowny Kliencie, upłynął okres licencji udzielonej na używanie tego skoroszytu. Aby przedłużyć licencję, prosimy o kontakt z producentem (biuro@zigzak.eu). | K180: Dear Customer, the licence for this workbook has expired. To buy a new licence, plrease contact the producer (biuro@zigzak.eu) | L180: Szanowny Kliencie, upłynął okres licencji udzielonej na używanie tego skoroszytu. Aby przedłużyć licencję, prosimy o kontakt z producentem (biuro@zigzak.eu).
C181: STDExpireDemoMsg | D181: Okres ważności tej wersji demonstracyjnej już upłynął. Zapytaj (biuro@zigzak.eu) o warunki udzielenia pełnej licencji | I181: 850 | J181: Okres ważności tej wersji demonstracyjnej już upłynął. Zapytaj (biuro@zigzak.eu) o warunki udzielenia pełnej licencji | K181: This demo version has expired. Ask the producer (biuro@zigzak.eu) for the license terms. | L181: Okres ważności tej wersji demonstracyjnej już upłynął. Zapytaj (biuro@zigzak.eu) o warunki udzielenia pełnej licencji
C182: IFormExpireMsg | D182: Szanowny Kliencie, upłynął okres licencji udzielonej na używanie tego skoroszytu. Aby przedłużyć licencję, prosimy o kontakt z producentem (biuro@zigzak.eu). | I182: 855 | J182: Szanowny Kliencie, upłynął okres licencji udzielonej na używanie tego skoroszytu. Aby przedłużyć licencję, prosimy o kontakt z producentem (biuro@zigzak.eu). | K182: Dear Customer, the licence for this workbook has expired. To buy a new licence, plrease contact the producer (biuro@zigzak.eu) | L182: Szanowny Kliencie, upłynął okres licencji udzielonej na używanie tego skoroszytu. Aby przedłużyć licencję, prosimy o kontakt z producentem (biuro@zigzak.eu).
C183: IFormExpireDemoMsg | D183: Okres ważności tej wersji demonstracyjnej już upłynął. W celu nabycia pełnej licencji prosimy o kontakt z naszym partnerem: Signform Sp. z o.o. tel. +48 608-43-63-83 e-mail: biuro@signform.pl | I183: 860 | J183: Okres ważności tej wersji demonstracyjnej już upłynął. W celu nabycia pełnej licencji prosimy o kontakt z naszym partnerem: Signform Sp. z o.o. tel. +48 608-43-63-83 e-mail: biuro@signform.pl | K183: This demo version has expired. To buy a licence for this workbook, contact our sales partner: Signform Sp. z o.o. phone: +48 608-43-63-83 e-mail: biuro@signform.pl | L183: Okres ważności tej wersji demonstracyjnej już upłynął. W celu nabycia pełnej licencji prosimy o kontakt z naszym partnerem: Signform Sp. z o.o. tel. +48 608-43-63-83 e-mail: biuro@signform.pl
C184: DemoLicenseMsg | D184: Wersja demonstracyjna (kopiowanie dozwolone). W sprawie otrzymania licencji na wersję produktywną skontaktuj się z Właścicielem (biuro@zigzak.eu) | I184: 865 | J184: Wersja demonstracyjna (kopiowanie dozwolone). W sprawie otrzymania licencji na wersję produktywną skontaktuj się z Właścicielem (biuro@zigzak.eu) | K184: Demo version (copying allowed). If you are interested in buying the full licence, ask the producer (biuro@zigzak.eu) . | L184: Wersja demonstracyjna (kopiowanie dozwolone). W sprawie otrzymania licencji na wersję produktywną skontaktuj się z Właścicielem (biuro@zigzak.eu)
C185: DemoYearRestriction | D185: Ta wersja demonstracyjna nie pozwala na stworzenie raportu za okres obejmujący zeszły rok ({0}). Możesz w niej stworzyć raporty za lata wcześniejsze. W sprawie otrzymania pełnej licencji skontaktuj się z producentem (biuro@zigzak.eu) | I185: 870 | J185: Ta wersja demonstracyjna nie pozwala na stworzenie raportu za okres obejmujący zeszły rok ({0}). Możesz w niej stworzyć raporty za lata wcześniejsze. W sprawie otrzymania pełnej licencji skontaktuj się z producentem (biuro@zigzak.eu) | K185: This demo version does not allow to save report for the previous year ({0}). You can use it to create reports for the previous years. If you are interested in buying the full licence, contact the producer (biuro@zigzak.eu) . | L185: Ta wersja demonstracyjna nie pozwala na stworzenie raportu za okres obejmujący zeszły rok ({0}). Możesz w niej stworzyć raporty za lata wcześniejsze. W sprawie otrzymania pełnej licencji skontaktuj się z producentem (biuro@zigzak.eu)
C186: IFormDemoYearRestriction | D186: Ta wersja demonstracyjna nie pozwala na stworzenie raportu za okres obejmujący zeszły rok ({0}). Możesz w niej stworzyć raporty za lata wcześniejsze. Aby nabyć pełną licencję, skontaktuj się z naszym partnerem: Signform Sp. z o.o. tel. +48 608-43-63-83 e-mail: biuro@signform.pl | I186: 875 | J186: Ta wersja demonstracyjna nie pozwala na stworzenie raportu za okres obejmujący zeszły rok ({0}). Możesz w niej stworzyć raporty za lata wcześniejsze. Aby nabyć pełną licencję, skontaktuj się z naszym partnerem: Signform Sp. z o.o. tel. +48 608-43-63-83 e-mail: biuro@signform.pl | K186: This demo version does not allow to save report for the previous year ({0}). You can use it to create reports for the previous years. To buy a full licence for this workbook, contact our sales partner: Signform Sp. z o.o. phone: +48 608-43-63-83 e-mail: biuro@signform.pl | L186: Ta wersja demonstracyjna nie pozwala na stworzenie raportu za okres obejmujący zeszły rok ({0}). Możesz w niej stworzyć raporty za lata wcześniejsze. Aby nabyć pełną licencję, skontaktuj się z naszym partnerem: Signform Sp. z o.o. tel. +48 608-43-63-83 e-mail: biuro@signform.pl
C187: MappingXMLFields… | D187: Przypisywanie pól arkuszy do pól dokumentu XML: | I187: 880 | J187: Przypisywanie pól arkuszy do pól dokumentu XML: | K187: Assigning worksheet fields to the XML document elements: | L187: Przypisywanie pól arkuszy do pól dokumentu XML:
C188: Assertion | D188: Nieoczekiwany problem techniczny | I188: 885 | J188: Nieoczekiwany problem techniczny | K188: Unexpected technical problem | L188: Nieoczekiwany problem techniczny
C189: NoFieldMapped | D189: We wzorcowym pliku ({0}) brak pola "{1}" Czy ten skoroszyt nie jest w jakiś sposób uszkodzony? | I189: 890 | J189: We wzorcowym pliku ({0}) brak pola "{1}" Czy ten skoroszyt nie jest w jakiś sposób uszkodzony? | K189: Field '{1}' not found in the template document ({0}). Is this workbook file corrupted? | L189: We wzorcowym pliku ({0}) brak pola "{1}" Czy ten skoroszyt nie jest w jakiś sposób uszkodzony?
C190: TooManyFieldsMapped | D190: We wzorcowym pliku ({0}) pola "{1}" występują {2} razy! Uwaga dla programisty: proszę sprawdzić definicję mapowania w wierszu {3}. | I190: 895 | J190: We wzorcowym pliku ({0}) pola "{1}" występują {2} razy! Uwaga dla programisty: proszę sprawdzić definicję mapowania w wierszu {3}. | K190: Field '{1}' occurs {2} times in the template document ({0}). Note for the programmer: check the mapping declaraction in row {3}. | L190: We wzorcowym pliku ({0}) pola "{1}" występują {2} razy! Uwaga dla programisty: proszę sprawdzić definicję mapowania w wierszu {3}.
C191: TooLongFileName | D191: Nazwa pliku jest za długa (o {0} {1}). | I191: 900 | J191: Nazwa pliku jest za długa (o {0} {1}). | K191: File name too long (by {0} {1}). | L191: Nazwa pliku jest za długa (o {0} {1}).
C192: 1char | D192: znak | I192: 905 | J192: znak | K192: character | L192: znak
C193: 2-4chars | D193: znaki | I193: 910 | J193: znaki | K193: characters | L193: znaki
C194: >4chars | D194: znaków | I194: 915 | J194: znaków | K194: characters | L194: znaków
C195: WrongFileNameChar | D195: Znak nr {0} ('{1}') w nazwie '{2}' jest niepoprawny. Dopuszczalne znaki to: litery łacińskie, cyfry, oraz myślnik ('-'), podkreślenie('_'), i kropka ('.') | I195: 920 | J195: Znak nr {0} ('{1}') w nazwie '{2}' jest niepoprawny. Dopuszczalne znaki to: litery łacińskie, cyfry, oraz myślnik ('-'), podkreślenie('_'), i kropka ('.') | K195: Character at pos. {0} ('{1}') in name '{2}' is improper. Allowed are: latin letters, digits, dashes ('-'), underscores ('_'), and dots ('.'). | L195: Znak nr {0} ('{1}') w nazwie '{2}' jest niepoprawny. Dopuszczalne znaki to: litery łacińskie, cyfry, oraz myślnik ('-'), podkreślenie('_'), i kropka ('.')
C196: Warning | D196: Ostrzeżenie | I196: 925 | J196: Ostrzeżenie | K196: Warning | L196: Ostrzeżenie
C197: Question | D197: Pytanie | I197: 926 | J197: Pytanie | K197: Question | L197: Pytanie
C198: Information | D198: Informacja | I198: 927 | J198: Informacja | K198: Information | L198: Informacja
C199: CorrectThisImportFileName? | D199: Naza pliku nie spełnia wymagań MF: {0} Nazwę tego pliku możesz poprawić, nawet w oknie dialogowym które przed chwilą się zamknęło. (Wystarczy przed wskazaniem pliku kliknąć w jego nazwę prawym przyciskiem myszy i z menu kontektowego wybrać polecenie "Zmień nazwę"). Czy chcesz teraz otworzyć ponownie okno wyboru plików i poprawić w nim tę nazwę? | I199: 930 | J199: Naza pliku nie spełnia wymagań MF: {0} Nazwę tego pliku możesz poprawić, nawet w oknie dialogowym które przed chwilą się zamknęło. (Wystarczy przed wskazaniem pliku kliknąć w jego nazwę prawym przyciskiem myszy i z menu kontektowego wybrać polecenie "Zmień nazwę"). Czy chcesz teraz otworzyć ponownie okno wyboru plików i poprawić w nim tę nazwę? | K199: File name does not match the requirements: {0} You can correct this name even in the file selector dialog that you have just closed. (Before selecting the file, you can right-click the mouse on its name and from the contect menu select the "Rename" command). Do you want to open the file selector dialog again, and correct this file name? | L199: Naza pliku nie spełnia wymagań MF: {0} Nazwę tego pliku możesz poprawić, nawet w oknie dialogowym które przed chwilą się zamknęło. (Wystarczy przed wskazaniem pliku kliknąć w jego nazwę prawym przyciskiem myszy i z menu kontektowego wybrać polecenie "Zmień nazwę"). Czy chcesz teraz otworzyć ponownie okno wyboru plików i poprawić w nim tę nazwę?
C200: CorrectThisExportFileName? | D200: Ten plik zostanie odrzucony przez serwer eKRS/KAS z powodu: {0} Czy chcesz teraz poprawić tę nazwę? | I200: 935 | J200: Ten plik zostanie odrzucony przez serwer eKRS/KAS z powodu: {0} Czy chcesz teraz poprawić tę nazwę? | K200: This file will be discarded by the target portal because of: {0} Do you ant to correct its name? | L200: Ten plik zostanie odrzucony przez serwer eKRS/KAS z powodu: {0} Czy chcesz teraz poprawić tę nazwę?
C201: PreparingToExport | D201: Przygotowania do eksportu... | I201: 940 | J201: Przygotowania do eksportu... | K201: Preparing the export…. | L201: Przygotowania do eksportu...
... 819 more rows

Sheet mapowanie (hidden)
B1: Mapowanie pól sprawozdania na elementy dokumentu XML | J1: Uwaga: przestrzeń nazw "sf:" to przesztrzeń aktualnie wybranego wariantu. Używaj "xjin:", "xjma:" i "xjmi:", by odróżnić "statycznie" poszczególne warianty bazowej struktury (np. xjin to "JednostkaInna<Wtysiacach/WZlotych>"). Do podobnego celu możesz użyć "jin:", "jma:" i "jmi:" (np. jin to "JednostkaInnaStruktury")
N3: Zamiennik 1/1 dla wersji schematu: | O3: Zamiennik 1/2
B4: Adres | C4: Domyślne dane w miejsce pustej komórki | D4: Dodatkowy atrybut | E4: Zachowaj przy resecie częściowym | F4: Flaga | G4: Typ | H4: Nr kolejny | I4: Formuła | J4: Element nadrzędny | K4: Element docelowy | L4: Weryfikacja adresu komórki (etykieta elementu) | N4: 1-0,1-0E
B5: =Adr(DataOd) -> Nagłówek!$E$8 | D5: MarkParent | G5: Data | J5: sf:Naglowek | K5: dtsf:OkresOd | L5: 0
B6: =Adr(DataDo) -> Nagłówek!$G$8 | D6: MarkParent | G6: Data | J6: sf:Naglowek | K6: dtsf:OkresDo | L6: -
B7: =Adr(Nagłówek!G11) -> Nagłówek!$G$11 | C7: =TODAY() -> 2025-03-31 | G7: Data | J7: sf:Naglowek | K7: dtsf:DataSporzadzenia
B8: =Adr(Wprowadzenie!I4) -> Wprowadzenie!$I$4 | G8: Tekst | J8: sf:P_1A | K8: dtsf:NazwaFirmy
B9: =Adr(Wprowadzenie!I24) -> Wprowadzenie!$I$24 | G9: Tekst | J9: dtsf:Siedziba | K9: dtsf:Wojewodztwo
B10: =Adr(Wprowadzenie!I22) -> Wprowadzenie!$I$22 | G10: Tekst | J10: dtsf:Siedziba | K10: dtsf:Powiat
B11: =Adr(Wprowadzenie!I20) -> Wprowadzenie!$I$20 | G11: Tekst | J11: dtsf:Siedziba | K11: dtsf:Gmina
B12: =Adr(Wprowadzenie!I16) -> Wprowadzenie!$I$16 | G12: Tekst | J12: dtsf:Siedziba | K12: dtsf:Miejscowosc
B13: =Adr(Wprowadzenie!O18) -> Wprowadzenie!$O$18 | G13: Tekst | I13: PL | J13: dtsf:Adres | K13: dtsf:KodKraju | N13: =J13 -> dtsf:Adres | O13: etd:KodKraju
B14: =Adr(Wprowadzenie!I24) -> Wprowadzenie!$I$24 | G14: Tekst | J14: dtsf:Adres | K14: dtsf:Wojewodztwo | N14: =J14 -> dtsf:Adres | O14: etd:Wojewodztwo
B15: =Adr(Wprowadzenie!I22) -> Wprowadzenie!$I$22 | G15: Tekst | J15: dtsf:Adres | K15: dtsf:Powiat | N15: dtsf:Adres | O15: etd:Powiat
B16: =Adr(Wprowadzenie!I20) -> Wprowadzenie!$I$20 | G16: Tekst | J16: dtsf:Adres | K16: dtsf:Gmina | N16: dtsf:Adres | O16: etd:Gmina
B17: =Adr(Wprowadzenie!I12) -> Wprowadzenie!$I$12 | G17: Tekst | J17: dtsf:Adres | K17: dtsf:Ulica | N17: dtsf:Adres | O17: etd:Ulica
B18: =Adr(Wprowadzenie!I14) -> Wprowadzenie!$I$14 | G18: Tekst | J18: dtsf:Adres | K18: dtsf:NrDomu | N18: dtsf:Adres | O18: etd:NrDomu
B19: =Adr(Wprowadzenie!K14) -> Wprowadzenie!$K$14 | G19: Tekst | J19: dtsf:Adres | K19: dtsf:NrLokalu | N19: dtsf:Adres | O19: etd:NrLokalu
B20: =Adr(Wprowadzenie!I16) -> Wprowadzenie!$I$16 | G20: Tekst | J20: dtsf:Adres | K20: dtsf:Miejscowosc | N20: dtsf:Adres | O20: etd:Miejscowosc
B21: =Adr(Wprowadzenie!L18) -> Wprowadzenie!$L$18 | G21: Tekst | J21: dtsf:Adres | K21: dtsf:KodPocztowy | N21: dtsf:Adres | O21: etd:KodPocztowy
B22: =Adr(Wprowadzenie!I18) -> Wprowadzenie!$I$18 | G22: Tekst | J22: dtsf:Adres | K22: dtsf:Poczta | N22: dtsf:Adres | O22: etd:Poczta
B23: =Adr(Wprowadzenie!O32) -> Wprowadzenie!$O$32 | G23: Tekst | J23: dtsf:AdresPrzedsiebiorcyZagranicznego | K23: dtsf:KodKraju | N23: =J23 -> dtsf:AdresPrzedsiebiorcyZagranicznego | O23: etd:KodKraju
B24: =Adr(Wprowadzenie!L32) -> Wprowadzenie!$L$32 | G24: Tekst | J24: dtsf:AdresPrzedsiebiorcyZagranicznego | K24: dtsf:KodPocztowy | N24: dtsf:AdresPrzedsiebiorcyZagranicznego | O24: etd:KodPocztowy
B25: =Adr(Wprowadzenie!I32) -> Wprowadzenie!$I$32 | G25: Tekst | J25: dtsf:AdresPrzedsiebiorcyZagranicznego | K25: dtsf:Miejscowosc | N25: dtsf:AdresPrzedsiebiorcyZagranicznego | O25: etd:Miejscowosc
B26: =Adr(Wprowadzenie!I28) -> Wprowadzenie!$I$28 | G26: Tekst | J26: dtsf:AdresPrzedsiebiorcyZagranicznego | K26: dtsf:Ulica | N26: dtsf:AdresPrzedsiebiorcyZagranicznego | O26: etd:Ulica
B27: =Adr(Wprowadzenie!I30) -> Wprowadzenie!$I$30 | G27: Tekst | J27: dtsf:AdresPrzedsiebiorcyZagranicznego | K27: dtsf:NrDomu | N27: dtsf:AdresPrzedsiebiorcyZagranicznego | O27: etd:NrDomu
B28: =Adr(Wprowadzenie!K30) -> Wprowadzenie!$K$30 | G28: Tekst | J28: dtsf:AdresPrzedsiebiorcyZagranicznego | K28: dtsf:NrLokalu | N28: dtsf:AdresPrzedsiebiorcyZagranicznego | O28: etd:NrLokalu
B29: =Adr(Wprowadzenie!I42) -> Wprowadzenie!$I$42 | G29: Tekst | H29: 1 | J29: sf:P_1C | K29: dtsf:KodPKD
B30: =Adr(Wprowadzenie!I43) -> Wprowadzenie!$I$43 | G30: Tekst | H30: 2 | J30: sf:P_1C | K30: dtsf:KodPKD
B31: =Adr(Wprowadzenie!I44) -> Wprowadzenie!$I$44 | G31: Tekst | H31: 3 | J31: sf:P_1C | K31: dtsf:KodPKD
B32: =Adr(Wprowadzenie!I45) -> Wprowadzenie!$I$45 | G32: Tekst | H32: 4 | J32: sf:P_1C | K32: dtsf:KodPKD
B33: =Adr(Wprowadzenie!I46) -> Wprowadzenie!$I$46 | G33: Tekst | H33: 5 | J33: sf:P_1C | K33: dtsf:KodPKD
B34: =Adr(Wprowadzenie!I47) -> Wprowadzenie!$I$47 | G34: Tekst | H34: 6 | J34: sf:P_1C | K34: dtsf:KodPKD
B35: =Adr(Wprowadzenie!$I$51) -> Wprowadzenie!$I$51 | G35: Tekst | J35: sf:InformacjeOgolneJednostkaMikro/sf:P_1 | K35: sf:P_1C
B36: =Adr(Wprowadzenie!$I$51) -> Wprowadzenie!$I$51 | G36: Tekst | J36: sf:WprowadzenieDoSprawozdaniaFinansowegoJednostkaMala/sf:P_1 | K36: sf:P_1C
B37: =Adr(Wprowadzenie!$I$51) -> Wprowadzenie!$I$51 | G37: Tekst | J37: sf:WprowadzenieDoSprawozdaniaFinansowegoJednostkaOp/sf:P_1 | K37: sf:P_1C
B38: =Adr(Wprowadzenie!$I$51) -> Wprowadzenie!$I$51 | G38: Tekst | J38: sf:WprowadzenieDoSprawozdaniaFinansowegoJednostkaInna/sf:P_1 | K38: sf:P_1D
B39: =Adr(Wprowadzenie!$I$51) -> Wprowadzenie!$I$51 | G39: Tekst | J39: xjin:WprowadzenieDoSprawozdaniaFinansowego/sf:P_1 | K39: sf:P_1D
B40: =Adr(Wprowadzenie!$I$51) -> Wprowadzenie!$I$51 | G40: Tekst | J40: xsin:WprowadzenieDoSprawozdaniaFinansowego/sf:P_1 | K40: xsin:P_1C | N40: none | O40: none
B41: =Adr(Wprowadzenie!$I$53) -> Wprowadzenie!$I$53 | G41: Tekst | J41: xjin:WprowadzenieDoSprawozdaniaFinansowego/sf:P_1 | K41: sf:P_1E | N41: sf:P_1/sf:P_1D | O41: dtsf:KRS
B42: =Adr(Wprowadzenie!$I$53) -> Wprowadzenie!$I$53 | G42: Tekst | J42: xsin:WprowadzenieDoSprawozdaniaFinansowego/sf:P_1 | K42: xsin:P_1D | N42: xsin:WprowadzenieDoSprawozdaniaFinansowego/xsin:P_1 | O42: xsin:P_1C
B43: =Adr(Wprowadzenie!$I$53) -> Wprowadzenie!$I$53 | G43: Tekst | J43: sf:InformacjeOgolneJednostkaMikro/sf:P_1 | K43: sf:P_1D | N43: =J43 & "/sf:P_1C" -> sf:InformacjeOgolneJednostkaMikro/sf:P_1/sf:P_1C | O43: dtsf:KRS
B44: =Adr(Wprowadzenie!$I$53) -> Wprowadzenie!$I$53 | G44: Tekst | J44: sf:WprowadzenieDoSprawozdaniaFinansowegoJednostkaMala/sf:P_1 | K44: sf:P_1D | N44: =J44 & "/sf:P_1C" -> sf:WprowadzenieDoSprawozdaniaFinansowegoJednostkaMala/sf:P_1/sf:P_1C | O44: dtsf:KRS
B45: =Adr(Wprowadzenie!$I$53) -> Wprowadzenie!$I$53 | G45: Tekst | J45: sf:WprowadzenieDoSprawozdaniaFinansowegoJednostkaOp/sf:P_1 | K45: sf:P_1D | N45: sf:WprowadzenieDoSprawozdaniaFinansowegoJednostkaOp/sf:P_1/sf:P_1C | O45: dtsf:KRS
B46: =Adr(Wprowadzenie!$I$53) -> Wprowadzenie!$I$53 | G46: Tekst | J46: sf:WprowadzenieDoSprawozdaniaFinansowegoJednostkaInna/sf:P_1 | K46: sf:P_1E
B47: =Adr(Wprowadzenie!I57) -> Wprowadzenie!$I$57 | E47: 1 | G47: Data | J47: sf:P_2 | K47: dtsf:DataOd
B48: =Adr(Wprowadzenie!I59) -> Wprowadzenie!$I$59 | E48: 1 | G48: =IF(CzyData(INDIRECT(B48)), "Data", "Tekst") -> Tekst | J48: sf:P_2 | K48: dtsf:DataDoOpis
B49: =Adr(DataOd) -> Nagłówek!$E$8 | G49: Data | J49: sf:P_3 | K49: dtsf:DataOd
B50: =Adr(DataDo) -> Nagłówek!$G$8 | G50: Data | J50: sf:P_3 | K50: dtsf:DataDo
B51: =Adr(Wprowadzenie!$I$81) -> Wprowadzenie!$I$81 | G51: Logiczny | I51: 2 | J51: xjin:WprowadzenieDoSprawozdaniaFinansowego | K51: xjin:P_4
B52: =Adr(Wprowadzenie!$I$81) -> Wprowadzenie!$I$81 | G52: Logiczny | I52: 2 | J52: xsin:WprowadzenieDoSprawozdaniaFinansowego | K52: xsin:P_8
B53: =Adr(Wprowadzenie!$I$81) -> Wprowadzenie!$I$81 | G53: Logiczny | I53: 2 | J53: sf:WprowadzenieDoSprawozdaniaFinansowegoJednostkaInna | K53: sf:P_4
B54: =Adr(Wprowadzenie!$I$87) -> Wprowadzenie!$I$87 | G54: Logiczny | I54: 1 | J54: xjin:P_5 | K54: xjin:P_5A
B55: =Adr(Wprowadzenie!$I$90) -> Wprowadzenie!$I$90 | G55: Logiczny | I55: 1 | J55: xjin:P_5 | K55: xjin:P_5B
B56: =Adr(Wprowadzenie!$I$93) -> Wprowadzenie!$I$93 | G56: Tekst | J56: xjin:P_5 | K56: xjin:P_5C
B57: =Adr(Wprowadzenie!$I$87) -> Wprowadzenie!$I$87 | G57: Logiczny | I57: 1 | J57: xjma:P_5 | K57: xjma:P_5A
B58: =Adr(Wprowadzenie!$I$90) -> Wprowadzenie!$I$90 | G58: Logiczny | I58: 1 | J58: xjma:P_5 | K58: xjma:P_5B
B59: =Adr(Wprowadzenie!$I$93) -> Wprowadzenie!$I$93 | G59: Tekst | J59: xjma:P_5 | K59: xjma:P_5C
B60: =Adr(Wprowadzenie!$I$87) -> Wprowadzenie!$I$87 | G60: Logiczny | I60: 1 | J60: xjmi:P_5 | K60: xjmi:P_5A
B61: =Adr(Wprowadzenie!$I$90) -> Wprowadzenie!$I$90 | G61: Logiczny | I61: 1 | J61: xjmi:P_5 | K61: xjmi:P_5B
B62: =Adr(Wprowadzenie!$I$93) -> Wprowadzenie!$I$93 | G62: Tekst | J62: xjmi:P_5 | K62: xjmi:P_5C
B63: =Adr(Wprowadzenie!$I$87) -> Wprowadzenie!$I$87 | G63: Logiczny | I63: 1 | J63: xjop:P_4 | K63: xjop:P_4A
B64: =Adr(Wprowadzenie!$I$90) -> Wprowadzenie!$I$90 | G64: Logiczny | I64: 1 | J64: xjop:P_4 | K64: xjop:P_4B
B65: =Adr(Wprowadzenie!$I$93) -> Wprowadzenie!$I$93 | G65: Tekst | J65: xjop:P_4 | K65: xjop:P_4C
B66: =Adr(Wprowadzenie!$I$87) -> Wprowadzenie!$I$87 | G66: Logiczny | I66: 1 | J66: xsin:P_9 | K66: xsin:P_9A
B67: =Adr(Wprowadzenie!$I$90) -> Wprowadzenie!$I$90 | G67: Logiczny | I67: 1 | J67: xsin:P_9 | K67: xsin:P_9B
B68: =Adr(Wprowadzenie!$I$93) -> Wprowadzenie!$I$93 | G68: Tekst | J68: xsin:P_9 | K68: xsin:P_9C
B69: =Adr(Wprowadzenie!$I$99) -> Wprowadzenie!$I$99 | F69: Exists | G69: Logiczny | I69: 2 | J69: xjin:WprowadzenieDoSprawozdaniaFinansowego | K69: xjin:P_6
B70: =Adr(Wprowadzenie!$I$102) -> Wprowadzenie!$I$102 | F70: Ancestor | G70: Logiczny | J70: xjin:WprowadzenieDoSprawozdaniaFinansowego | K70: xjin:P_6A
B71: =Adr(Wprowadzenie!$I$105) -> Wprowadzenie!$I$105 | F71: Ancestor | G71: Tekst | J71: xjin:WprowadzenieDoSprawozdaniaFinansowego | K71: xjin:P_6B
B72: =Adr(Wprowadzenie!$I$99) -> Wprowadzenie!$I$99 | F72: Exists | G72: Logiczny | I72: 2 | J72: sf:WprowadzenieDoSprawozdaniaFinansowegoJednostkaInna | K72: sf:P_6
B73: =Adr(Wprowadzenie!$I$102) -> Wprowadzenie!$I$102 | F73: Ancestor | G73: Logiczny | J73: sf:WprowadzenieDoSprawozdaniaFinansowegoJednostkaInna | K73: sf:P_6A
B74: =Adr(Wprowadzenie!$I$105) -> Wprowadzenie!$I$105 | F74: Ancestor | G74: Tekst | J74: sf:WprowadzenieDoSprawozdaniaFinansowegoJednostkaInna | K74: sf:P_6B
B75: =Adr(Wprowadzenie!$I$176) -> Wprowadzenie!$I$176 | F75: Ancestor | G75: Mtekst | J75: xjin:WprowadzenieDoSprawozdaniaFinansowego | K75: xjin:P_7A | N75: =J75 -> xjin:WprowadzenieDoSprawozdaniaFinansowego | O75: sf:P_7B
B76: =Adr(Wprowadzenie!$I$186) -> Wprowadzenie!$I$186 | F76: Ancestor | G76: Mtekst | J76: xjin:WprowadzenieDoSprawozdaniaFinansowego | K76: xjin:P_7B | N76: =J76 -> xjin:WprowadzenieDoSprawozdaniaFinansowego | O76: sf:P_7C
B77: =Adr(Wprowadzenie!$I$191) -> Wprowadzenie!$I$191 | F77: Ancestor | G77: Mtekst | J77: xjin:WprowadzenieDoSprawozdaniaFinansowego | K77: xjin:P_7C | N77: xjin:WprowadzenieDoSprawozdaniaFinansowego | O77: sf:P_7D
B78: =Adr(Wprowadzenie!$I$196) -> Wprowadzenie!$I$196 | F78: Ancestor | G78: Mtekst | J78: xjin:WprowadzenieDoSprawozdaniaFinansowego | K78: xjin:P_7D | N78: new | O78: none
B79: =Adr(Wprowadzenie!I165) -> Wprowadzenie!$I$165 | F79: Ancestor | G79: Mtekst | J79: xsin:WprowadzenieDoSprawozdaniaFinansowego | K79: xsin:P_11A
B80: =Adr(Wprowadzenie!I171) -> Wprowadzenie!$I$171 | F80: Ancestor | G80: Mtekst | J80: xsin:WprowadzenieDoSprawozdaniaFinansowego | K80: xsin:P_11B
B81: =Adr(Wprowadzenie!$I$176) -> Wprowadzenie!$I$176 | F81: Ancestor | G81: Mtekst | J81: xsin:WprowadzenieDoSprawozdaniaFinansowego | K81: xsin:P_11C
B82: =Adr(Wprowadzenie!I181) -> Wprowadzenie!$I$181 | F82: Ancestor | G82: Mtekst | J82: xsin:WprowadzenieDoSprawozdaniaFinansowego | K82: xsin:P_11D
B83: =Adr(Wprowadzenie!$I$186) -> Wprowadzenie!$I$186 | F83: Ancestor | G83: Mtekst | J83: xsin:WprowadzenieDoSprawozdaniaFinansowego | K83: xsin:P_11E
B84: =Adr(Wprowadzenie!$I$191) -> Wprowadzenie!$I$191 | F84: Ancestor | G84: Mtekst | J84: xsin:WprowadzenieDoSprawozdaniaFinansowego | K84: xsin:P_11F
B85: =Adr(Wprowadzenie!$I$196) -> Wprowadzenie!$I$196 | F85: Ancestor | G85: Mtekst | J85: xsin:WprowadzenieDoSprawozdaniaFinansowego | K85: xsin:P_11G
B86: =Adr(Wprowadzenie!$I$176) -> Wprowadzenie!$I$176 | F86: Ancestor | G86: Mtekst | J86: sf:WprowadzenieDoSprawozdaniaFinansowegoJednostkaInna | K86: sf:P_7A | N86: =J86 -> sf:WprowadzenieDoSprawozdaniaFinansowegoJednostkaInna | O86: sf:P_7B
B87: =Adr(Wprowadzenie!$I$186) -> Wprowadzenie!$I$186 | F87: Ancestor | G87: Mtekst | J87: sf:WprowadzenieDoSprawozdaniaFinansowegoJednostkaInna | K87: sf:P_7B | N87: =J87 -> sf:WprowadzenieDoSprawozdaniaFinansowegoJednostkaInna | O87: sf:P_7C
B88: =Adr(Wprowadzenie!$I$191) -> Wprowadzenie!$I$191 | F88: Ancestor | G88: Mtekst | J88: sf:WprowadzenieDoSprawozdaniaFinansowegoJednostkaInna | K88: sf:P_7C | N88: sf:WprowadzenieDoSprawozdaniaFinansowegoJednostkaInna | O88: sf:P_7D
B89: =Adr(Wprowadzenie!$I$196) -> Wprowadzenie!$I$196 | F89: Ancestor | G89: Mtekst | J89: sf:WprowadzenieDoSprawozdaniaFinansowegoJednostkaInna | K89: sf:P_7D | N89: new | O89: none
B90: =Adr(Wprowadzenie!$I$176) -> Wprowadzenie!$I$176 | F90: Ancestor | G90: Mtekst | J90: sf:WprowadzenieDoSprawozdaniaFinansowegoJednostkaMala | K90: sf:P_6A | N90: =J90 -> sf:WprowadzenieDoSprawozdaniaFinansowegoJednostkaMala | O90: sf:P_6B
B91: =Adr(Wprowadzenie!$I$186) -> Wprowadzenie!$I$186 | F91: Ancestor | G91: Mtekst | J91: sf:WprowadzenieDoSprawozdaniaFinansowegoJednostkaMala | K91: sf:P_6B | N91: =J91 -> sf:WprowadzenieDoSprawozdaniaFinansowegoJednostkaMala | O91: sf:P_6C
B92: =Adr(Wprowadzenie!$I$191) -> Wprowadzenie!$I$191 | F92: Ancestor | G92: Mtekst | J92: sf:WprowadzenieDoSprawozdaniaFinansowegoJednostkaMala | K92: sf:P_6C | N92: sf:WprowadzenieDoSprawozdaniaFinansowegoJednostkaMala | O92: sf:P_6D
B93: =Adr(Wprowadzenie!$I$196) -> Wprowadzenie!$I$196 | F93: Ancestor | G93: Mtekst | J93: sf:WprowadzenieDoSprawozdaniaFinansowegoJednostkaMala | K93: sf:P_6D | N93: new | O93: none
B94: =Adr(Wprowadzenie!$I$176) -> Wprowadzenie!$I$176 | F94: Ancestor | G94: Mtekst | J94: sf:InformacjeOgolneJednostkaMikro | K94: sf:P_6A | N94: =J94 -> sf:InformacjeOgolneJednostkaMikro | O94: sf:P_6B
B95: =Adr(Wprowadzenie!$I$186) -> Wprowadzenie!$I$186 | F95: Ancestor | G95: Mtekst | J95: sf:InformacjeOgolneJednostkaMikro | K95: sf:P_6B | N95: =J95 -> sf:InformacjeOgolneJednostkaMikro | O95: sf:P_6C
B96: =Adr(Wprowadzenie!$I$191) -> Wprowadzenie!$I$191 | F96: Ancestor | G96: Mtekst | J96: sf:InformacjeOgolneJednostkaMikro | K96: sf:P_6C | N96: sf:InformacjeOgolneJednostkaMikro | O96: sf:P_6D
B97: =Adr(Wprowadzenie!$I$196) -> Wprowadzenie!$I$196 | F97: Ancestor | G97: Mtekst | J97: sf:InformacjeOgolneJednostkaMikro | K97: sf:P_6D
B98: =Adr(Wprowadzenie!$I$176) -> Wprowadzenie!$I$176 | F98: Ancestor | G98: Mtekst | J98: sf:WprowadzenieDoSprawozdaniaFinansowegoJednostkaOp | K98: sf:P_5A | N98: =J98 -> sf:WprowadzenieDoSprawozdaniaFinansowegoJednostkaOp | O98: sf:P_5B
B99: =Adr(Wprowadzenie!$I$186) -> Wprowadzenie!$I$186 | F99: Ancestor | G99: Mtekst | J99: sf:WprowadzenieDoSprawozdaniaFinansowegoJednostkaOp | K99: sf:P_5B | N99: =J99 -> sf:WprowadzenieDoSprawozdaniaFinansowegoJednostkaOp | O99: sf:P_5C
B100: =Adr(Wprowadzenie!$I$191) -> Wprowadzenie!$I$191 | F100: Ancestor | G100: Mtekst | J100: sf:WprowadzenieDoSprawozdaniaFinansowegoJednostkaOp | K100: sf:P_5C | N100: sf:WprowadzenieDoSprawozdaniaFinansowegoJednostkaOp | O100: sf:P_5D
B101: =Adr(Wprowadzenie!$I$196) -> Wprowadzenie!$I$196 | F101: Ancestor | G101: Mtekst | J101: sf:WprowadzenieDoSprawozdaniaFinansowegoJednostkaOp | K101: sf:P_5D | N101: new | O101: none
B102: =Adr(Wprowadzenie!I202) -> Wprowadzenie!$I$202 | G102: Tekst | J102: xsin:WprowadzenieDoSprawozdaniaFinansowego | K102: xsin:P_12
B103: =Adr(Wprowadzenie!I207) -> Wprowadzenie!$I$207 | G103: Tekst | J103: xsin:WprowadzenieDoSprawozdaniaFinansowego | K103: xsin:P_13
B104: =Adr(Wprowadzenie!$I$213) -> Wprowadzenie!$I$213 | F104: Pidx | G104: Tekst | H104: 1 | J104: sf:P_8 | K104: dtsf:NazwaPozycji
B105: =Adr(Wprowadzenie!$I$215) -> Wprowadzenie!$I$215 | F105: Pidx | G105: Mtekst | H105: 1 | J105: sf:P_8 | K105: dtsf:Opis
B106: =Adr(Wprowadzenie!$I$219) -> Wprowadzenie!$I$219 | F106: Pidx | G106: Tekst | H106: 2 | J106: sf:P_8 | K106: dtsf:NazwaPozycji
B107: =Adr(Wprowadzenie!$I$221) -> Wprowadzenie!$I$221 | F107: Pidx | G107: Mtekst | H107: 2 | J107: sf:P_8 | K107: dtsf:Opis
B108: =Adr(Wprowadzenie!$I$225) -> Wprowadzenie!$I$225 | F108: Pidx | G108: Tekst | H108: 3 | J108: sf:P_8 | K108: dtsf:NazwaPozycji
B109: =Adr(Wprowadzenie!$I$227) -> Wprowadzenie!$I$227 | F109: Pidx | G109: Mtekst | H109: 3 | J109: sf:P_8 | K109: dtsf:Opis
B110: =Adr(Wprowadzenie!$I$231) -> Wprowadzenie!$I$231 | F110: Pidx | G110: Tekst | H110: 4 | J110: sf:P_8 | K110: dtsf:NazwaPozycji
B111: =Adr(Wprowadzenie!$I$233) -> Wprowadzenie!$I$233 | F111: Pidx | G111: Mtekst | H111: 4 | J111: sf:P_8 | K111: dtsf:Opis
B112: =Adr(Wprowadzenie!$I$213) -> Wprowadzenie!$I$213 | F112: Pidx | G112: Tekst | H112: 1 | J112: xsin:P_14 | K112: dtsf:NazwaPozycji
B113: =Adr(Wprowadzenie!$I$215) -> Wprowadzenie!$I$215 | F113: Pidx | G113: Mtekst | H113: 1 | J113: xsin:P_14 | K113: dtsf:Opis
B114: =Adr(Wprowadzenie!$I$219) -> Wprowadzenie!$I$219 | F114: Pidx | G114: Tekst | H114: 2 | J114: xsin:P_14 | K114: dtsf:NazwaPozycji
B115: =Adr(Wprowadzenie!$I$221) -> Wprowadzenie!$I$221 | F115: Pidx | G115: Mtekst | H115: 2 | J115: xsin:P_14 | K115: dtsf:Opis
B116: =Adr(Wprowadzenie!$I$225) -> Wprowadzenie!$I$225 | F116: Pidx | G116: Tekst | H116: 3 | J116: xsin:P_14 | K116: dtsf:NazwaPozycji
B117: =Adr(Wprowadzenie!$I$227) -> Wprowadzenie!$I$227 | F117: Pidx | G117: Mtekst | H117: 3 | J117: xsin:P_14 | K117: dtsf:Opis
B118: =Adr(Wprowadzenie!$I$231) -> Wprowadzenie!$I$231 | F118: Pidx | G118: Tekst | H118: 4 | J118: xsin:P_14 | K118: dtsf:NazwaPozycji
B119: =Adr(Wprowadzenie!$I$233) -> Wprowadzenie!$I$233 | F119: Pidx | G119: Mtekst | H119: 4 | J119: xsin:P_14 | K119: dtsf:Opis
B120: =Adr(Wprowadzenie!$I$73) -> Wprowadzenie!$I$73 | G120: Tekst | J120: sf:WprowadzenieDoSprawozdaniaFinansowegoJednostkaInna | K120: sf:P_9
B121: =Adr(Wprowadzenie!$I$73) -> Wprowadzenie!$I$73 | G121: Tekst | J121: sf:WprowadzenieDoSprawozdaniaFinansowegoJednostkaMala | K121: sf:P_4
B122: =Adr(Wprowadzenie!$I$73) -> Wprowadzenie!$I$73 | G122: Tekst | J122: sf:InformacjeOgolneJednostkaMikro | K122: sf:P_4
B123: =Adr(Wprowadzenie!$I$213) -> Wprowadzenie!$I$213 | F123: Pidx | G123: Tekst | H123: 1 | J123: sf:P_7 | K123: dtsf:NazwaPozycji
B124: =Adr(Wprowadzenie!$I$215) -> Wprowadzenie!$I$215 | F124: Pidx | G124: Mtekst | H124: 1 | J124: sf:P_7 | K124: dtsf:Opis
B125: =Adr(Wprowadzenie!$I$219) -> Wprowadzenie!$I$219 | F125: Pidx | G125: Tekst | H125: 2 | J125: sf:P_7 | K125: dtsf:NazwaPozycji
B126: =Adr(Wprowadzenie!$I$221) -> Wprowadzenie!$I$221 | F126: Pidx | G126: Mtekst | H126: 2 | J126: sf:P_7 | K126: dtsf:Opis
B127: =Adr(Wprowadzenie!$I$225) -> Wprowadzenie!$I$225 | F127: Pidx | G127: Tekst | H127: 3 | J127: sf:P_7 | K127: dtsf:NazwaPozycji
B128: =Adr(Wprowadzenie!$I$227) -> Wprowadzenie!$I$227 | F128: Pidx | G128: Mtekst | H128: 3 | J128: sf:P_7 | K128: dtsf:Opis
B129: =Adr(Wprowadzenie!$I$231) -> Wprowadzenie!$I$231 | F129: Pidx | G129: Tekst | H129: 4 | J129: sf:P_7 | K129: dtsf:NazwaPozycji
B130: =Adr(Wprowadzenie!$I$233) -> Wprowadzenie!$I$233 | F130: Pidx | G130: Mtekst | H130: 4 | J130: sf:P_7 | K130: dtsf:Opis
B131: =Adr(Wprowadzenie!$I$213) -> Wprowadzenie!$I$213 | F131: Pidx | G131: Tekst | H131: 1 | J131: xjop:P_6 | K131: dtsf:NazwaPozycji
B132: =Adr(Wprowadzenie!$I$215) -> Wprowadzenie!$I$215 | F132: Pidx | G132: Mtekst | H132: 1 | J132: xjop:P_6 | K132: dtsf:Opis
B133: =Adr(Wprowadzenie!$I$219) -> Wprowadzenie!$I$219 | F133: Pidx | G133: Tekst | H133: 2 | J133: xjop:P_6 | K133: dtsf:NazwaPozycji
B134: =Adr(Wprowadzenie!$I$221) -> Wprowadzenie!$I$221 | F134: Pidx | G134: Mtekst | H134: 2 | J134: xjop:P_6 | K134: dtsf:Opis
B135: =Adr(Wprowadzenie!$I$225) -> Wprowadzenie!$I$225 | F135: Pidx | G135: Tekst | H135: 3 | J135: xjop:P_6 | K135: dtsf:NazwaPozycji
B136: =Adr(Wprowadzenie!$I$227) -> Wprowadzenie!$I$227 | F136: Pidx | G136: Mtekst | H136: 3 | J136: xjop:P_6 | K136: dtsf:Opis
B137: =Adr(Wprowadzenie!$I$231) -> Wprowadzenie!$I$231 | F137: Pidx | G137: Tekst | H137: 4 | J137: xjop:P_6 | K137: dtsf:NazwaPozycji
B138: =Adr(Wprowadzenie!$I$233) -> Wprowadzenie!$I$233 | F138: Pidx | G138: Mtekst | H138: 4 | J138: xjop:P_6 | K138: dtsf:Opis
B139: =Adr_Bilans & "!$V$97" -> Bilans!$V$97 | G139: Kwota | I139: *SumUp | J139: jin:Aktywa | K139: dtsf:KwotaA
B140: =Adr_Bilans & "!$W$97" -> Bilans!$W$97 | G140: Kwota | I140: *SumUp | J140: jin:Aktywa | K140: dtsf:KwotaB
B141: =Adr_Bilans & "!$V$6" -> Bilans!$V$6 | G141: Kwota | I141: *Sum | J141: jin:Aktywa_A | K141: dtsf:KwotaA
B142: =Adr_Bilans & "!$W$6" -> Bilans!$W$6 | G142: Kwota | I142: *Sum | J142: jin:Aktywa_A | K142: dtsf:KwotaB
B143: =Adr_Bilans & "!$V$7" -> Bilans!$V$7 | G143: Kwota | I143: *Sum | J143: jin:Aktywa_A_I | K143: dtsf:KwotaA
B144: =Adr_Bilans & "!$W$7" -> Bilans!$W$7 | G144: Kwota | I144: *Sum | J144: jin:Aktywa_A_I | K144: dtsf:KwotaB
B145: =Adr_Bilans & "!$V$8" -> Bilans!$V$8 | G145: Kwota | J145: jin:Aktywa_A_I_1 | K145: dtsf:KwotaA
B146: =Adr_Bilans & "!$W$8" -> Bilans!$W$8 | G146: Kwota | J146: jin:Aktywa_A_I_1 | K146: dtsf:KwotaB
B147: =Adr_Bilans & "!$V$9" -> Bilans!$V$9 | G147: Kwota | J147: jin:Aktywa_A_I_2 | K147: dtsf:KwotaA
B148: =Adr_Bilans & "!$W$9" -> Bilans!$W$9 | G148: Kwota | J148: jin:Aktywa_A_I_2 | K148: dtsf:KwotaB
B149: =Adr_Bilans & "!$V$10" -> Bilans!$V$10 | G149: Kwota | J149: jin:Aktywa_A_I_3 | K149: dtsf:KwotaA
B150: =Adr_Bilans & "!$W$10" -> Bilans!$W$10 | G150: Kwota | J150: jin:Aktywa_A_I_3 | K150: dtsf:KwotaB
B151: =Adr_Bilans & "!$V$11" -> Bilans!$V$11 | G151: Kwota | J151: jin:Aktywa_A_I_4 | K151: dtsf:KwotaA
B152: =Adr_Bilans & "!$W$11" -> Bilans!$W$11 | G152: Kwota | J152: jin:Aktywa_A_I_4 | K152: dtsf:KwotaB
B153: =Adr_Bilans & "!$V$12" -> Bilans!$V$12 | G153: Kwota | I153: *Sum | J153: jin:Aktywa_A_II | K153: dtsf:KwotaA
B154: =Adr_Bilans & "!$W$12" -> Bilans!$W$12 | G154: Kwota | I154: *Sum | J154: jin:Aktywa_A_II | K154: dtsf:KwotaB
B155: =Adr_Bilans & "!$V$13" -> Bilans!$V$13 | G155: Kwota | I155: *Sum | J155: jin:Aktywa_A_II_1 | K155: dtsf:KwotaA
B156: =Adr_Bilans & "!$W$13" -> Bilans!$W$13 | G156: Kwota | I156: *Sum | J156: jin:Aktywa_A_II_1 | K156: dtsf:KwotaB
B157: =Adr_Bilans & "!$V$14" -> Bilans!$V$14 | G157: Kwota | J157: jin:Aktywa_A_II_1_A | K157: dtsf:KwotaA
B158: =Adr_Bilans & "!$W$14" -> Bilans!$W$14 | G158: Kwota | J158: jin:Aktywa_A_II_1_A | K158: dtsf:KwotaB
B159: =Adr_Bilans & "!$V$15" -> Bilans!$V$15 | G159: Kwota | J159: jin:Aktywa_A_II_1_B | K159: dtsf:KwotaA
B160: =Adr_Bilans & "!$W$15" -> Bilans!$W$15 | G160: Kwota | J160: jin:Aktywa_A_II_1_B | K160: dtsf:KwotaB
B161: =Adr_Bilans & "!$V$16" -> Bilans!$V$16 | G161: Kwota | J161: jin:Aktywa_A_II_1_C | K161: dtsf:KwotaA
B162: =Adr_Bilans & "!$W$16" -> Bilans!$W$16 | G162: Kwota | J162: jin:Aktywa_A_II_1_C | K162: dtsf:KwotaB
B163: =Adr_Bilans & "!$V$17" -> Bilans!$V$17 | G163: Kwota | J163: jin:Aktywa_A_II_1_D | K163: dtsf:KwotaA
B164: =Adr_Bilans & "!$W$17" -> Bilans!$W$17 | G164: Kwota | J164: jin:Aktywa_A_II_1_D | K164: dtsf:KwotaB
B165: =Adr_Bilans & "!$V$18" -> Bilans!$V$18 | G165: Kwota | J165: jin:Aktywa_A_II_1_E | K165: dtsf:KwotaA
B166: =Adr_Bilans & "!$W$18" -> Bilans!$W$18 | G166: Kwota | J166: jin:Aktywa_A_II_1_E | K166: dtsf:KwotaB
B167: =Adr_Bilans & "!$V$19" -> Bilans!$V$19 | G167: Kwota | J167: jin:Aktywa_A_II_2 | K167: dtsf:KwotaA
B168: =Adr_Bilans & "!$W$19" -> Bilans!$W$19 | G168: Kwota | J168: jin:Aktywa_A_II_2 | K168: dtsf:KwotaB
B169: =Adr_Bilans & "!$V$20" -> Bilans!$V$20 | G169: Kwota | J169: jin:Aktywa_A_II_3 | K169: dtsf:KwotaA
B170: =Adr_Bilans & "!$W$20" -> Bilans!$W$20 | G170: Kwota | J170: jin:Aktywa_A_II_3 | K170: dtsf:KwotaB
B171: =Adr_Bilans & "!$V$21" -> Bilans!$V$21 | G171: Kwota | I171: *Sum | J171: jin:Aktywa_A_III | K171: dtsf:KwotaA
B172: =Adr_Bilans & "!$W$21" -> Bilans!$W$21 | G172: Kwota | I172: *Sum | J172: jin:Aktywa_A_III | K172: dtsf:KwotaB
B173: =Adr_Bilans & "!$V$22" -> Bilans!$V$22 | G173: Kwota | J173: jin:Aktywa_A_III_1 | K173: dtsf:KwotaA
B174: =Adr_Bilans & "!$W$22" -> Bilans!$W$22 | G174: Kwota | J174: jin:Aktywa_A_III_1 | K174: dtsf:KwotaB
B175: =Adr_Bilans & "!$V$23" -> Bilans!$V$23 | G175: Kwota | J175: jin:Aktywa_A_III_2 | K175: dtsf:KwotaA
B176: =Adr_Bilans & "!$W$23" -> Bilans!$W$23 | G176: Kwota | J176: jin:Aktywa_A_III_2 | K176: dtsf:KwotaB
B177: =Adr_Bilans & "!$V$24" -> Bilans!$V$24 | G177: Kwota | J177: jin:Aktywa_A_III_3 | K177: dtsf:KwotaA
B178: =Adr_Bilans & "!$W$24" -> Bilans!$W$24 | G178: Kwota | J178: jin:Aktywa_A_III_3 | K178: dtsf:KwotaB
B179: =Adr_Bilans & "!$V$25" -> Bilans!$V$25 | G179: Kwota | I179: *Sum | J179: jin:Aktywa_A_IV | K179: dtsf:KwotaA
B180: =Adr_Bilans & "!$W$25" -> Bilans!$W$25 | G180: Kwota | I180: *Sum | J180: jin:Aktywa_A_IV | K180: dtsf:KwotaB
B181: =Adr_Bilans & "!$V$26" -> Bilans!$V$26 | G181: Kwota | J181: jin:Aktywa_A_IV_1 | K181: dtsf:KwotaA
B182: =Adr_Bilans & "!$W$26" -> Bilans!$W$26 | G182: Kwota | J182: jin:Aktywa_A_IV_1 | K182: dtsf:KwotaB
B183: =Adr_Bilans & "!$V$27" -> Bilans!$V$27 | G183: Kwota | J183: jin:Aktywa_A_IV_2 | K183: dtsf:KwotaA
B184: =Adr_Bilans & "!$W$27" -> Bilans!$W$27 | G184: Kwota | J184: jin:Aktywa_A_IV_2 | K184: dtsf:KwotaB
B185: =Adr_Bilans & "!$V$28" -> Bilans!$V$28 | G185: Kwota | I185: *Sum | J185: jin:Aktywa_A_IV_3 | K185: dtsf:KwotaA
B186: =Adr_Bilans & "!$W$28" -> Bilans!$W$28 | G186: Kwota | I186: *Sum | J186: jin:Aktywa_A_IV_3 | K186: dtsf:KwotaB
B187: =Adr_Bilans & "!$V$29" -> Bilans!$V$29 | G187: Kwota | I187: *Sum | J187: jin:Aktywa_A_IV_3_A | K187: dtsf:KwotaA
B188: =Adr_Bilans & "!$W$29" -> Bilans!$W$29 | G188: Kwota | I188: *Sum | J188: jin:Aktywa_A_IV_3_A | K188: dtsf:KwotaB
B189: =Adr_Bilans & "!$V$30" -> Bilans!$V$30 | G189: Kwota | J189: jin:Aktywa_A_IV_3_A_1 | K189: dtsf:KwotaA
B190: =Adr_Bilans & "!$W$30" -> Bilans!$W$30 | G190: Kwota | J190: jin:Aktywa_A_IV_3_A_1 | K190: dtsf:KwotaB
B191: =Adr_Bilans & "!$V$31" -> Bilans!$V$31 | G191: Kwota | J191: jin:Aktywa_A_IV_3_A_2 | K191: dtsf:KwotaA
B192: =Adr_Bilans & "!$W$31" -> Bilans!$W$31 | G192: Kwota | J192: jin:Aktywa_A_IV_3_A_2 | K192: dtsf:KwotaB
B193: =Adr_Bilans & "!$V$32" -> Bilans!$V$32 | G193: Kwota | J193: jin:Aktywa_A_IV_3_A_3 | K193: dtsf:KwotaA
B194: =Adr_Bilans & "!$W$32" -> Bilans!$W$32 | G194: Kwota | J194: jin:Aktywa_A_IV_3_A_3 | K194: dtsf:KwotaB
B195: =Adr_Bilans & "!$V$33" -> Bilans!$V$33 | G195: Kwota | J195: jin:Aktywa_A_IV_3_A_4 | K195: dtsf:KwotaA
B196: =Adr_Bilans & "!$W$33" -> Bilans!$W$33 | G196: Kwota | J196: jin:Aktywa_A_IV_3_A_4 | K196: dtsf:KwotaB
B197: =Adr_Bilans & "!$V$35" -> Bilans!$V$35 | G197: Kwota | I197: *Sum | J197: jin:Aktywa_A_IV_3_B | K197: dtsf:KwotaA
B198: =Adr_Bilans & "!$W$35" -> Bilans!$W$35 | G198: Kwota | I198: *Sum | J198: jin:Aktywa_A_IV_3_B | K198: dtsf:KwotaB
B199: =Adr_Bilans & "!$V$36" -> Bilans!$V$36 | G199: Kwota | J199: jin:Aktywa_A_IV_3_B_1 | K199: dtsf:KwotaA
B200: =Adr_Bilans & "!$W$36" -> Bilans!$W$36 | G200: Kwota | J200: jin:Aktywa_A_IV_3_B_1 | K200: dtsf:KwotaB
B201: =Adr_Bilans & "!$V$37" -> Bilans!$V$37 | G201: Kwota | J201: jin:Aktywa_A_IV_3_B_2 | K201: dtsf:KwotaA
... 3223 more rows

Sheet techniczne (hidden)
A1: Na poczatek trochę pól powiązanych z zapisywanym/odczytywanym plikiem: | O1: Kod języka etykiet: | P1: =VLOOKUP(Q1,teksty!B19:D21,2) -> PL | Q1: 1
C2: Wariant raportu: | D2: =VLOOKUP(F2,ListaWariantowRaportow,2) & VLOOKUP(G2,BazyKwot,2) -> JednostkaMikroWZlotych | F2: 1 | G2: 1 | J2: Bez dat w nagłówkach: | K2: =OR(DataDo="", MONTH(DataOd)> 1,MONTH(DataDo)< 12,DAY(DataOd)>1,YEAR(DataOd) <> YEAR(DataDo)) -> TRUE | O2: XED | P2: #4574
C3: Numer ID podmiotu: | D3: =VLOOKUP(E3,teksty!B30:C31,2) -> KRS | E3: 1 | J3: Weryfikacja wybranych kwot: | K3: FALSE | L3: 1 | O3: XSD | P3: https://www.gov.pl/static/finanse/SF/DefinicjeTypySprawozdaniaFinansowe/2024/10/24/{jednostka}{baza}%281%29_v1-3.xsd
O4: SF namespace | P4: =P120 -> http://www.mf.gov.pl/schematy/SF/DefinicjeTypySprawozdaniaFinansowe{nsPrefix}{jednostka}{baza}
O5: =Wprowadzenie!WybranaPozycja -> 2
O7: Dodatkowe testy merytoryczne podczas Importu:
O8: Sprawdź podczas importu? (puste: nie sprawdzaj w ogóle) | P8: Operator porównania | Q8: Wykonać przed walidacją XSD? | R8: Węzeł z porównywaną wartością (wyrażenie Xpath) (uruchamiane dla DocumentNode) | S8: Oczekiwana wartość | T8: Komunikat o ewentualnym błędzie (Wpisz {Val} tam, gdzie ma być podstawiona wartość z importowanego dokumentu), {Exp} dla wartości porównywanej/oczekiwanej | U8: To błąd?
O9: =IF(AND(NumerWariantuRaportu < 4,OR(Wprowadzenie!WybranaPozycja = 1,Wprowadzenie!WybranaPozycja = 4), AdditionalDialogFlag(2) = FALSE),FALSE,"") ->  | P9: ne | Q9: TRUE | R9: //*[local-name()='P_1E'] | T9: =teksty!$D$1000 -> W arkuszu 'Wprowadzenie' pole z numerem KRS tej jednostki jest puste. Koniecznie je uzupełnij, jeżeli zamierzasz złożyć to sprawozdanie do e-KRS. | U9: =AdditionalDialogFlag(3) -> FALSE
O10: =IF(AND(O9 = "",NumerWariantuRaportu <> 5,AdditionalDialogFlag(2) = FALSE),FALSE,"") -> FALSE | P10: ne | Q10: TRUE | R10: //*[local-name()='P_1D'] | T10: =teksty!$D$1000 -> W arkuszu 'Wprowadzenie' pole z numerem KRS tej jednostki jest puste. Koniecznie je uzupełnij, jeżeli zamierzasz złożyć to sprawozdanie do e-KRS. | U10: =AdditionalDialogFlag(3) -> FALSE
N11: na razie wyłączone | O11: =IF(OR(NumerWariantuRaportu = 5, DemoVersion(), TRUE),"",TRUE) ->  | P11: gt | Q11: =TRUE -> TRUE | R11: *[local-name()='Naglowek']/*[local-name()='OkresOd'] | S11: 2023-12-31 | T11: =teksty!D999 -> Obsługiwany przez ten skoroszyt schemat (1-3) jest przeznaczony dla e-sprawozdań, których okres zaczyna się po {Exp}. W tym sprawozdaniu to {Val}, więc nie będzie można go zapisać do pliku XML. | U11: =FALSE -> FALSE
O12: =IF(OR(NumerWariantuRaportu = 5, DemoVersion(), TRUE),"",FALSE) ->  | P12: gt | Q12: TRUE | R12: *[local-name()='Naglowek']/*[local-name()='OkresOd'] | S12: 2023-12-31 | T12: =teksty!D999 -> Obsługiwany przez ten skoroszyt schemat (1-3) jest przeznaczony dla e-sprawozdań, których okres zaczyna się po {Exp}. W tym sprawozdaniu to {Val}, więc nie będzie można go zapisać do pliku XML. | U12: =TRUE -> TRUE
O13: =TRUE -> TRUE | P13: in | Q13: =TRUE -> TRUE | R13: *[local-name()='Naglowek']/*[local-name()='KodSprawozdania']/@wersjaSchemy | S13: {wersjaSchemy} | T13: =teksty!D994 -> Niewłaściwy wersja pliku sprawozdania ({Val}), podczas gdy powinna być to jedna z następujących wersji: '{Exp}'. Ten format może zawierać inne pola, i taka operacja jest niemożliwa | U13: =TRUE -> TRUE
O15: Nazwa skoroszytu: | Q15: e-sprawozdań finansowych
O16: Numer seryjny: | Q16: DEMO.iform
O17: Numer edycji: | Q17: 3.05
O18: Wygenerowano: | Q18: 2025-03-31T11:01:59
O20: Dodatkowe flagi sterujące | Q20: 00
O21: Wykrywaj drugi monitor (akcja domyślna): | Q21: =AND(CheckMultipleMonitors(),AdditionalDialogFlag(1) = FALSE) -> TRUE
O83: Wzorce wszystkich przestrzeni nazw i ich prefiksy. Wiersze z nazwą załącznika są używane do budowy Schema Cache (Po nazwie załącznika - pamiętaj o zmianie nazwy Obiektu po wstawieniu, na taki, jaki jest wpisany w pierwszej kolumnie). Kolumna Prefiks NS pozostała ze względów historycznych
O84: Nazwa załącznika | P84: Prefiks NS | Q84: Przestrzeń nazw
O85: KodyPKD | Q85: http://crd.gov.pl/xml/schematy/dziedzinowe/mf/2018/02/01/eD/KodyPKD/
O86: KodyKrajow | Q86: http://crd.gov.pl/xml/schematy/dziedzinowe/mf/2016/01/25/eD/DefinicjeTypy/
O87: ElementarneTypyDanych | Q87: http://crd.gov.pl/xml/schematy/dziedzinowe/mf/2016/01/25/eD/DefinicjeTypy/
O88: StrukturyDanych | Q88: http://crd.gov.pl/xml/schematy/dziedzinowe/mf/2016/01/25/eD/DefinicjeTypy/
O89: DefinicjeTypySF | Q89: http://www.mf.gov.pl/schematy/SF/DefinicjeTypySprawozdaniaFinansowe/2018/07/09/DefinicjeTypySprawozdaniaFinansowe/
O90: JednostkaInnaStruktury | Q90: http://www.mf.gov.pl/schematy/SF/DefinicjeTypySprawozdaniaFinansowe/2025/01/01/JednostkaInnaStruktury
O91: JednostkaInnaWZlotych | Q91: http://www.mf.gov.pl/schematy/SF/DefinicjeTypySprawozdaniaFinansowe/2025/01/01/JednostkaInnaWZlotych
O92: JednostkaInnaWTysiacach | Q92: http://www.mf.gov.pl/schematy/SF/DefinicjeTypySprawozdaniaFinansowe/2025/01/01/JednostkaInnaWTysiacach
O93: JednostkaMalaStruktury | Q93: http://www.mf.gov.pl/schematy/SF/DefinicjeTypySprawozdaniaFinansowe/2025/01/01/JednostkaMalaStruktury
O94: JednostkaMalaWTysiacach | Q94: http://www.mf.gov.pl/schematy/SF/DefinicjeTypySprawozdaniaFinansowe/2025/01/01/JednostkaMalaWTysiacach
O95: JednostkaMalaWZlotych | Q95: http://www.mf.gov.pl/schematy/SF/DefinicjeTypySprawozdaniaFinansowe/2025/01/01/JednostkaMalaWZlotych
O96: JednostkaMikroStruktury | Q96: http://www.mf.gov.pl/schematy/SF/DefinicjeTypySprawozdaniaFinansowe/2025/01/01/JednostkaMikroStruktury
O97: JednostkaMikroWTysiacach | Q97: http://www.mf.gov.pl/schematy/SF/DefinicjeTypySprawozdaniaFinansowe/2025/01/01/JednostkaMikroWTysiacach
O98: JednostkaMikroWZlotych | Q98: http://www.mf.gov.pl/schematy/SF/DefinicjeTypySprawozdaniaFinansowe/2025/01/01/JednostkaMikroWZlotych
O99: JednostkaOpStruktury | Q99: http://www.mf.gov.pl/schematy/SF/DefinicjeTypySprawozdaniaFinansowe/2025/01/01/JednostkaOpStruktury
O100: JednostkaOpWZlotych | Q100: http://www.mf.gov.pl/schematy/SF/DefinicjeTypySprawozdaniaFinansowe/2025/01/01/JednostkaOrganizacjiPozarzadowejWZlotych
O101: JednostkaOpWTysiacach | Q101: http://www.mf.gov.pl/schematy/SF/DefinicjeTypySprawozdaniaFinansowe/2025/01/01/JednostkaOrganizacjiPozarzadowejWTysiacach
Q102: http://www.mf.gov.pl/schematy/SF/DefinicjeTypySprawozdaniaFinansowe/2025/01/27/SkonsolidowanaJednostkaInnaStruktury
Q103: http://www.mf.gov.pl/schematy/SF/DefinicjeTypySprawozdaniaFinansowe/2025/01/27/SkonsolidowanaJednostkaInnaWTysiacach
Q104: http://www.mf.gov.pl/schematy/SF/DefinicjeTypySprawozdaniaFinansowe/2025/01/27/SkonsolidowanaJednostkaInnaWZlotych
O106: Prefiks NS | P106: Domyślne przestrzenie nazw (aktualnych wersji skoroszytu) | U106: Prefiks NS | V106: Przestrzenie nazw skoroszytów w wersji 1-2 i 1-0 (do importu starych plików)
O107: etd | P107: http://crd.gov.pl/xml/schematy/dziedzinowe/mf/2016/01/25/eD/DefinicjeTypy/ | U107: etd | V107: http://crd.gov.pl/xml/schematy/dziedzinowe/mf/2016/01/25/eD/DefinicjeTypy/
O108: dtsf | P108: http://www.mf.gov.pl/schematy/SF/DefinicjeTypySprawozdaniaFinansowe/2018/07/09/DefinicjeTypySprawozdaniaFinansowe/ | U108: dtsf | V108: http://www.mf.gov.pl/schematy/SF/DefinicjeTypySprawozdaniaFinansowe/2018/07/09/DefinicjeTypySprawozdaniaFinansowe/
O109: jmi | P109: http://www.mf.gov.pl/schematy/SF/DefinicjeTypySprawozdaniaFinansowe/2025/01/01/JednostkaMikroStruktury | U109: jmi | V109: http://www.mf.gov.pl/schematy/SF/DefinicjeTypySprawozdaniaFinansowe/2018/07/09/JednostkaMikroStruktury
O110: jma | P110: http://www.mf.gov.pl/schematy/SF/DefinicjeTypySprawozdaniaFinansowe/2025/01/01/JednostkaMalaStruktury | U110: jma | V110: http://www.mf.gov.pl/schematy/SF/DefinicjeTypySprawozdaniaFinansowe/2018/07/09/JednostkaMalaStruktury
O111: jin | P111: http://www.mf.gov.pl/schematy/SF/DefinicjeTypySprawozdaniaFinansowe/2025/01/01/JednostkaInnaStruktury | U111: jin | V111: http://www.mf.gov.pl/schematy/SF/DefinicjeTypySprawozdaniaFinansowe/2018/07/09/JednostkaInnaStruktury
O112: jop | P112: http://www.mf.gov.pl/schematy/SF/DefinicjeTypySprawozdaniaFinansowe/2025/01/01/JednostkaOpStruktury | U112: jop | V112: http://www.mf.gov.pl/schematy/SF/DefinicjeTypySprawozdaniaFinansowe/2018/07/09/JednostkaOpStruktury
O113: sin | P113: http://www.mf.gov.pl/schematy/SF/DefinicjeTypySprawozdaniaFinansowe/2025/01/27/SkonsolidowanaJednostkaInnaStruktury | U113: sin | V113: http://www.mf.gov.pl/schematy/SF/DefinicjeTypySprawozdaniaFinansowe/2018/07/09/SkonsolidowanaJednostkaInnaStruktury
O114: st | P114: http://www.mf.gov.pl/schematy/SF/DefinicjeTypySprawozdaniaFinansowe{nsPrefix}{jednostka}Struktury | U114: st | V114: http://www.mf.gov.pl/schematy/SF/DefinicjeTypySprawozdaniaFinansowe/2018/07/09/{jednostka}Struktury
O115: xjin | P115: http://www.mf.gov.pl/schematy/SF/DefinicjeTypySprawozdaniaFinansowe/2025/01/01/JednostkaInna{baza} | U115: xjin | V115: http://www.mf.gov.pl/schematy/SF/DefinicjeTypySprawozdaniaFinansowe/2018/07/09/JednostkaInna{baza}
O116: xjma | P116: http://www.mf.gov.pl/schematy/SF/DefinicjeTypySprawozdaniaFinansowe/2025/01/01/JednostkaMala{baza} | U116: xjma | V116: http://www.mf.gov.pl/schematy/SF/DefinicjeTypySprawozdaniaFinansowe/2018/07/09/JednostkaMala{baza}
O117: xjmi | P117: http://www.mf.gov.pl/schematy/SF/DefinicjeTypySprawozdaniaFinansowe/2025/01/01/JednostkaMikro{baza} | U117: xjmi | V117: http://www.mf.gov.pl/schematy/SF/DefinicjeTypySprawozdaniaFinansowe/2018/07/09/JednostkaMikro{baza}
O118: xsin | P118: http://www.mf.gov.pl/schematy/SF/DefinicjeTypySprawozdaniaFinansowe/2025/01/27/SkonsolidowanaJednostkaInna{baza} | U118: xsin | V118: http://www.mf.gov.pl/schematy/SF/DefinicjeTypySprawozdaniaFinansowe/2018/07/09/SkonsolidowanaJednostkaInna{baza}
O119: xjop | P119: http://www.mf.gov.pl/schematy/SF/DefinicjeTypySprawozdaniaFinansowe/2025/01/01/JednostkaOrganizacjiPozarzadowej{baza} | U119: xjop | V119: http://www.mf.gov.pl/schematy/SF/DefinicjeTypySprawozdaniaFinansowe/2018/07/09/JednostkaOrganizacjiPozarzadowej{baza}
O120: sf | P120: http://www.mf.gov.pl/schematy/SF/DefinicjeTypySprawozdaniaFinansowe{nsPrefix}{jednostka}{baza} | U120: sf | V120: http://www.mf.gov.pl/schematy/SF/DefinicjeTypySprawozdaniaFinansowe/2018/07/09/{jednostka}{baza}
O122: Tablica wyjatków dla atrybutu ReportDef.Info:
O123: Typ wyjatku (Hint) | P123: Wariant raportu | Q123: Argument 'About' | R123: Wartość
O124: extra | P124: default | Q124: nsPrefix | R124: /2025/01/01/
O125: extra | P125: default | Q125: wersjaSchemy | R125: 1-3,1-2,1-0E
O126: extra | P126: Skonsolidowana | Q126: wersjaSchemy | R126: 1-3,1-2,1-0
O127: xmlns | P127: JednostkaOp | Q127: Jednostka | R127: JednostkaOrganizacjiPozarzadowej
O128: xmlns | P128: Skonsolidowana | Q128: Jednostka | R128: SkonsolidowanaJednostkaInna
O129: extra | P129: Skonsolidowana | Q129: nsPrefix | R129: /2025/01/27/
C138: Lista dodatkowych elementów tekstowych (AdditionalTextElements), ładowanych przy okazji pobierania wzorców T* (segmentów XML)
C139: Nazwa ramki tekstowej
C140: ID_PozycjaUzytkownikaBezPodstawy
C141: ID_PozycjaUzytkownika
C142: Wpr_P2
C143: Wpr_P4
C144: Wpr_P5
C146: Numery pozycji "Wprowadzenia" (różnią się dla poszczególnych wariantów):
G147: Inna(ext) | H147: Mała | J147: Inna | K147: Op | L147: Sk
C148: Numer waruantu (jak w opisie tej sekcji w arkuszy "teksty"): | F148: pole ref. | G148: 1 | H148: 2 | I148: nie używane | J148: 4 | K148: 5 | L148: 6
B149: 1 | C149: Numer NIP | G149: P_1D | H149: P_1C | J149: P_1D | K149: P_1C | L149: P_1C
B150: 2 | C150: Czas trwania działalności (jeśli ograniczony) | G150: P_2 | H150: P_2 | J150: P_2 | K150: P_2
B151: 3 | C151: Zakres dat raportu | G151: P_3 | H151: P_3 | J151: P_3 | K151: P_3
B152: 4 | C152: Kryteria zastosowane do wyboru jednostek w raporcie skonsolidowanym | L152: P_3
B153: 5 | C153: Włączenie danych wewn. Jednostek organizacyjnych | G153: P_4 | J153: P_4 | L153: P_8
B154: 6 | C154: Założenie kontynuacji działalności jednostki | G154: P_5 | H154: P_5 | J154: P_5 | K154: P_4 | L154: P_9
B155: 7 | C155: Czy w okresie nastąpiło połączenie spółek? | G155: P_6 | J155: P_6 | L155: P_10
B156: 8 | C156: Uproszczenia, zastsowane w raporcie | G156: P_9 | H156: P_4 | J156: P_9
B157: 9 | C157: Polityka rachunkowości | G157: P_7 | H157: P_6 | J157: P_7 | K157: P_5 | L157: P_11
B158: 10 | C158: wycena aktywów i pasywów | G158: =G$157&"A" -> P_7A | H158: =H$157&"A" -> P_6A | J158: =J$157&"A" -> P_7A | K158: =K$157&"A" -> P_5A | L158: P_11C
B159: 11 | C159: ustalenie wyniku fin. | G159: =G$157&"B" -> P_7B | H159: =H$157&"B" -> P_6B | J159: =J$157&"B" -> P_7B | K159: =K$157&"B" -> P_5B | L159: P_11E
B160: 12 | C160: sporządzanie sprawozdań finansowych | G160: =G$157&"C" -> P_7C | H160: =H$157&"C" -> P_6C | J160: =J$157&"C" -> P_7C | K160: =K$157&"C" -> P_5C | L160: P_11F
B161: 13 | C161: Uwagi | G161: P_8 | H161: P_7 | J161: P_8 | K161: P_6 | L161: P_14
B162: 14 | C162: Lista jednostek odporządkowanych | L162: P_2
B163: 15 | C163: Lista jednostek innych niż podporządkowane | L163: P_4
B164: 16 | C164: Lista jednostekwyłączonych z raportu | L164: P_5
B165: 17 | C165: Lista jednostek o ograniczonym czasie trwania | L165: P_6
B166: 18 | C166: Lista jednostek o innych okresach | L166: P_7
B167: 19 | C167: Numer KRS | G167: P_1E | H167: P_1D | J167: P_1E | K167: P_1D | L167: P_1D
B168: 20 | C168: pozostałe | G168: =G$157&"D" -> P_7D | H168: =H$157&"D" -> P_6D | J168: =J$157&"D" -> P_7D | K168: =K$157&"D" -> P_5D | L168: P_11G
B170: Symbole_Arkuszy: aktualne nazwy arkuszy (pola nazwane, wykorzystywane w uproszczonych formułach wstawianych w arkuszu "mapowanie" przez Generator e-sprawozdań)
B171: Arkusz (jak w adresie) | D171: Nazwa symboliczna (wykorzystywana w formule arkusza "mapowanie")
C172: =IF(ISERROR(FIND(" ",teksty!D55)), teksty!D55,"'" & teksty!D55 & "'") -> Nagłówek | D172: Adr_Nagłówek
C173: =IF(ISERROR(FIND(" ",teksty!D56)), teksty!D56,"'" & teksty!D56 & "'") -> Wprowadzenie | D173: Adr_Wprowadzenie
C174: =IF(ISERROR(FIND(" ",teksty!D57)), teksty!D57,"'" & teksty!D57 & "'") -> Bilans | D174: Adr_Bilans
C175: =IF(ISERROR(FIND(" ",teksty!D58)), teksty!D58,"'" & teksty!D58 & "'") -> RZiS | D175: Adr_RZiS
C176: =IF(ISERROR(FIND(" ",teksty!D59)), teksty!D59,"'" & teksty!D59 & "'") -> Kapitał | D176: Adr_Kapitał
C177: =IF(ISERROR(FIND(" ",teksty!D60)), teksty!D60,"'" & teksty!D60 & "'") -> Przepływy | D177: Adr_Przepływy
C178: =IF(ISERROR(FIND(" ",teksty!D61)), teksty!D61,"'" & teksty!D61 & "'") -> Dodatkowe | D178: Adr_Dodatkowe
C179: =IF(ISERROR(FIND(" ",teksty!D62)), teksty!D62,"'" & teksty!D62 & "'") -> 'Dodatkowe (1)' | D179: Adr_Dodatkowe_1
C180: =IF(ISERROR(FIND(" ",teksty!D63)), teksty!D63,"'" & teksty!D63 & "'") -> 'Dodatkowe (2)' | D180: Adr_Dodatkowe_2
C181: =IF(ISERROR(FIND(" ",teksty!D64)), teksty!D64,"'" & teksty!D64 & "'") -> 'Dodatkowe (3)' | D181: Adr_Dodatkowe_3
C182: =IF(ISERROR(FIND(" ",teksty!D65)), teksty!D65,"'" & teksty!D65 & "'") -> 'Dodatkowe (4)' | D182: Adr_Dodatkowe_4
C183: =IF(ISERROR(FIND(" ",teksty!D66)), teksty!D66,"'" & teksty!D66 & "'") -> 'Dodatkowe (5)' | D183: Adr_Dodatkowe_5
C184: =IF(ISERROR(FIND(" ",teksty!D67)), teksty!D67,"'" & teksty!D67 & "'") -> 'Dodatkowe (6)' | D184: Adr_Dodatkowe_6
C185: =IF(ISERROR(FIND(" ",teksty!D68)), teksty!D68,"'" & teksty!D68 & "'") -> 'Dodatkowe (7)' | D185: Adr_Dodatkowe_7
C186: =IF(ISERROR(FIND(" ",teksty!D69)), teksty!D69,"'" & teksty!D69 & "'") -> 'Dodatkowe (8)' | D186: Adr_Dodatkowe_8
C187: =IF(ISERROR(FIND(" ",teksty!D70)), teksty!D70,"'" & teksty!D70 & "'") -> 'Dodatkowe (9)' | D187: Adr_Dodatkowe_9
C188: =IF(ISERROR(FIND(" ",teksty!D71)), teksty!D71,"'" & teksty!D71 & "'") -> 'Dodatkowe (10)' | D188: Adr_Dodatkowe_10
C189: =IF(ISERROR(FIND(" ",teksty!D72)), teksty!D72,"'" & teksty!D72 & "'") -> 'Dodatkowe (11)' | D189: Adr_Dodatkowe_11
C190: =IF(ISERROR(FIND(" ",teksty!D73)), teksty!D73,"'" & teksty!D73 & "'") -> 'Dodatkowe (12)' | D190: Adr_Dodatkowe_12
C191: =IF(ISERROR(FIND(" ",teksty!D74)), teksty!D74,"'" & teksty!D74 & "'") -> 'Dodatkowe (13)' | D191: Adr_Dodatkowe_13
C192: =IF(ISERROR(FIND(" ",teksty!D75)), teksty!D75,"'" & teksty!D75 & "'") -> 'Dodatkowe (14)' | D192: Adr_Dodatkowe_14
C193: =IF(ISERROR(FIND(" ",teksty!D76)), teksty!D76,"'" & teksty!D76 & "'") -> 'Dodatkowe (15)' | D193: Adr_Dodatkowe_15
C194: =IF(ISERROR(FIND(" ",teksty!D77)), teksty!D77,"'" & teksty!D77 & "'") -> 'Dodatkowe (16)' | D194: Adr_Dodatkowe_16
C195: =IF(ISERROR(FIND(" ",teksty!D78)), teksty!D78,"'" & teksty!D78 & "'") -> 'Dodatkowe (17)' | D195: Adr_Dodatkowe_17
C196: =IF(ISERROR(FIND(" ",teksty!D79)), teksty!D79,"'" & teksty!D79 & "'") -> 'Dodatkowe (18)' | D196: Adr_Dodatkowe_18
C197: =IF(ISERROR(FIND(" ",teksty!D80)), teksty!D80,"'" & teksty!D80 & "'") -> 'Dodatkowe (19)' | D197: Adr_Dodatkowe_19
C198: =IF(ISERROR(FIND(" ",teksty!D81)), teksty!D81,"'" & teksty!D81 & "'") -> 'Dodatkowe (20)' | D198: Adr_Dodatkowe_20
C199: =IF(ISERROR(FIND(" ",teksty!D82)), teksty!D82,"'" & teksty!D82 & "'") -> 'Dodatkowe (21)' | D199: Adr_Dodatkowe_21
C200: =IF(ISERROR(FIND(" ",teksty!D83)), teksty!D83,"'" & teksty!D83 & "'") -> 'Dodatkowe (22)' | D200: Adr_Dodatkowe_22
C201: =IF(ISERROR(FIND(" ",teksty!D84)), teksty!D84,"'" & teksty!D84 & "'") -> 'Dodatkowe (23)' | D201: Adr_Dodatkowe_23
C202: =IF(ISERROR(FIND(" ",teksty!D85)), teksty!D85,"'" & teksty!D85 & "'") -> 'Dodatkowe (24)' | D202: Adr_Dodatkowe_24
C203: =IF(ISERROR(FIND(" ",teksty!D86)), teksty!D86,"'" & teksty!D86 & "'") -> 'Dodatkowe (25)' | D203: Adr_Dodatkowe_25
C204: =IF(ISERROR(FIND(" ",teksty!D87)), teksty!D87,"'" & teksty!D87 & "'") -> 'Dodatkowe (26)' | D204: Adr_Dodatkowe_26
C205: =IF(ISERROR(FIND(" ",teksty!D88)), teksty!D88,"'" & teksty!D88 & "'") -> 'Dodatkowe (27)' | D205: Adr_Dodatkowe_27
C206: =IF(ISERROR(FIND(" ",teksty!D89)), teksty!D89,"'" & teksty!D89 & "'") -> 'Dodatkowe (28)' | D206: Adr_Dodatkowe_28
C207: =IF(ISERROR(FIND(" ",teksty!D90)), teksty!D90,"'" & teksty!D90 & "'") -> 'Dodatkowe (29)' | D207: Adr_Dodatkowe_29
C208: =IF(ISERROR(FIND(" ",teksty!D91)), teksty!D91,"'" & teksty!D91 & "'") -> 'Dodatkowe (30)' | D208: Adr_Dodatkowe_30
C209: =IF(ISERROR(FIND(" ",teksty!D92)), teksty!D92,"'" & teksty!D92 & "'") -> 'Dodatkowe (31)' | D209: Adr_Dodatkowe_31
C210: =IF(ISERROR(FIND(" ",teksty!D93)), teksty!D93,"'" & teksty!D93 & "'") -> 'Dodatkowe (32)' | D210: Adr_Dodatkowe_32
C211: =IF(ISERROR(FIND(" ",teksty!D94)), teksty!D94,"'" & teksty!D94 & "'") -> 'Dodatkowe (33)' | D211: Adr_Dodatkowe_33
C212: =IF(ISERROR(FIND(" ",teksty!D95)), teksty!D95,"'" & teksty!D95 & "'") -> 'Dodatkowe (34)' | D212: Adr_Dodatkowe_34
C213: =IF(ISERROR(FIND(" ",teksty!D96)), teksty!D96,"'" & teksty!D96 & "'") -> 'Dodatkowe (35)' | D213: Adr_Dodatkowe_35
C214: =IF(ISERROR(FIND(" ",teksty!D97)), teksty!D97,"'" & teksty!D97 & "'") -> 'Dodatkowe (36)' | D214: Adr_Dodatkowe_36
C215: =IF(ISERROR(FIND(" ",teksty!D98)), teksty!D98,"'" & teksty!D98 & "'") -> 'Dodatkowe (37)' | D215: Adr_Dodatkowe_37
C216: =IF(ISERROR(FIND(" ",teksty!D99)), teksty!D99,"'" & teksty!D99 & "'") -> 'Dodatkowe (38)' | D216: Adr_Dodatkowe_38
C217: =IF(ISERROR(FIND(" ",teksty!D100)), teksty!D100,"'" & teksty!D100 & "'") -> 'Dodatkowe (39)' | D217: Adr_Dodatkowe_39
C218: =IF(ISERROR(FIND(" ",teksty!D101)), teksty!D101,"'" & teksty!D101 & "'") -> 'Dodatkowe (40)' | D218: Adr_Dodatkowe_40
B220: Pomocnicze definicje, używane w formowaniu arkuszy transformacji:
B221: In_SFJMI | D221: <xsl:stylesheet version="1.0" xmlns:xsl="http://www.w3.org/1999/XSL/Transform"> <xsl:output method='xml' indent="yes" encoding="UTF-8"/> <!-- basic: identity copy: --> <xsl:template match="@*|node()"> <xsl:copy><xsl:apply-templates select="@*|node()"/></xsl:copy> </xsl:template> <!-- Zamieniamy nazwy (z zał 4 na zał. 5): UWAGA: wyrażenia niezależne od namespace, bo może to być i */2018/07/08/* (1E, 1.2) i */2025/01/01/* (1.3) --> <xsl:template match="*[local-name()='InformacjeOgolneJednostkaMikro']"> <xsl:element name="WprowadzenieDoSprawozdaniaFinansowegoJednostkaMala" namespace="{namespace-uri()}"> <xsl:apply-templates/> </xsl:element> </xsl:template> <xsl:template match="*[local-name()='InformacjeUzupelniajaceDoBilansuJednostkaMikro']"> <xsl:element name="DodatkoweInformacjeIObjasnieniaJednostkaMala" namespace="{namespace-uri()}"> <xsl:apply-templates/> </xsl:element> </xsl:template> <xsl:template match="*[local-name()='InformacjeUzupelniajaceDoBilansu']"> <xsl:element name="DodatkoweInformacjeIObjasnienia" namespace="{namespace-uri()}"> <xsl:apply-templates/> </xsl:element> </xsl:template> </xsl:stylesheet>
B222: Out_SFJMI | D222: <xsl:stylesheet version="1.0" xmlns:xsl="http://www.w3.org/1999/XSL/Transform" xmlns="{namespace}" xmlns:esf="{namespace}" exclude-result-prefixes="esf"> <xsl:output method='xml' indent="yes" encoding="UTF-8"/> <!-- basic: identity copy: --> <xsl:template match="@*|node()"> <xsl:copy><xsl:apply-templates select="@*|node()"/></xsl:copy> </xsl:template> <!-- Zamieniamy nazwy (z zał 5 na zał. 4): --> <xsl:template match="esf:WprowadzenieDoSprawozdaniaFinansowegoJednostkaMala"> <InformacjeOgolneJednostkaMikro> <xsl:apply-templates/> </InformacjeOgolneJednostkaMikro> </xsl:template> <xsl:template match="esf:DodatkoweInformacjeIObjasnieniaJednostkaMala"> <InformacjeUzupelniajaceDoBilansuJednostkaMikro> <xsl:apply-templates/> </InformacjeUzupelniajaceDoBilansuJednostkaMikro> </xsl:template> <xsl:template match="esf:DodatkoweInformacjeIObjasnienia"> <InformacjeUzupelniajaceDoBilansu> <xsl:apply-templates/> </InformacjeUzupelniajaceDoBilansu> </xsl:template> </xsl:stylesheet>
B224: Ewentualne arkusze transformacji to obszary nazwane Xslt<In|Out>_<6-znakowy kod wariantu e-sprawozdania>, np. XsltIn_SFJMIZ
B225: Nazwa | D225: Arkusz transformacji | R225: Przestrzeń nazw powiązanego wariantu e-sprawozdania
B226: XsltIn_SFJMIZ | D226: =SUBSTITUTE(In_SFJMI,"{namespace}",R226) -> <xsl:stylesheet version="1.0" xmlns:xsl="http://www.w3.org/1999/XSL/Transform"> <xsl:output method='xml' indent="yes" encoding="UTF-8"/> <!-- basic: identity copy: --> <xsl:template match="@*|node()"> <xsl:copy><xsl:apply-templates select="@*|node()"/></xsl:copy> </xsl:template> <!-- Zamieniamy nazwy (z zał 4 na zał. 5): UWAGA: wyrażenia niezależne od namespace, bo może to być i */2018/07/08/* (1E, 1.2) i */2025/01/01/* (1.3) --> <xsl:template match="*[local-name()='InformacjeOgolneJednostkaMikro']"> <xsl:element name="WprowadzenieDoSprawozdaniaFinansowegoJednostkaMala" namespace="{namespace-uri()}"> <xsl:apply-templates/> </xsl:element> </xsl:template> <xsl:template match="*[local-name()='InformacjeUzupelniajaceDoBilansuJednostkaMikro']"> <xsl:element name="DodatkoweInformacjeIObjasnieniaJednostkaMala" namespace="{namespace-uri()}"> <xsl:apply-templates/> </xsl:element> </xsl:template> <xsl:template match="*[local-name()='InformacjeUzupelniajaceDoBilansu']"> <xsl:element name="DodatkoweInformacjeIObjasnienia" namespace="{namespace-uri()}"> <xsl:apply-templates/> </xsl:element> </xsl:template> </xsl:stylesheet> | R226: =Q$98 -> http://www.mf.gov.pl/schematy/SF/DefinicjeTypySprawozdaniaFinansowe/2025/01/01/JednostkaMikroWZlotych
B227: XsltIn_SFJMIT | D227: =SUBSTITUTE(In_SFJMI,"{namespace}",R227) -> <xsl:stylesheet version="1.0" xmlns:xsl="http://www.w3.org/1999/XSL/Transform"> <xsl:output method='xml' indent="yes" encoding="UTF-8"/> <!-- basic: identity copy: --> <xsl:template match="@*|node()"> <xsl:copy><xsl:apply-templates select="@*|node()"/></xsl:copy> </xsl:template> <!-- Zamieniamy nazwy (z zał 4 na zał. 5): UWAGA: wyrażenia niezależne od namespace, bo może to być i */2018/07/08/* (1E, 1.2) i */2025/01/01/* (1.3) --> <xsl:template match="*[local-name()='InformacjeOgolneJednostkaMikro']"> <xsl:element name="WprowadzenieDoSprawozdaniaFinansowegoJednostkaMala" namespace="{namespace-uri()}"> <xsl:apply-templates/> </xsl:element> </xsl:template> <xsl:template match="*[local-name()='InformacjeUzupelniajaceDoBilansuJednostkaMikro']"> <xsl:element name="DodatkoweInformacjeIObjasnieniaJednostkaMala" namespace="{namespace-uri()}"> <xsl:apply-templates/> </xsl:element> </xsl:template> <xsl:template match="*[local-name()='InformacjeUzupelniajaceDoBilansu']"> <xsl:element name="DodatkoweInformacjeIObjasnienia" namespace="{namespace-uri()}"> <xsl:apply-templates/> </xsl:element> </xsl:template> </xsl:stylesheet> | R227: =Q$97 -> http://www.mf.gov.pl/schematy/SF/DefinicjeTypySprawozdaniaFinansowe/2025/01/01/JednostkaMikroWTysiacach
B228: XsltOut_SFJMIZ | D228: =SUBSTITUTE(Out_SFJMI,"{namespace}",R228) -> <xsl:stylesheet version="1.0" xmlns:xsl="http://www.w3.org/1999/XSL/Transform" xmlns="http://www.mf.gov.pl/schematy/SF/DefinicjeTypySprawozdaniaFinansowe/2025/01/01/JednostkaMikroWZlotych" xmlns:esf="http://www.mf.gov.pl/schematy/SF/DefinicjeTypySprawozdaniaFinansowe/2025/01/01/JednostkaMikroWZlotych" exclude-result-prefixes="esf"> <xsl:output method='xml' indent="yes" encoding="UTF-8"/> <!-- basic: identity copy: --> <xsl:template match="@*|node()"> <xsl:copy><xsl:apply-templates select="@*|node()"/></xsl:copy> </xsl:template> <!-- Zamieniamy nazwy (z zał 5 na zał. 4): --> <xsl:template match="esf:WprowadzenieDoSprawozdaniaFinansowegoJednostkaMala"> <InformacjeOgolneJednostkaMikro> <xsl:apply-templates/> </InformacjeOgolneJednostkaMikro> </xsl:template> <xsl:template match="esf:DodatkoweInformacjeIObjasnieniaJednostkaMala"> <InformacjeUzupelniajaceDoBilansuJednostkaMikro> <xsl:apply-templates/> </InformacjeUzupelniajaceDoBilansuJednostkaMikro> </xsl:template> <xsl:template match="esf:DodatkoweInformacjeIObjasnienia"> <InformacjeUzupelniajaceDoBilansu> <xsl:apply-templates/> </InformacjeUzupelniajaceDoBilansu> </xsl:template> </xsl:stylesheet> | R228: =Q$98 -> http://www.mf.gov.pl/schematy/SF/DefinicjeTypySprawozdaniaFinansowe/2025/01/01/JednostkaMikroWZlotych
B229: XsltOut_SFJMIT | D229: =SUBSTITUTE(Out_SFJMI,"{namespace}",R229) -> <xsl:stylesheet version="1.0" xmlns:xsl="http://www.w3.org/1999/XSL/Transform" xmlns="http://www.mf.gov.pl/schematy/SF/DefinicjeTypySprawozdaniaFinansowe/2025/01/01/JednostkaMikroWTysiacach" xmlns:esf="http://www.mf.gov.pl/schematy/SF/DefinicjeTypySprawozdaniaFinansowe/2025/01/01/JednostkaMikroWTysiacach" exclude-result-prefixes="esf"> <xsl:output method='xml' indent="yes" encoding="UTF-8"/> <!-- basic: identity copy: --> <xsl:template match="@*|node()"> <xsl:copy><xsl:apply-templates select="@*|node()"/></xsl:copy> </xsl:template> <!-- Zamieniamy nazwy (z zał 5 na zał. 4): --> <xsl:template match="esf:WprowadzenieDoSprawozdaniaFinansowegoJednostkaMala"> <InformacjeOgolneJednostkaMikro> <xsl:apply-templates/> </InformacjeOgolneJednostkaMikro> </xsl:template> <xsl:template match="esf:DodatkoweInformacjeIObjasnieniaJednostkaMala"> <InformacjeUzupelniajaceDoBilansuJednostkaMikro> <xsl:apply-templates/> </InformacjeUzupelniajaceDoBilansuJednostkaMikro> </xsl:template> <xsl:template match="esf:DodatkoweInformacjeIObjasnienia"> <InformacjeUzupelniajaceDoBilansu> <xsl:apply-templates/> </InformacjeUzupelniajaceDoBilansu> </xsl:template> </xsl:stylesheet> | R229: =Q$97 -> http://www.mf.gov.pl/schematy/SF/DefinicjeTypySprawozdaniaFinansowe/2025/01/01/JednostkaMikroWTysiacach
